Department Family,Entity,Date,Expense Type,Expense Area,Supplier,Transaction No,Sum of Amount,Text,Postcode,
Department for Transport,Department for Transport,01/02/2013,Agency Staff Costs,Group Internal Audit,REED SPECIALIST RECRUITMENT LTD,2000022129,2341.2,#,SW20 0BA,
Department for Transport,Department for Transport,01/02/2013,Agency Staff Costs,Group Finance,MICHAEL PAGE INTERNATIONAL,2000022131,2889.06,#,SL1 3SA,
Department for Transport,Department for Transport,01/02/2013,Agency Staff Costs,Group Finance,MICHAEL PAGE INTERNATIONAL,2000022131,11556,#,SL1 3SA,
Department for Transport,Department for Transport,01/02/2013,Agency Staff Costs,Group Finance,MICHAEL PAGE INTERNATIONAL,2000022131,3210,#,SL1 3SA,
Department for Transport,Department for Transport,01/02/2013,Agency Staff Costs,Rail Accident Investigation Branch,SPRING TECHNOLOGY LTD  ALSO T/A,2000022134,762.48,#,B37 7YE,
Department for Transport,Department for Transport,01/02/2013,Agency Staff Costs,Group Finance,MICHAEL PAGE INTERNATIONAL,2000022131,4732.8,#,SL1 3SA,
Department for Transport,Department for Transport,01/02/2013,Air Travel,Air Accident Investigation Branch,,2000022107,418.55,*Trip from 23.01.13 To  24.01.13 to   Hannover,,
Department for Transport,Department for Transport,01/02/2013,Audit Fees (cash),Refran Prog Off,PRICEWATERHOUSECOOPERS LLP,2000022128,519429,#,E14 9SQ,
Department for Transport,Department for Transport,01/02/2013,Car Hire and Leasing,Permanent Secretary,GOVERNMENT CAR & DESPATCH AGENCY,2000022142,773.98,#,SW8 5AX,
Department for Transport,Department for Transport,01/02/2013,Car Hire and Leasing,Permanent Secretary,GOVERNMENT CAR & DESPATCH AGENCY,2000022142,2468.1,#,SW8 5AX,
Department for Transport,Department for Transport,01/02/2013,Cars Fuel,Air Accident Investigation Branch,,2000022107,10.04,*Trip from 23.01.13 To  24.01.13 to   Hannover,,
Department for Transport,Department for Transport,01/02/2013,Courier Charges,Business Transformation,DX SECURE LIMITED,2000022115,665.11,#,NN3 6YG,
Department for Transport,Department for Transport,01/02/2013,Data Supply - TD,Transport Direct and Travel information,LANDMARK INFORMATION GROUP LTD,2000022122,15490.8,#,EX2 7HY,
Department for Transport,Department for Transport,01/02/2013,Data Supply - TD,Transport Direct and Travel information,OAG WORLDWIDE LTD,2000022125,2200.74,#,TN9 1YT,
Department for Transport,Department for Transport,01/02/2013,Hotel&Accom Costs,Aviation Security ,,2000022089,433.32,*Trip from 22.01.13 To  24.01.13 to   Brussels,,
Department for Transport,Department for Transport,01/02/2013,Hotel&Accom Costs,Marine Accident Investigation Branch,,2000022105,717.2,*Trip from 20.01.13 To  25.01.13 to   Almere,,
Department for Transport,Department for Transport,01/02/2013,IT Consultancy,Rail Commercial Contracts,ATOS IT SERVICES UK LTD,2000022116,14071.36,#,WV10 6UH,
Department for Transport,Department for Transport,01/02/2013,IT Ser Running Costs,Roads,ARKITEC SOFTWARE LIMITED,2000022136,720,#,NE28 9NZ,
Department for Transport,Department for Transport,01/02/2013,Legal Consultancy,General Counsel's Office,,2000022140,7189.98,#,,
Department for Transport,Department for Transport,01/02/2013,Legal Consultancy,DASH,WINCKWORTH SHERWOOD,2000022130,114518.4,#,SE1 9BB,
Department for Transport,Department for Transport,01/02/2013,Management Consultan,Rail and Road Projects,PRICEWATERHOUSECOOPERS LLP,2000022128,12675.85,#,E14 9SQ,
Department for Transport,Department for Transport,01/02/2013,Occup Health Scheme,Group HR,HEALTH MANAGEMENT LTD,2000022120,1863,#,BN8 5NN,
Department for Transport,Department for Transport,01/02/2013,Other Travel Costs,Air Accident Investigation Branch,,2000022107,63.8,*Trip from 23.01.13 To  24.01.13 to   Hannover,,
Department for Transport,Department for Transport,01/02/2013,Research,Marine Accident Investigation Branch,TTI TESTING LTD,2000022135,2224,#,DD11 2EY,
Department for Transport,Department for Transport,01/02/2013,Research,Rail,PARSONS BRINCKERHOFF LTD,2000022127,8749.3,#,NE4 7YQ,
Department for Transport,Department for Transport,01/02/2013,Services prov by OGD,Roads,DRIVING STANDARDS AGENCY,2000022141,623496,#,NG1 6LP,
Department for Transport,Department for Transport,01/02/2013,Subsistence Costs,Air Accident Investigation Branch,,2000022107,70.16,*Trip from 23.01.13 To  24.01.13 to   Hannover,,
Department for Transport,Department for Transport,01/02/2013,Subsistence Costs,Aviation Security ,,2000022089,44.17,*Trip from 22.01.13 To  24.01.13 to   Brussels,,
Department for Transport,Department for Transport,01/02/2013,Support Services,Group Finance,DD ACCRAILWAY PENS TRUSTEE,2000022132,3666.51,#,DL3 6XR,
Department for Transport,Department for Transport,01/02/2013,Support Services,Group Finance,RAILWAYS PENSION MANAGEMENT LT,2000022133,136725.69,#,DL3 6EH,
Department for Transport,Department for Transport,01/02/2013,Taxis,Aviation Security ,,2000022089,30.98,*Trip from 22.01.13 To  24.01.13 to   Brussels,,
Department for Transport,Department for Transport,01/02/2013,Taxis,Marine Accident Investigation Branch,,2000022105,34,*Trip from 20.01.13 To  25.01.13 to   Almere,,
Department for Transport,Department for Transport,01/02/2013,Transport  Consult,DASH,ENVIRONMENTAL SCIENTIFICS GROUP LTD,2000022113,4687.2,#,DE15 0YZ,
Department for Transport,Department for Transport,01/02/2013,Transport  Consult,Rail and Road Projects,MOTT MACDONALD,2000022124,48098.23,#,CR9 2UL,
Department for Transport,Department for Transport,01/02/2013,Transport  Consult,Rail and Road Projects,MOTT MACDONALD,2000022124,61088.94,#,CR9 2UL,
Department for Transport,Department for Transport,01/02/2013,Transport  Consult,Rail Commercial Contracts,PARSONS BRINCKERHOFF LTD,2000022127,3983.02,#,NE4 7YQ,
Department for Transport,Department for Transport,01/02/2013,Transport  Consult,Local,LECS (UK) LTD,2000022123,720,#,BN22 7AU,
Department for Transport,Department for Transport,01/02/2013,Transport  Consult,DASH,PRICEWATERHOUSECOOPERS LLP,2000022128,103855.2,#,E14 9SQ,
Department for Transport,Department for Transport,01/02/2013,Transport  Consult,Refran Prog Off,OVE ARUP & PARTNERS,2000022126,12540,#,NE1 3PL,
Department for Transport,Department for Transport,01/02/2013,Travel Exp Overseas,DASH,ENVIRONMENTAL SCIENTIFICS GROUP LTD,2000022113,1000.73,#,DE15 0YZ,
Department for Transport,Department for Transport,04/02/2013,Agency Staff Costs,Refran Prog Off,CAPITA RESOURCING LTD,2000022249,7526.52,#,DL1 9HN,
Department for Transport,Department for Transport,04/02/2013,Agency Staff Costs,Refran Prog Off,EXPERIS LTD,2000022236,11053.44,#,EC1R 3DR,
Department for Transport,Department for Transport,04/02/2013,Agency Staff Costs,Refran Prog Off,MICHAEL PAGE INTERNATIONAL,2000022248,660,#,SL1 3SA,
Department for Transport,Department for Transport,04/02/2013,Cap Grt Pri Sec-Cos.,Rail,NETWORK RAIL INFRASTUCTURE LTD,2000022250,284308307.7,Network Rail 12th Grantpayment  February 2013,N1 9AG,
Department for Transport,Department for Transport,04/02/2013,Computer equipment,Aviation,DANWOOD GROUP LTD,2000022235,1384.76,Danwood Printer Payment,LN6 3DG,
Department for Transport,Department for Transport,04/02/2013,Eurotunnel Admin Pay,Rail Commercial Contracts,SNCF CAISSE GENERALE,2000022223,4680374.5,#,75008,
Department for Transport,Department for Transport,04/02/2013,Eurotunnel Admin Pay,Rail Commercial Contracts,SNCF TRESORERIE ENC RHT VFE,2000022222,5337113.4,#,75014,
Department for Transport,Department for Transport,04/02/2013,Hotel&Accom Costs,Aviation Security ,,2000022170,790.23,*Trip from 07.01.13 To  11.01.13 to   Montreal,,
Department for Transport,Department for Transport,04/02/2013,Hotel&Accom Costs,Aviation Security ,,2000022183,437.35,*Trip from 15.01.13 To  19.01.13 to   Washington,,
Department for Transport,Department for Transport,04/02/2013,HR Consultancy,Group HR,CABINET OFFICE,2000022251,42847,#,CF14 3UW,
Department for Transport,Department for Transport,04/02/2013,IT Consultancy,Rail,AMOR BUSINESS TECHNOLOGY,2000022257,7380,#,PA4 9LH,
Department for Transport,Department for Transport,04/02/2013,IT Ser Running Costs,Business Transformation,SOFTWARE BOX LTD,2000022243,35100,#,YO61 1ET,
Department for Transport,Department for Transport,04/02/2013,Mobile Phone charges,Group Finance,VODAFONE LTD,2000022246,24180,Vodafone - RC - January 2013,RG14 5FF,
Department for Transport,Department for Transport,04/02/2013,Other Travel Costs,Aviation Security ,,2000022170,2.49,*Trip from 07.01.13 To  11.01.13 to   Montreal,,
Department for Transport,Department for Transport,04/02/2013,Other Travel Costs,Aviation Security ,,2000022183,12.6,*Trip from 15.01.13 To  19.01.13 to   Washington,,
Department for Transport,Department for Transport,04/02/2013,Rail Travel,Aviation Security ,,2000022170,39,*Trip from 07.01.13 To  11.01.13 to   Montreal,,
Department for Transport,Department for Transport,04/02/2013,Rail Travel,Aviation Security ,,2000022183,17.3,*Trip from 15.01.13 To  19.01.13 to   Washington,,
Department for Transport,Department for Transport,04/02/2013,Rates,Air Accident Investigation Branch,VODAFONE LTD,2000022247,1308.32,#,RG14 5FF,
Department for Transport,Department for Transport,04/02/2013,Research,Greener Transport & International,TRANSPORT RESEARCH LABORATORY,2000022244,227255.36,#,RG40 3GA,
Department for Transport,Department for Transport,04/02/2013,Research,Local,RICABILITY,2000022241,26000,#,EC1V 2PT,
Department for Transport,Department for Transport,04/02/2013,Subsistence Costs,Air Accident Investigation Branch,,2000022194,977.61,*Trip from 08.10.12 To  19.10.12 to   Antigua,,
Department for Transport,Department for Transport,04/02/2013,Subsistence Costs,Aviation Security ,,2000022170,30,*Trip from 07.01.13 To  11.01.13 to   Montreal,,
Department for Transport,Department for Transport,04/02/2013,Subsistence Costs,Aviation Security ,,2000022183,199.82,*Trip from 15.01.13 To  19.01.13 to   Washington,,
Department for Transport,Department for Transport,04/02/2013,Support Services,Air Accident Investigation Branch,RECOVAIR,2000022240,2559.38,#,GU24 8HU,
Department for Transport,Department for Transport,04/02/2013,Car Hire & Leasing,Marine Accident Investigation Branch,ENTERPRISE RENT-A-CAR,2000022254,673.88,#,TW20 8RX,
Department for Transport,Department for Transport,04/02/2013,Support Services,Aviation,CIVIL AVIATION AUTHORITY,2000022234,2500,#,RH10 0YR,
Department for Transport,Department for Transport,04/02/2013,Support Services,Aviation,CIVIL AVIATION AUTHORITY,2000022234,16250,#,RH10 0YR,
Department for Transport,Department for Transport,04/02/2013,Support Services,Aviation,CIVIL AVIATION AUTHORITY,2000022234,62500,#,RH10 0YR,
Department for Transport,Department for Transport,04/02/2013,Support Services,Aviation,CIVIL AVIATION AUTHORITY,2000022234,50000,#,RH10 0YR,
Department for Transport,Department for Transport,04/02/2013,Taxis,Air Accident Investigation Branch,,2000022194,12,*Trip from 08.10.12 To  19.10.12 to   Antigua,,
Department for Transport,Department for Transport,04/02/2013,Taxis,Aviation Security ,,2000022170,63.9,*Trip from 07.01.13 To  11.01.13 to   Montreal,,
Department for Transport,Department for Transport,04/02/2013,Telephone charges,Air Accident Investigation Branch,ALTERNATIVE NETWORKS PLC,2000022252,986.77,#,SW11 3UL,
Department for Transport,Department for Transport,04/02/2013,Traffic Survey & Cou,Roads,HIGHWAYS AGENCY (14272),2000022259,4125.86,#,HP2 4XW,
Department for Transport,Department for Transport,04/02/2013,Training,Marine Accident Investigation Branch,ECDIS LTD,2000022256,1500,#,PO15 7AN,
Department for Transport,Department for Transport,04/02/2013,Transport  Consult,DASH,ENVIRONMENTAL SCIENTIFICS GROUP LTD,2000022229,1413.6,#,DE15 0YZ,
Department for Transport,Department for Transport,05/02/2013,Agency Staff Costs,Business Transformation,LA INTERNATIONAL COMPUTER,2000022358,1977.12,#,ST1 5UB,
Department for Transport,Department for Transport,05/02/2013,Agency Staff Costs,Local,SPRING TECHNOLOGY LTD  ALSO T/A,2000022372,765.9,#,B37 7YE,
Department for Transport,Department for Transport,05/02/2013,Agency Staff Costs,Refran Prog Off,BADENOCH & CLARK,2000022352,3650.4,#,EC4V 4BG,
Department for Transport,Department for Transport,05/02/2013,Agency Staff Costs,Group Finance,LA INTERNATIONAL COMPUTER,2000022358,10768.44,#,ST1 5UB,
Department for Transport,Department for Transport,05/02/2013,Computer Consumables,Analysis/Science,EQUANET,2000022357,194.4,HP CP4525  Transfer Kit,BL9 7BJ,
Department for Transport,Department for Transport,05/02/2013,Computer Consumables,Analysis/Science,EQUANET,2000022357,192,HP CP4525 Black Toner cartridge,BL9 7BJ,
Department for Transport,Department for Transport,05/02/2013,Computer Consumables,Analysis/Science,EQUANET,2000022357,235.2,HP CP4525 Cyan and Yellow Cartridges,BL9 7BJ,
Department for Transport,Department for Transport,05/02/2013,Contract Cleaning,Rail Accident Investigation Branch,OFFICE CARE LTD,2000022376,1279.75,#,DE24 8AN,
Department for Transport,Department for Transport,05/02/2013,Courier Charges,Business Transformation,DX SECURE LIMITED,2000022350,677,#,NN3 6YG,
Department for Transport,Department for Transport,05/02/2013,CurrGrt Las in AEF/A,London and Olympics,GREATER LONDON AUTHORITY,2000022378,108807000,#,SE1 2UT,
Department for Transport,Department for Transport,05/02/2013,CurrGrtOth to NDPBs,DASH,FIRST GREAT WESTERN LIMITED,2000022370,25000,Payment for Power Surveys on FGW,SN1 1HL,
Department for Transport,Department for Transport,05/02/2013,Data Supply - TD,Transport Direct and Travel information,INRIX MEDIA LTD,2000022371,18499.2,#,WA14 1EP,
Department for Transport,Department for Transport,05/02/2013,Eurotunnel Admin Pay,Rail Commercial Contracts,EUROTUNNEL,2000022275,4117981.6,Eurotunnel GBP Payment Jan 13,CT18 8XY,
Department for Transport,Department for Transport,05/02/2013,Eurotunnel Admin Pay,Rail Commercial Contracts,EUROTUNNEL (EURO PAYMENTS),2000022276,4833861.61,Eurotunnel EUR Payment Jan 13,CT18 8X,
Department for Transport,Department for Transport,05/02/2013,IT Consultancy,Rail,IWEB LTD,2000022368,4320,#,RH13 6AA,
Department for Transport,Department for Transport,05/02/2013,IT Ser Running Costs,Local,KENDA ELECTRONIC SYSTEMS LTD,2000022375,4140,#,SO40 3NB,
Department for Transport,Department for Transport,05/02/2013,Management Consultan,Group Finance,VEHICLE CERTIFICATION AGENCY,2000022366,-9145,#,BS5 6XX,
Department for Transport,Department for Transport,05/02/2013,Other Advertising,Local,PENNA COMMUNICATIONS,2000022374,911.76,#,EC4M 7RD,
Department for Transport,Department for Transport,05/02/2013,Other Travel Costs,Rail,,2000022308,32,*Trip from 02.01.13 To  02.01.13 to   London,,
Department for Transport,Department for Transport,05/02/2013,Prog&ProjMgmt Consul,Local,STEER DAVIES & GLEAVE LTD,2000022363,33468.74,#,SE1 9PD,
Department for Transport,Department for Transport,05/02/2013,Property Maintenance,Air Accident Investigation Branch,INTERSERVE,2000022377,590.59,#,BS32 4NH,
Department for Transport,Department for Transport,05/02/2013,Publications for Res,Marine Accident Investigation Branch,,2000022373,1375,#,,
Department for Transport,Department for Transport,05/02/2013,Rail Travel,Rail,,2000022308,562.6,*Trip from 02.01.13 To  02.01.13 to   London,,
Department for Transport,Department for Transport,05/02/2013,Rent - L&B (non-PFI),Business Transformation,HOME OFFICE,2000022347,190000,Accommodation Charges @ Marsham St 11/12-01/13,NP20 9BB,
Department for Transport,Department for Transport,05/02/2013,Research,Transport Security Strategy,HOME OFFICE,2000022347,46227.32,#,NP20 9BB,
Department for Transport,Department for Transport,05/02/2013,Research,Analysis/Science,TRANSPORT RESEARCH LABORATORY,2000022364,1654.6,#,RG40 3GA,
Department for Transport,Department for Transport,05/02/2013,Security,Air Accident Investigation Branch,INTERSERVE,2000022377,428.92,#,BS32 4NH,
Department for Transport,Department for Transport,05/02/2013,Storage & Distributi,General Counsel's Office,COMMUNITIES AND LOCAL GOVERNMENT,2000022346,82477.97,#,HP2 4XN,
Department for Transport,Department for Transport,05/02/2013,Subscriptions to Pro,Business Transformation,PROFILE GROUP (UK) LTD,2000022362,2142.05,#,EC1N 8JS,
Department for Transport,Department for Transport,05/02/2013,Support Services,Aviation,CIVIL AVIATION AUTHORITY,2000022354,32485,#,RH10 0YR,
Department for Transport,Department for Transport,05/02/2013,Support Services,Aviation,CIVIL AVIATION AUTHORITY,2000022354,32500,#,RH10 0YR,
Department for Transport,Department for Transport,05/02/2013,Support Services,Group Finance,RAILWAYS PENSION MANAGEMENT LT,2000022369,1160000,#,DL3 6EH,
Department for Transport,Department for Transport,05/02/2013,Support Services,Group Finance,RAILWAYS PENSION MANAGEMENT LT,2000022369,-90000,#,DL3 6EH,
Department for Transport,Department for Transport,05/02/2013,Telephone Line Rent,Business Transformation,CABLE & WIRELESS,2000022353,6120,c&w message labs jan-mar 13,MK3 5JP,
Department for Transport,Department for Transport,05/02/2013,Training,Air Accident Investigation Branch,MONARCH AIRLINES LTD,2000022360,7600,#,LU2 9NU,
Department for Transport,Department for Transport,06/02/2013,Agency Staff Costs,Group Internal Audit,REED SPECIALIST RECRUITMENT LTD,2000022456,2341.2,#,SW20 0BA,
Department for Transport,Department for Transport,06/02/2013,Agency Staff Costs,Commercial & Technical Services,,2000022451,5625,#,,
Department for Transport,Department for Transport,06/02/2013,Agency Staff Costs,Business Transformation,NETWORKERS INTERNATIONAL (UK) PLC,2000022468,6698.18,#,BR1 1HP,
Department for Transport,Department for Transport,06/02/2013,Agency Staff Costs,Permanent Secretary,NETWORKERS INTERNATIONAL (UK) PLC,2000022468,994.42,#,BR1 1HP,
Department for Transport,Department for Transport,06/02/2013,Agency Staff Costs,Local,CAPITA RESOURCING LTD,2000022462,5405.4,#,DL1 9HN,
Department for Transport,Department for Transport,06/02/2013,Agency Staff Costs,Group HR,HAYS PERSONNEL SERVICE LTD,2000022434,3303.24,#,KT3 4JQ,
Department for Transport,Department for Transport,06/02/2013,Agency Staff Costs,Group HR,HAYS PERSONNEL SERVICE LTD,2000022434,4154.1,#,KT3 4JQ,
Department for Transport,Department for Transport,06/02/2013,Agency Staff Costs,Group HR,HAYS PERSONNEL SERVICE LTD,2000022434,1661.64,#,KT3 4JQ,
Department for Transport,Department for Transport,06/02/2013,Agency Staff Costs,Group HR,HAYS PERSONNEL SERVICE LTD,2000022434,-3303.24,#,KT3 4JQ,
Department for Transport,Department for Transport,06/02/2013,Agency Staff Costs,Group HR,HAYS PERSONNEL SERVICE LTD,2000022434,4154.1,#,KT3 4JQ,
Department for Transport,Department for Transport,06/02/2013,Agency Staff Costs,Group Finance,ALLEN LANE FINANCIAL RECRUITMENT,2000022438,4036.38,#,BN11 2BW,
Department for Transport,Department for Transport,06/02/2013,Agency Staff Costs,Group Finance,ALLEN LANE FINANCIAL RECRUITMENT,2000022438,2719.38,#,BN11 2BW,
Department for Transport,Department for Transport,06/02/2013,Agency Staff Costs,Group Finance,BADENOCH & CLARK,2000022440,4843.66,#,EC4V 4BG,
Department for Transport,Department for Transport,06/02/2013,Agency Staff Costs,Group Finance,MICHAEL PAGE INTERNATIONAL,2000022461,3210.06,#,SL1 3SA,
Department for Transport,Department for Transport,06/02/2013,Agency Staff Costs,Group Finance,NETWORKERS INTERNATIONAL (UK) PLC,2000022468,3408.78,#,BR1 1HP,
Department for Transport,Department for Transport,06/02/2013,Agency Staff Costs,Rail and Road Projects,EXPERIS LTD,2000022444,11671.56,#,EC1R 3DR,
Department for Transport,Department for Transport,06/02/2013,Agency Staff Costs,Rail Commercial Contracts,MORGAN HUNT UK LTD,2000022450,4056,#,EC4M 7EG,
Department for Transport,Department for Transport,06/02/2013,Agency Staff Costs,Rail Commercial Contracts,MORGAN HUNT UK LTD,2000022450,3650.4,#,EC4M 7EG,
Department for Transport,Department for Transport,06/02/2013,Agency Staff Costs,Rail Commercial Contracts,EXPERIS LTD,2000022444,4766.76,#,EC1R 3DR,
Department for Transport,Department for Transport,06/02/2013,Agency Staff Costs,Rail Commercial Contracts,EXPERIS LTD,2000022444,2383.38,#,EC1R 3DR,
Department for Transport,Department for Transport,06/02/2013,Agency Staff Costs,Rail Commercial Contracts,MICHAEL PAGE INTERNATIONAL,2000022461,3540.24,#,SL1 3SA,
Department for Transport,Department for Transport,06/02/2013,Agency Staff Costs,Local,EXPERIS LTD,2000022444,894.12,#,EC1R 3DR,
Department for Transport,Department for Transport,06/02/2013,Agency Staff Costs,Commercial & Technical Services,TRANSPORT RESEARCH LABORATORY,2000022460,19054.8,#,RG40 3GA,
Department for Transport,Department for Transport,06/02/2013,Agency Staff Costs,Refran Prog Off,ADVANTAGE TECHNICAL RESOURCING LTD,2000022480,1054.44,#,RG21 4FF,
Department for Transport,Department for Transport,06/02/2013,Agency Staff Costs,Refran Prog Off,MICHAEL PAGE INTERNATIONAL,2000022461,2808,#,SL1 3SA,
Department for Transport,Department for Transport,06/02/2013,Agency Staff Costs,Group Finance,MICHAEL PAGE INTERNATIONAL,2000022461,3942.84,#,SL1 3SA,
Department for Transport,Department for Transport,06/02/2013,Agency Staff Costs,Refran Prog Off,NETWORKERS INTERNATIONAL (UK) PLC,2000022468,887.94,#,BR1 1HP,
Department for Transport,Department for Transport,06/02/2013,Cap Grt Loc Auth,Local,BLACKPOOL COUNCIL,2000022478,1701357.11,Blackpool Tram & GM Retaining Walls Final Claims,FY3 7HW,
Department for Transport,Department for Transport,06/02/2013,Cap Grt Loc Auth,Local,STOCKPORT MBC,2000022432,5061561.26,Blackpool Tram & GM Retaining Walls Final Claims,SK1 3XE,
Department for Transport,Department for Transport,06/02/2013,Cap Grt Pri Sec-Cos.,Rail and Road Projects,LONDON UNDERGROUND,2000022471,45160.5,KX SSq Q3 -2012/13,NW1 2AH,
Department for Transport,Department for Transport,06/02/2013,Data Supply - TD,Transport Direct and Travel information,BASEMAP LIMITED,2000022477,2110.8,#,GU2 7YG,
Department for Transport,Department for Transport,06/02/2013,Data Supply - TD,Transport Direct and Travel information,RAIL SETTLEMENT PLAN,2000022454,1755.6,#,WC1N 1BY,
Department for Transport,Department for Transport,06/02/2013,Data Supply - TD,Transport Direct and Travel information,RAIL SETTLEMENT PLAN,2000022454,1755.6,#,WC1N 1BY,
Department for Transport,Department for Transport,06/02/2013,Electricity,Air Accident Investigation Branch,MINISTRY OF DEFENCE,2000022463,2969.69,#,L2 3YL,
Department for Transport,Department for Transport,06/02/2013,IT Equip Cap Cost,Commercial & Technical Services Research,SPECIALIST COMPUTER CENTRES PLC,2000022469,4723.68,#,B11 2LE,
Department for Transport,Department for Transport,06/02/2013,Legal Consultancy,Refran Prog Off,EVERSHEDS LLP,2000022445,5641.62,#,LS11 5DR,
Department for Transport,Department for Transport,06/02/2013,Legal Consultancy,Refran Prog Off,EVERSHEDS LLP,2000022445,5248.85,#,LS11 5DR,
Department for Transport,Department for Transport,06/02/2013,Machinery Rental,Maritime,DANWOOD GROUP LTD,2000022443,1276.11,#,LN6 3DG,
Department for Transport,Department for Transport,06/02/2013,Management Consultan,Rail and Road Projects,PRICEWATERHOUSECOOPERS LLP,2000022453,129247.52,#,E14 9SQ,
Department for Transport,Department for Transport,06/02/2013,Medical Advisory Ser,Group HR,HEALTH MANAGEMENT LTD,2000022446,2104.5,#,BN8 5NN,
Department for Transport,Department for Transport,06/02/2013,Medical Advisory Ser,Group HR,HEALTH MANAGEMENT LTD,2000022446,3517,#,BN8 5NN,
Department for Transport,Department for Transport,06/02/2013,Medical Advisory Ser,Group HR,HEALTH MANAGEMENT LTD,2000022446,595,#,BN8 5NN,
Department for Transport,Department for Transport,06/02/2013,Medical Advisory Ser,Group HR,HEALTH MANAGEMENT LTD,2000022446,6515.54,#,BN8 5NN,
Department for Transport,Department for Transport,06/02/2013,Non Stock Machine Co,Permanent Secretary,SUPPLIES TEAM,2000022437,554.64,1014003 HP LASERJET 4700 FUSER,S9 1XU,
Department for Transport,Department for Transport,06/02/2013,Non Stock Machine Co,Business Transformation,SUPPLIES TEAM,2000022437,234.98,9004078 OKI B6300 LASER TONER/DRUM 11K Y,S9 1XU,
Department for Transport,Department for Transport,06/02/2013,Non Stock Machine Co,Business Transformation,SUPPLIES TEAM,2000022437,137.7,C9731A HP CLJ5500 SRS LASER TONER CART C,S9 1XU,
Department for Transport,Department for Transport,06/02/2013,Non Stock Machine Co,Business Transformation,SUPPLIES TEAM,2000022437,275.4,C9733A HP CLJ5500 SRS LASER TONER CART M,S9 1XU,
Department for Transport,Department for Transport,06/02/2013,Other Professional F,Managing Director Motoring Services,GOVERNMENT ACTUARY'S DEPARTMENT,2000022426,1580.05,#,EC4A 1AB,
Department for Transport,Department for Transport,06/02/2013,Other Sprs - Ptoc,Rail Commercial Contracts,LONDON & SOUTH EASTERN RAILWAY,2000022465,113389,1311 Wk4 Efficiency Benefit Share Mechanism - Refu,SE1 8PG,
Department for Transport,Department for Transport,06/02/2013,Other Sprs - Rtoc,Rail and Road Projects,WEST COAST TRAINS LTD.,2000022464,85532.4,1311 Wk4 Alstom charges for upgrade to simulator -,B5 4HA,
Department for Transport,Department for Transport,06/02/2013,Other Sprs - Rtoc,Rail Commercial Contracts,FIRST CAPITAL CONNECT,2000022466,81661,1311 Wk4 Efficiency Benefit Share Mechanism 09/10,EC1V 9QS,
Department for Transport,Department for Transport,06/02/2013,Other Sprs - Rtoc,Rail Commercial Contracts,FIRST GREATER WESTERN,2000022467,244812,1311 Wk4 Efficiency Benefit Share Mechanism - refu,SN1 1HL,
Department for Transport,Department for Transport,06/02/2013,Printing,DASH,WILLIAMS LEA LIMITED,2000022476,2451.44,#,NR3 1PD,
Department for Transport,Department for Transport,06/02/2013,Publications for Res,Business Transformation,CREATIVE CHOICE CIC,2000022475,624,#,SW1H 0DJ,
Department for Transport,Department for Transport,06/02/2013,Publications for Res,DASH,CREATIVE CHOICE CIC,2000022475,1326,#,SW1H 0DJ,
Department for Transport,Department for Transport,06/02/2013,Publications for Res,DASH,CREATIVE CHOICE CIC,2000022475,543.92,#,SW1H 0DJ,
Department for Transport,Department for Transport,06/02/2013,Publicity,Roads,LEO BURNETT LTD,2000022447,7278,#,W14 8HQ,
Department for Transport,Department for Transport,06/02/2013,Publicity,Roads,LEO BURNETT LTD,2000022447,10278.5,#,W14 8HQ,
Department for Transport,Department for Transport,06/02/2013,Purchasing Card Char,Centrally held prog,BARCLAYS BANK PLC,2000022441,52681.61,Barclays - DFT ISE - Feb 2013,NN4 7SG,
Department for Transport,Department for Transport,06/02/2013,Purchasing Card Char,Group Finance,BARCLAYS BANK PLC,2000022441,2028.17,Barclays - DFT Corporate - Feb 2013,NN4 7SG,
Department for Transport,Department for Transport,06/02/2013,Purchasing Card Char,Group Finance,BARCLAYS BANK PLC,2000022441,27358.96,Barclays - DFT Corporate - Feb 2013,NN4 7SG,
Department for Transport,Department for Transport,06/02/2013,Purchasing Card Char,Group Finance,BARCLAYS BANK PLC,2000022441,5777.89,Barclays - DFT MPL - Feb 2013,NN4 7SG,
Department for Transport,Department for Transport,06/02/2013,Research,Greener Transport & International,NETFUNDI LTD,2000022452,586,#,LA1 1SQ,
Department for Transport,Department for Transport,06/02/2013,Research,Greener Transport & International,NETFUNDI LTD,2000022452,586,#,LA1 1SQ,
Department for Transport,Department for Transport,06/02/2013,Research,Greener Transport & International,TRANSPORT RESEARCH LABORATORY,2000022460,894.19,#,RG40 3GA,
Department for Transport,Department for Transport,06/02/2013,Research,Greener Transport & International,TRANSPORT RESEARCH LABORATORY,2000022460,3322.33,#,RG40 3GA,
Department for Transport,Department for Transport,06/02/2013,Research,Marine Accident Investigation Branch,BRAEMAR TECHNICAL SERVICES LTD,2000022479,25000,#,EC3N 3AA,
Department for Transport,Department for Transport,06/02/2013,Security,General Counsel's Office,FCO SERVICES,2000022425,5181.6,#,MK19 7BH,
Department for Transport,Department for Transport,06/02/2013,Security,General Counsel's Office,FCO SERVICES,2000022425,2846.4,#,MK19 7BH,
Department for Transport,Department for Transport,06/02/2013,Services prov by OGD,Group HR,DWP SHARED SERVICES,2000022422,28128,#,CF14 3UW,
Department for Transport,Department for Transport,06/02/2013,Services prov by OGD,Transport Security Strategy,FCO SERVICES,2000022425,55957.2,#,MK19 7BH,
Department for Transport,Department for Transport,06/02/2013,Storage & Distributi,General Counsel's Office,COMMUNITIES AND LOCAL GOVERNMENT,2000022423,71617.68,#,HP2 4XN,
Department for Transport,Department for Transport,06/02/2013,Storage & Distributi,General Counsel's Office,COMMUNITIES AND LOCAL GOVERNMENT,2000022423,58017.23,#,HP2 4XN,
Department for Transport,Department for Transport,06/02/2013,Storage & Distributi,General Counsel's Office,COMMUNITIES AND LOCAL GOVERNMENT,2000022423,66331.86,#,HP2 4XN,
Department for Transport,Department for Transport,06/02/2013,Subsidies Private Se,Local,GREATER MANCHESTER ACCESS TRANS,2000022433,17637.59,GREATER MANCHESTER ACCESSIBLE TRANSPORT (DIESEL),M1 3BG,
Department for Transport,Department for Transport,06/02/2013,Support Services,Business Transformation,HOME OFFICE,2000022427,7389.1,#,NP20 9BB,
Department for Transport,Department for Transport,06/02/2013,Traffic Survey & Cou,Roads,TDC SYSTEMS LIMITED,2000022459,3934.5,#,BS24 9BP,
Department for Transport,Department for Transport,06/02/2013,Traffic Survey & Cou,Roads,TDC SYSTEMS LIMITED,2000022459,4717.5,#,BS24 9BP,
Department for Transport,Department for Transport,06/02/2013,Traffic Survey & Cou,Roads,TDC SYSTEMS LIMITED,2000022459,3205.5,#,BS24 9BP,
Department for Transport,Department for Transport,06/02/2013,Traffic Survey & Cou,Roads,TDC SYSTEMS LIMITED,2000022459,2178,#,BS24 9BP,
Department for Transport,Department for Transport,06/02/2013,Traffic Survey & Cou,Roads,TDC SYSTEMS LIMITED,2000022459,7262.5,#,BS24 9BP,
Department for Transport,Department for Transport,06/02/2013,Transport  Consult,Refran Prog Off,LEIGHFISHER LTD,2000022470,16306.95,#,W2 2ES,
Department for Transport,Department for Transport,06/02/2013,Travel Exp Overseas,DASH,ENVIRONMENTAL SCIENTIFICS GROUP LTD,100027447,-1000.73,#,DE15 0YZ,
Department for Transport,Department for Transport,06/02/2013,Travel Exp Overseas,DASH,ENVIRONMENTAL SCIENTIFICS GROUP LTD,100027447,1000.73,#,DE15 0YZ,
Department for Transport,Department for Transport,07/02/2013,Agency Staff Costs,Business Transformation,SAND RESOURCES LTD,2000022554,2641.5,#,TN1 1DJ,
Department for Transport,Department for Transport,07/02/2013,Agency Staff Costs,Group Finance,MICHAEL PAGE INTERNATIONAL,2000022560,1284,#,SL1 3SA,
Department for Transport,Department for Transport,07/02/2013,Agency Staff Costs,Local,SPRING TECHNOLOGY LTD  ALSO T/A,2000022565,629.88,#,B37 7YE,
Department for Transport,Department for Transport,07/02/2013,Agency Staff Costs,Rail and Road Projects,EXPERIS LTD,100027491,5835.78,#,EC1R 3DR,
Department for Transport,Department for Transport,07/02/2013,Agency Staff Costs,Rail and Road Projects,EXPERIS LTD,100027491,-5835.78,#,EC1R 3DR,
Department for Transport,Department for Transport,07/02/2013,Agency Staff Costs,Rail and Road Projects,EXPERIS LTD,2000022545,5835.78,#,EC1R 3DR,
Department for Transport,Department for Transport,07/02/2013,Agency Staff Costs,Rail Commercial Contracts,MORGAN HUNT UK LTD,2000022550,3650.4,#,EC4M 7EG,
Department for Transport,Department for Transport,07/02/2013,Agency Staff Costs,Group Finance,MICHAEL PAGE INTERNATIONAL,2000022560,2662.2,#,SL1 3SA,
Department for Transport,Department for Transport,07/02/2013,Agency Staff Costs,Refran Prog Off,MICHAEL PAGE INTERNATIONAL,2000022560,1722.25,#,SL1 3SA,
Department for Transport,Department for Transport,07/02/2013,Agency Staff Costs,Refran Prog Off,MICHAEL PAGE INTERNATIONAL,2000022560,2808,#,SL1 3SA,
Department for Transport,Department for Transport,07/02/2013,Agency Staff Costs,Refran Prog Off,MICHAEL PAGE INTERNATIONAL,2000022560,3514.8,#,SL1 3SA,
Department for Transport,Department for Transport,07/02/2013,Agency Staff Costs,Refran Prog Off,MICHAEL PAGE INTERNATIONAL,2000022560,3514.8,#,SL1 3SA,
Department for Transport,Department for Transport,07/02/2013,Agency Staff Costs,Refran Prog Off,MICHAEL PAGE INTERNATIONAL,2000022560,1968.29,#,SL1 3SA,
Department for Transport,Department for Transport,07/02/2013,Agency Staff Costs,Refran Prog Off,MICHAEL PAGE INTERNATIONAL,2000022560,3514.8,#,SL1 3SA,
Department for Transport,Department for Transport,07/02/2013,Agency Staff Costs,Refran Prog Off,MICHAEL PAGE INTERNATIONAL,2000022560,660,#,SL1 3SA,
Department for Transport,Department for Transport,07/02/2013,Agency Staff Costs,Refran Prog Off,NETWORKERS INTERNATIONAL (UK) PLC,2000022563,887.94,#,BR1 1HP,
Department for Transport,Department for Transport,07/02/2013,Agency Staff Costs,Group Finance,PARITY RESOURCES LTD,2000022561,14400,#,SW19 3RU,
Department for Transport,Department for Transport,07/02/2013,Agency Staff Costs,Group Finance,PARITY RESOURCES LTD,2000022561,15120,#,SW19 3RU,
Department for Transport,Department for Transport,07/02/2013,Agency Staff Costs,Refran Prog Off,PARITY RESOURCES LTD,2000022561,8748,#,SW19 3RU,
Department for Transport,Department for Transport,07/02/2013,Agency Staff Costs,Group Finance,PARITY RESOURCES LTD,2000022561,14625,#,SW19 3RU,
Department for Transport,Department for Transport,07/02/2013,Agency Staff Costs,Group Finance,PARITY RESOURCES LTD,2000022561,14790,#,SW19 3RU,
Department for Transport,Department for Transport,07/02/2013,Agency Staff Costs,Refran Prog Off,SPRING TECHNOLOGY LTD  ALSO T/A,2000022565,2534.83,#,B37 7YE,
Department for Transport,Department for Transport,07/02/2013,Computer equipment,Business Transformation,REMPLOY LTD,2000022535,3292.8,#,LS12 6LN,
Department for Transport,Department for Transport,07/02/2013,Courier Charges,Business Transformation,DX SECURE LIMITED,2000022541,559.56,#,NN3 6YG,
Department for Transport,Department for Transport,07/02/2013,CurrGrtPriSec-P&NPIS,Roads,SUSTRANS (RESEARCH FUNDING),2000022567,1550,CASE studentship cycle counts Oct-Dec 12,BS1 5DD,
Department for Transport,Department for Transport,07/02/2013,Data Supply - TD,Transport Direct and Travel information,LANDMARK INFORMATION GROUP LTD,2000022547,10593.6,#,EX2 7HY,
Department for Transport,Department for Transport,07/02/2013,Electricity,Air Accident Investigation Branch,HARVEST ENERGY,2000022568,2468.36,#,W1G 0PU,
Department for Transport,Department for Transport,07/02/2013,Hotel&Accom Costs,Group Finance,REDFERN TRAVEL LTD,2000022569,25584.52,JAN 13 TRAVEL INVOICE,BD1 3AZ,
Department for Transport,Department for Transport,07/02/2013,Hotel&Accom Costs,Marine Accident Investigation Branch,REDFERN TRAVEL LTD,2000022569,2202.58,#,BD1 3AZ,
Department for Transport,Department for Transport,07/02/2013,Hotel&Accom Costs,Local,,2000022501,680.56,*Trip from 12.01.13 To  19.01.13 to   Washington D,,
Department for Transport,Department for Transport,07/02/2013,IT Ser Running Costs,Roads,TRAFFICMASTER PLC,2000022557,33960,#,MK43 0TR,
Department for Transport,Department for Transport,07/02/2013,Other Travel Costs,Local,,2000022501,38.01,*Trip from 12.01.13 To  19.01.13 to   Washington D,,
Department for Transport,Department for Transport,07/02/2013,Printing,Air Accident Investigation Branch,WILLIAMS LEA LIMITED,2000022575,3079.8,#,NR3 1PD,
Department for Transport,Department for Transport,07/02/2013,Printing,Air Accident Investigation Branch,WILLIAMS LEA LIMITED,2000022575,3696.92,#,NR3 1PD,
Department for Transport,Department for Transport,07/02/2013,Printing,Air Accident Investigation Branch,WILLIAMS LEA LIMITED,2000022575,2171.26,#,NR3 1PD,
Department for Transport,Department for Transport,07/02/2013,Printing,DASH,WILLIAMS LEA LIMITED,2000022575,2122.8,#,NR3 1PD,
Department for Transport,Department for Transport,07/02/2013,Prog&ProjMgmt Consul,Greener Transport & International,MOORHOUSE CONSULTING LIMITED,2000022571,43077.6,#,EC1N 2TD,
Department for Transport,Department for Transport,07/02/2013,Property Consultancy,Business Transformation,LONDON&CONTINENTAL RAILWAYS LTD,2000022566,42804.98,Recharges relating to Crowthorne Business Estate,NW1 1AY,
Department for Transport,Department for Transport,07/02/2013,Publicity,Roads,ABBOTT MEAD VICKERS BBDO LTD,2000022542,22469.61,#,NW1 5QE,
Department for Transport,Department for Transport,07/02/2013,Publicity,Roads,LEO BURNETT LTD,2000022548,5794,#,W14 8HQ,
Department for Transport,Department for Transport,07/02/2013,Purchasing Card Char,Centrally held prog,BARCLAYS BANK PLC,2000022543,33814.5,Barclays - DFT ISE- January 2013,NN4 7SG,
Department for Transport,Department for Transport,07/02/2013,Purchasing Card Char,Centrally held prog,BARCLAYS BANK PLC,2000022543,24401.76,Barclays - DFT ISE- January 2013,NN4 7SG,
Department for Transport,Department for Transport,07/02/2013,Purchasing Card Char,Centrally held prog,BARCLAYS BANK PLC,2000022543,51791,Barclays - DFT ISE - Feb 2013,NN4 7SG,
Department for Transport,Department for Transport,07/02/2013,Purchasing Card Char,Group Finance,BARCLAYS BANK PLC,2000022543,20735.78,Barclays - DFT Corporate- January 2013,NN4 7SG,
Department for Transport,Department for Transport,07/02/2013,Purchasing Card Char,Group Finance,BARCLAYS BANK PLC,2000022543,1415.53,Barclays - DFT Corporate- January 2013,NN4 7SG,
Department for Transport,Department for Transport,07/02/2013,Purchasing Card Char,Group Finance,BARCLAYS BANK PLC,2000022543,5418.15,Barclays - DFT MP&L - January 2013,NN4 7SG,
Department for Transport,Department for Transport,07/02/2013,Purchasing Card Char,Group Finance,BARCLAYS BANK PLC,2000022543,10110.27,Barclays - DFT Domestic - January 2013,NN4 7SG,
Department for Transport,Department for Transport,07/02/2013,Purchasing Card Char,Group Finance,BARCLAYS BANK PLC,2000022543,11944.98,Barclays - DFT Domestic - Feb 2013,NN4 7SG,
Department for Transport,Department for Transport,07/02/2013,Rail Travel,Group Finance,REDFERN TRAVEL LTD,2000022569,65584.12,#,BD1 3AZ,
Department for Transport,Department for Transport,07/02/2013,Research,Marine Accident Investigation Branch,IHS (GLOBAL) LTD - FAIRPLAY REDHILL,2000022549,3000,#,RH1 1UP,
Department for Transport,Department for Transport,07/02/2013,Research,Local,NATIONAL CENTRE FOR SOCIAL RESEARCH,2000022551,25694,#,EC1V 0AX,
Department for Transport,Department for Transport,07/02/2013,Services prov by OGD,Rail,BRB (RESIDUARY) LTD,2000022562,24189.52,#,WC2B 4AN,
Department for Transport,Department for Transport,07/02/2013,Small Software,Business Transformation,THE PRESS ASSOCIATION LTD,2000022564,850.21,#,SW1V 1A,
Department for Transport,Department for Transport,07/02/2013,Subscriptions to Pro,Analysis/Science,THE SOCIAL RESEARCH ASSOCIATION,2000022555,518.4,#,NW1 2HX,
Department for Transport,Department for Transport,07/02/2013,Subsidies Private Se,Local,CONNECT TRANSPORT LTD,1500000034,-3332.62,#,NE34 0NT,
Department for Transport,Department for Transport,07/02/2013,Subsidies Private Se,Roads,MSRS Freight Grant,2000022559,50299.9,MSRS Freight Grant,,
Department for Transport,Department for Transport,07/02/2013,Subsidies Private Se,Roads,MSRS Freight Grant,2000022559,38131.85,MSRS Freight Grant,,
Department for Transport,Department for Transport,07/02/2013,Subsidies Private Se,Roads,MSRS Freight Grant,2000022570,8363.52,MSRS Freight Grant,,
Department for Transport,Department for Transport,07/02/2013,Subsidies Private Se,Roads,MSRS Freight Grant,2000022572,3308.13,MSRS Freight Grant,,
Department for Transport,Department for Transport,07/02/2013,Subsistence Costs,Marine Accident Investigation Branch,REDFERN TRAVEL LTD,2000022569,30.98,#,BD1 3AZ,
Department for Transport,Department for Transport,07/02/2013,Subsistence Costs,Local,,2000022501,338.96,*Trip from 12.01.13 To  19.01.13 to   Washington D,,
Department for Transport,Department for Transport,07/02/2013,Support Services,Local,OECD RUE ANDRE PASCAL 2,2000022574,3510.17,#,75775,
Department for Transport,Department for Transport,07/02/2013,Taxis,Local,,2000022501,40,*Trip from 12.01.13 To  19.01.13 to   Washington D,,
Department for Transport,Department for Transport,07/02/2013,Traffic Survey & Cou,Roads,TDC SYSTEMS LIMITED,100027490,3448.5,#,BS24 9BP,
Department for Transport,Department for Transport,07/02/2013,Traffic Survey & Cou,Roads,TDC SYSTEMS LIMITED,2000022556,3205.5,#,BS24 9BP,
Department for Transport,Department for Transport,07/02/2013,Traffic Survey & Cou,Roads,TDC SYSTEMS LIMITED,2000022556,3606,#,BS24 9BP,
Department for Transport,Department for Transport,07/02/2013,Traffic Survey & Cou,Roads,TDC SYSTEMS LIMITED,2000022556,486,#,BS24 9BP,
Department for Transport,Department for Transport,07/02/2013,Traffic Survey & Cou,Roads,TDC SYSTEMS LIMITED,2000022556,486,#,BS24 9BP,
Department for Transport,Department for Transport,07/02/2013,Traffic Survey & Cou,Roads,TDC SYSTEMS LIMITED,100027490,-3448.5,#,BS24 9BP,
Department for Transport,Department for Transport,07/02/2013,Traffic Survey & Cou,Roads,TDC SYSTEMS LIMITED,2000022556,3448.5,#,BS24 9BP,
Department for Transport,Department for Transport,07/02/2013,Training,Greener Transport & International,CORINNE GAUTIER-CAPES,2000022573,511,#,SW19 2AY,
Department for Transport,Department for Transport,07/02/2013,Training,Business Transformation,SOFTWARE BOX LTD,2000022536,600,#,YO61 1ET,
Department for Transport,Department for Transport,07/02/2013,Transport  Consult,Rail and Road Projects,OVE ARUP & PARTNERS,2000022553,19117.65,#,NE1 3PL,
Department for Transport,Department for Transport,07/02/2013,Travel Booking Costs,Group Finance,REDFERN TRAVEL LTD,2000022569,125021.66,JAN 13 TRAVEL INVOICE,BD1 3AZ,
Department for Transport,Department for Transport,07/02/2013,Travel Booking Costs,Group Finance,REDFERN TRAVEL LTD,2000022569,0.09,#,BD1 3AZ,
Department for Transport,Department for Transport,08/02/2013,Agency Staff Costs,Group Finance,MICHAEL PAGE INTERNATIONAL,2000022665,4608,#,SL1 3SA,
Department for Transport,Department for Transport,08/02/2013,Agency Staff Costs,Group Finance,MICHAEL PAGE INTERNATIONAL,2000022665,5760,#,SL1 3SA,
Department for Transport,Department for Transport,08/02/2013,Building Service Cha,Business Transformation,AMEY COMMUNITY LTD,2000022673,74132.82,#,OX4 4DQ,
Department for Transport,Department for Transport,08/02/2013,Cap Grt Pri Sec-Cos.,Local,SUSTRANS LTD,2000022664,7500000,Linking Local Communities (Growth Fund) 2012-13,BS1 5DD,
Department for Transport,Department for Transport,08/02/2013,Computer equipment,Air Accident Investigation Branch,Probrand Ltd,2000022647,798.56,PROBRAND NON ETHOS 2 10GB FIBRE & CABLE,B1 3BP,
Department for Transport,Department for Transport,08/02/2013,Hotel&Accom Costs,General Counsel's Office,,2000022602,504,*Trip from 21.01.13 To  25.01.13 to   Cotswolds Co,,
Department for Transport,Department for Transport,08/02/2013,Hotel&Accom Costs,Roads,,2000022617,732.75,*Trip from 15.01.13 To  18.01.13 to   Geneva,,
Department for Transport,Department for Transport,08/02/2013,IT Ser Running Costs,Air Accident Investigation Branch,LA INTERNATIONAL COMPUTER,2000022658,1699.5,#,ST1 5UB,
Department for Transport,Department for Transport,08/02/2013,IT Ser Running Costs,Marine Accident Investigation Branch,LA INTERNATIONAL COMPUTER,2000022658,1699.5,#,ST1 5UB,
Department for Transport,Department for Transport,08/02/2013,IT Ser Running Costs,Rail Accident Investigation Branch,LA INTERNATIONAL COMPUTER,2000022658,3399,#,ST1 5UB,
Department for Transport,Department for Transport,08/02/2013,Legal Consultancy,DASH,DLA PIPER UK LLP,2000022650,31137,#,M2 3DL,
Department for Transport,Department for Transport,08/02/2013,Newspapers,Business Transformation,JONES YARRELL LEADENHALL,2000022656,576.92,#,E3 3JH,
Department for Transport,Department for Transport,08/02/2013,Other Travel Costs,General Counsel's Office,,2000022602,92.4,*Trip from 21.01.13 To  25.01.13 to   Cotswolds Co,,
Department for Transport,Department for Transport,08/02/2013,Other Travel Costs,Roads,,2000022617,21,*Trip from 15.01.13 To  18.01.13 to   Geneva,,
Department for Transport,Department for Transport,08/02/2013,Postage,DASH,ROYAL MAIL,2000022660,2144.82,#,PE4 5PG,
Department for Transport,Department for Transport,08/02/2013,Publications for Res,Local,FOLIO CREATIVE COMMUNICATION LTD,2000022653,3100,#,RG9 1RY,
Department for Transport,Department for Transport,08/02/2013,Publicity,Roads,FORSTER LAMOND LTD,2000022671,1872.5,#,SE1 1RU,
Department for Transport,Department for Transport,08/02/2013,Publicity,Transport Security Strategy,INTOUCHUK.COM LTD,2000022654,834.85,#,SW19 2RR,
Department for Transport,Department for Transport,08/02/2013,Small Software,Business Transformation,SOFTWARE BOX LTD,2000022661,14201.28,#,YO61 1ET,
Department for Transport,Department for Transport,08/02/2013,Subsistence Costs,General Counsel's Office,,2000022602,5,*Trip from 21.01.13 To  25.01.13 to   Cotswolds Co,,
Department for Transport,Department for Transport,08/02/2013,Subsistence Costs,Roads,,2000022617,30,*Trip from 15.01.13 To  18.01.13 to   Geneva,,
Department for Transport,Department for Transport,08/02/2013,Training,Group HR,HIGHWAYS AGENCY,2000022674,17710,#,B1 1RN,
Department for Transport,Department for Transport,08/02/2013,Transport  Consult,Rail and Road Projects,JACOBS UK LTD,2000022655,155146.2,#,G2 7HX,
Department for Transport,Department for Transport,08/02/2013,Web Design Services,Roads,1 SPATIAL GROUP LIMITED,2000022648,2846.52,#,CB4 0WZ,
Department for Transport,Department for Transport,11/02/2013,Agency Staff Costs,Business Transformation,CABINET OFFICE,2000022757,7706.66,#,CF14 3UW,
Department for Transport,Department for Transport,11/02/2013,Agency Staff Costs,Rail Accident Investigation Branch,SPRING TECHNOLOGY LTD  ALSO T/A,2000022749,762.48,#,B37 7YE,
Department for Transport,Department for Transport,11/02/2013,Agency Staff Costs,DASH,ADVANTAGE TECHNICAL RESOURCING LTD,2000022755,13924.42,#,RG21 4FF,
Department for Transport,Department for Transport,11/02/2013,Car Hire & Leasing,Group Finance,ENTERPRISE RENT-A-CAR,2000022752,14440.53,ENTERPRISE - CONS INV - JAN 13,TW20 8RX,
Department for Transport,Department for Transport,11/02/2013,CurrGrtOth to NDPBs,DASH,RAIL PASSENGER COUNCIL,2000022758,56050,Payment for Smart Ticketing Research,M1 1LQ,
Department for Transport,Department for Transport,11/02/2013,Data Supply - TD,Transport Direct and Travel information,ORDNANCE SURVEY,2000022738,3503.29,#,SO16 4XH,
Department for Transport,Department for Transport,11/02/2013,Electricity,Business Transformation,SAVILLS COMMERCIAL LTD,2000022747,2898.26,#,EC2M 7EE,
Department for Transport,Department for Transport,11/02/2013,Hotel&Accom Costs,Roads,,2000022702,848.66,*Trip from 04.02.13 To  07.02.13 to   Geneva - GRB,,
Department for Transport,Department for Transport,11/02/2013,IT Equip Cap Cost,Commercial & Technical Services Research,SPECIALIST COMPUTER CENTRES PLC,2000022748,14171.04,#,B11 2LE,
Department for Transport,Department for Transport,11/02/2013,IT Ser Running Costs,Transport Direct and Travel information,TRAPEZE GROUP (UK) LTD,2000022743,16196.4,#,BA14 6PH,
Department for Transport,Department for Transport,11/02/2013,Mobile Phone charges,Group Finance,T-MOBILE (UK) LTD,2000022742,737.42,T MOBILE - A/C 43361515 -JAN 13,AL10 9BW,
Department for Transport,Department for Transport,11/02/2013,Other Travel Costs,Roads,,2000022702,3.95,*Trip from 04.02.13 To  07.02.13 to   Geneva - GRB,,
Department for Transport,Department for Transport,11/02/2013,Publications for Res,DASH,CREATIVE CHOICE CIC,2000022753,2498.08,#,SW1H 0DJ,
Department for Transport,Department for Transport,11/02/2013,Publications for Res,DASH,CREATIVE CHOICE CIC,2000022753,3432,#,SW1H 0DJ,
Department for Transport,Department for Transport,11/02/2013,Publications for Res,Refran Prog Off,THE STATIONERY OFFICE LTD,2000022745,1028.43,#,NR3 1PD,
Department for Transport,Department for Transport,11/02/2013,Services prov by OGD,Roads,VEHICLE CERTIFICATION AGENCY,2000022744,15125.55,#,BS5 6XX,
Department for Transport,Department for Transport,11/02/2013,Services prov by OGD,Rail Commercial Contracts,DIRECTLY OPERATED RAILWAYS LTD,2000022750,1062724.14,#,SW1P 4DR,
Department for Transport,Department for Transport,11/02/2013,Subsistence Costs,Roads,,2000022702,30,*Trip from 04.02.13 To  07.02.13 to   Geneva - GRB,,
Department for Transport,Department for Transport,11/02/2013,Support Services,General Counsel's Office,TREASURY SOLICITOR,2000022756,3351.05,#,WC2B 4TS,
Department for Transport,Department for Transport,11/02/2013,Support Services,General Counsel's Office,TREASURY SOLICITOR,2000022756,6214.42,#,WC2B 4TS,
Department for Transport,Department for Transport,11/02/2013,Transport  Consult,Rail and Road Projects,JACOBS UK LTD,2000022735,11790.97,#,G2 7HX,
Department for Transport,Department for Transport,12/02/2013,Agency Staff Costs,Rail Commercial Contracts,MORGAN HUNT UK LTD,2000022817,3244.8,#,EC4M 7EG,
Department for Transport,Department for Transport,12/02/2013,Agency Staff Costs,Refran Prog Off,CAPITA RESOURCING LTD,2000022821,8014.32,#,DL1 9HN,
Department for Transport,Department for Transport,12/02/2013,Agency Staff Costs,Refran Prog Off,CAPITA RESOURCING LTD,2000022821,4181.4,#,DL1 9HN,
Department for Transport,Department for Transport,12/02/2013,Agency Staff Costs,Refran Prog Off,LA INTERNATIONAL COMPUTER,2000022815,10627.2,#,ST1 5UB,
Department for Transport,Department for Transport,12/02/2013,Agency Staff Costs,Refran Prog Off,METHODS CONSULTING LTD,2000022816,17103.74,#,WC2H 8AD,
Department for Transport,Department for Transport,12/02/2013,Financial Consultanc,Rail Commercial Contracts,GRANT THORNTON UK LLP,2000022822,36480,#,NN4 7YE,
Department for Transport,Department for Transport,12/02/2013,HR Consultancy,Group HR,EMPLOYEE ADVISORY RESOURCE LTD,2000022813,18162.48,#,W4 5YB,
Department for Transport,Department for Transport,12/02/2013,HR Consultancy,Group HR,EMPLOYEE ADVISORY RESOURCE LTD,2000022813,1074.25,#,W4 5YB,
Department for Transport,Department for Transport,12/02/2013,IT Equip Cap Cost,Air Accident Investigation Branch,BASSOM COMPUTER CONSULTANCY,2000022812,9087.53,#,GU9 8LS,
Department for Transport,Department for Transport,12/02/2013,Legal Consultancy,Business Transformation,CRIPPS HARRIES HALL LLP,2000022830,3265.6,#,TN1 1EG,
Department for Transport,Department for Transport,12/02/2013,Legal Consultancy,Rail Commercial Contracts,TREASURY SOLICITOR,2000022833,2790,#,WC2B 4TS,
Department for Transport,Department for Transport,12/02/2013,Other Advertising,Local,PENNA COMMUNICATIONS,2000022825,12714.55,#,EC4M 7RD,
Department for Transport,Department for Transport,12/02/2013,Services prov by OGD,Group HR,COMMUNITIES AND LOCAL GOVERNMENT,2000022834,21873.58,#,HP2 4XN,
Department for Transport,Department for Transport,12/02/2013,Small Software,Rail Commercial Contracts,TRAVEL INFOSYSTEMS,2000022824,2100,#,NW1 9NX,
Department for Transport,Department for Transport,12/02/2013,Support Services,Aviation,MINISTRY OF DEFENCE,2000022823,15060.3,#,L2 3YL,
Department for Transport,Department for Transport,13/02/2013,Agency Staff Costs,Commercial & Technical Services,FIRST ECONOMICS LIMITED,2000022898,1950,#,OX11 9NE,
Department for Transport,Department for Transport,13/02/2013,Agency Staff Costs,Permanent Secretary,NETWORKERS INTERNATIONAL (UK) PLC,2000022911,1104.9,#,BR1 1HP,
Department for Transport,Department for Transport,13/02/2013,Agency Staff Costs,Group Finance,MICHAEL PAGE INTERNATIONAL,2000022906,1284.02,#,SL1 3SA,
Department for Transport,Department for Transport,13/02/2013,Agency Staff Costs,Group Finance,NETWORKERS INTERNATIONAL (UK) PLC,2000022911,3408.78,#,BR1 1HP,
Department for Transport,Department for Transport,13/02/2013,Agency Staff Costs,Rail and Road Projects,EXPERIS LTD,2000022896,5835.78,#,EC1R 3DR,
Department for Transport,Department for Transport,13/02/2013,Agency Staff Costs,Rail Commercial Contracts,EXPERIS LTD,2000022896,2383.38,#,EC1R 3DR,
Department for Transport,Department for Transport,13/02/2013,Agency Staff Costs,Refran Prog Off,EXPERIS LTD,2000022896,5526.72,#,EC1R 3DR,
Department for Transport,Department for Transport,13/02/2013,Agency Staff Costs,Group Finance,EXPERIS LTD,2000022896,4352.58,#,EC1R 3DR,
Department for Transport,Department for Transport,13/02/2013,Agency Staff Costs,Group Finance,MICHAEL PAGE INTERNATIONAL,2000022906,15771.36,#,SL1 3SA,
Department for Transport,Department for Transport,13/02/2013,Agency Staff Costs,Group Finance,MICHAEL PAGE INTERNATIONAL,2000022906,3942.84,#,SL1 3SA,
Department for Transport,Department for Transport,13/02/2013,Agency Staff Costs,Group Finance,MICHAEL PAGE INTERNATIONAL,2000022906,4608,#,SL1 3SA,
Department for Transport,Department for Transport,13/02/2013,Agency Staff Costs,Refran Prog Off,MICHAEL PAGE INTERNATIONAL,2000022906,2460.36,#,SL1 3SA,
Department for Transport,Department for Transport,13/02/2013,Agency Staff Costs,Group Finance,MICHAEL PAGE INTERNATIONAL,2000022906,5760,#,SL1 3SA,
Department for Transport,Department for Transport,13/02/2013,Agency Staff Costs,Refran Prog Off,MICHAEL PAGE INTERNATIONAL,2000022906,3510,#,SL1 3SA,
Department for Transport,Department for Transport,13/02/2013,Agency Staff Costs,Refran Prog Off,MICHAEL PAGE INTERNATIONAL,2000022906,3510,#,SL1 3SA,
Department for Transport,Department for Transport,13/02/2013,Agency Staff Costs,Refran Prog Off,NETWORKERS INTERNATIONAL (UK) PLC,2000022911,883.92,#,BR1 1HP,
Department for Transport,Department for Transport,13/02/2013,Cap Grt Pri Sec-Cos.,DASH,EVERSHEDS LLP,2000022916,325000,HS2 Exceptional Hardship Scheme -Property Purchase,CF10 5BT,
Department for Transport,Department for Transport,13/02/2013,Cap Grt Pri Sec-Cos.,DASH,EVERSHEDS LLP,2000022916,427500,#,CF10 5BT,
Department for Transport,Department for Transport,13/02/2013,Cap Grt Pri Sec-Cos.,Greener Transport & International,ASHWOODS AUTOMOTIVE LTD,2000022921,68600,Ashwood's LCVPPP 8th Payment #68.6k (20 vehicles),EX4 8DS,
Department for Transport,Department for Transport,13/02/2013,CurrGrtPriSec-P&NPIS,Greener Transport & International,LOW CARBON VEHICLE PARTNERSHIP,2000022913,45000,"""LCVP Jan  2013 #45,000""",SW1H 9JJ,
Department for Transport,Department for Transport,13/02/2013,Data Supply - TD,Transport Direct and Travel information,ATOS IT SERVICES UK LTD,2000022893,512.4,#,WV10 6UH,
Department for Transport,Department for Transport,13/02/2013,Electricity,Rail Accident Investigation Branch,BRITISH GAS BUSINESS,2000022894,971.1,Service Item - cart line 0000000001,GU95 1AW,
Department for Transport,Department for Transport,13/02/2013,EU Cap Grt NDPBs,Greener Transport & International,TRANSPORT SCOTLAND,2000022912,577015.49,2009-5000 EasyWay II Interim payment,G4 0HF,
Department for Transport,Department for Transport,13/02/2013,EU Cap Grt NDPBs,Greener Transport & International,WELSH ASSEMBLY GOVERNMENT,2000022915,541306.39,2009-5000 EasyWay II Interim payment,CF10 3NQ,
Department for Transport,Department for Transport,13/02/2013,Further Educ Cost,Marine Accident Investigation Branch,,2000022864,723,*Trip from 06.02.13 To  06.02.13 to   Tuition Fees,,
Department for Transport,Department for Transport,13/02/2013,Hotel&Accom Costs,Rail Accident Investigation Branch,REDFERN TRAVEL LTD,2000022914,1935.77,#,BD1 3AZ,
Department for Transport,Department for Transport,13/02/2013,IT Ser Running Costs,Roads,EVOLVE BUSINESS CONSULTANCY LTD,2000022897,4320,#,GU10 1DW,
Department for Transport,Department for Transport,13/02/2013,IT Ser Running Costs,Transport Direct and Travel information,ATOS IT SERVICES UK LTD,2000022893,8830.8,#,WV10 6UH,
Department for Transport,Department for Transport,13/02/2013,IT Ser Running Costs,Transport Direct and Travel information,ATOS IT SERVICES UK LTD,2000022893,15499.2,#,WV10 6UH,
Department for Transport,Department for Transport,13/02/2013,IT Ser Running Costs,Transport Direct and Travel information,ATOS IT SERVICES UK LTD,2000022893,129483.6,#,WV10 6UH,
Department for Transport,Department for Transport,13/02/2013,IT Ser Running Costs,Transport Direct and Travel information,ATOS IT SERVICES UK LTD,2000022893,7008.43,#,WV10 6UH,
Department for Transport,Department for Transport,13/02/2013,IT Ser Running Costs,Transport Direct and Travel information,ATOS IT SERVICES UK LTD,2000022893,10780.8,#,WV10 6UH,
Department for Transport,Department for Transport,13/02/2013,IT Ser Running Costs,Transport Direct and Travel information,ATOS IT SERVICES UK LTD,2000022893,2228.4,#,WV10 6UH,
Department for Transport,Department for Transport,13/02/2013,IT Ser Running Costs,Transport Direct and Travel information,ATOS IT SERVICES UK LTD,2000022893,826.8,#,WV10 6UH,
Department for Transport,Department for Transport,13/02/2013,IT Ser Running Costs,Transport Direct and Travel information,ATOS IT SERVICES UK LTD,2000022893,6296.4,#,WV10 6UH,
Department for Transport,Department for Transport,13/02/2013,IT Ser Running Costs,Transport Direct and Travel information,ATOS IT SERVICES UK LTD,2000022893,144688.8,#,WV10 6UH,
Department for Transport,Department for Transport,13/02/2013,Legal Consultancy,Rail and Road Projects,FRESHFIELDS,2000022908,336041.62,#,EC4Y 1HS,
Department for Transport,Department for Transport,13/02/2013,Legal Consultancy,Maritime,FIELD FISHER WATERHOUSE LLP,2000022910,14981.7,#,EC3N 2AA,
Department for Transport,Department for Transport,13/02/2013,Machinery Rental,Permanent Secretary,XEROX FINANCE LTD,2000022905,798.66,#,BN14 8RL,
Department for Transport,Department for Transport,13/02/2013,Machinery Rental,Group HR,RICOH UK LTD,2000022899,1098.4,#,NN4 7YB,
Department for Transport,Department for Transport,13/02/2013,Machinery Rental,Group HR,RICOH UK LTD,2000022899,471.33,#,NN4 7YB,
Department for Transport,Department for Transport,13/02/2013,Minor Developments,Commercial & Technical Services,CONNECT INTERNET SOLUTIONS LTD,2000022895,1350,#,L2 6SG,
Department for Transport,Department for Transport,13/02/2013,Minor Developments,Commercial & Technical Services,CONNECT INTERNET SOLUTIONS LTD,2000022895,4200,#,L2 6SG,
Department for Transport,Department for Transport,13/02/2013,Publications for Res,DASH,CREATIVE CHOICE CIC,2000022918,1820,#,SW1H 0DJ,
Department for Transport,Department for Transport,13/02/2013,Publications for Res,DASH,CREATIVE CHOICE CIC,2000022918,1066,#,SW1H 0DJ,
Department for Transport,Department for Transport,13/02/2013,Rail Travel,Rail Accident Investigation Branch,REDFERN TRAVEL LTD,2000022914,2782.09,#,BD1 3AZ,
Department for Transport,Department for Transport,13/02/2013,Research,Greener Transport & International,TRANSPORT RESEARCH LABORATORY,2000022904,6643.73,#,RG40 3GA,
Department for Transport,Department for Transport,13/02/2013,Research,Greener Transport & International,TRANSPORT RESEARCH LABORATORY,2000022904,823.99,#,RG40 3GA,
Department for Transport,Department for Transport,13/02/2013,Research,Local,NATIONAL CENTRE FOR SOCIAL RESEARCH,2000022902,28625,#,EC1V 0AX,
Department for Transport,Department for Transport,13/02/2013,Research,Group Finance,CIPFA,2000022891,700,#,WC2N 6RL,
Department for Transport,Department for Transport,13/02/2013,Services prov by OGD,Managing Director Motoring Services,MARITIME & COASTGUARD AGENCY,2000022886,81655.91,#,SO15 1EG,
Department for Transport,Department for Transport,13/02/2013,Small Software,Business Transformation,BIP SOLUTIONS LTD,2000022907,800,#,G51 1DZ,
Department for Transport,Department for Transport,13/02/2013,Software Lic Cap,Transport Direct and Travel information,ATOS IT SERVICES UK LTD,2000022893,108951.6,#,WV10 6UH,
Department for Transport,Department for Transport,13/02/2013,Subscriptions to Pro,Greener Transport & International,EURO NCAP,2000022887,123473.29,#,1050,
Department for Transport,Department for Transport,13/02/2013,Subsidies Private Se,Local,CLINTONA MINICOACHES,2000022922,8681.24,Clintona Minicoaches,CM13 3HA,
Department for Transport,Department for Transport,13/02/2013,Support Services,General Counsel's Office,CABINET OFFICE,2000022885,40000,#,CF14 3UW,
Department for Transport,Department for Transport,13/02/2013,Support Services,Aviation,MINISTRY OF DEFENCE,2000022909,3543.6,#,L2 3YL,
Department for Transport,Department for Transport,13/02/2013,Support Services,Aviation,MINISTRY OF DEFENCE,2000022909,6201.3,#,L2 3YL,
Department for Transport,Department for Transport,13/02/2013,Training,Group Internal Audit,INSTITUTE OF INTERNAL AUDITORS,2000022900,920,#,SW4 7BX,
Department for Transport,Department for Transport,13/02/2013,Training,Group Internal Audit,INSTITUTE OF INTERNAL AUDITORS,2000022900,500,#,SW4 7BX,
Department for Transport,Department for Transport,13/02/2013,Transport  Consult,Transport Direct and Travel information,ATOS IT SERVICES UK LTD,2000022893,27784.8,#,WV10 6UH,
Department for Transport,Department for Transport,13/02/2013,Transport  Consult,Transport Direct and Travel information,ATOS IT SERVICES UK LTD,2000022893,4692,#,WV10 6UH,
Department for Transport,Department for Transport,13/02/2013,Transport  Consult,Transport Direct and Travel information,ATOS IT SERVICES UK LTD,2000022893,11383.2,#,WV10 6UH,
Department for Transport,Department for Transport,13/02/2013,Travel Booking Costs,Rail Accident Investigation Branch,REDFERN TRAVEL LTD,2000022914,310.44,#,BD1 3AZ,
Department for Transport,Department for Transport,14/02/2013,Agency Staff Costs,Group Internal Audit,REED SPECIALIST RECRUITMENT LTD,2000023290,2341.2,#,SW20 0BA,
Department for Transport,Department for Transport,14/02/2013,Agency Staff Costs,Group HR,HAYS PERSONNEL SERVICE LTD,2000023279,2492.46,#,KT3 4JQ,
Department for Transport,Department for Transport,14/02/2013,Agency Staff Costs,Group Finance,MICHAEL PAGE INTERNATIONAL,2000023297,3210,#,SL1 3SA,
Department for Transport,Department for Transport,14/02/2013,Agency Staff Costs,Local,SPRING TECHNOLOGY LTD  ALSO T/A,2000023301,765.9,#,B37 7YE,
Department for Transport,Department for Transport,14/02/2013,Agency Staff Costs,Local,EXPERIS LTD,2000023286,2235.3,#,EC1R 3DR,
Department for Transport,Department for Transport,14/02/2013,Agency Staff Costs,Group Finance,MICHAEL PAGE INTERNATIONAL,2000023297,2958,#,SL1 3SA,
Department for Transport,Department for Transport,14/02/2013,Agency Staff Costs,Group Finance,METHODS CONSULTING LTD,2000023288,4662.76,#,WC2H 8AD,
Department for Transport,Department for Transport,14/02/2013,Agency Staff Costs,Refran Prog Off,MICHAEL PAGE INTERNATIONAL,2000023297,3514.8,#,SL1 3SA,
Department for Transport,Department for Transport,14/02/2013,Agency Staff Costs,DASH,NETWORKERS INTERNATIONAL (UK) PLC,2000023300,1357.44,#,BR1 1HP,
Department for Transport,Department for Transport,14/02/2013,Agency Staff Costs,Refran Prog Off,SPRING TECHNOLOGY LTD  ALSO T/A,2000023301,2534.83,#,B37 7YE,
Department for Transport,Department for Transport,14/02/2013,Agency Staff Costs,Refran Prog Off,SPRING TECHNOLOGY LTD  ALSO T/A,2000023301,2851.69,#,B37 7YE,
Department for Transport,Department for Transport,14/02/2013,BUS FDR Wales,Local,ARRIVA CYMRU LTD,2000022982,548388.28,Arriva Cymru Ltd,L9 5AE,
Department for Transport,Department for Transport,14/02/2013,BUS FDR Wales,Local,CONWY COMMUNITY TRANSPORT,2000023268,1915.96,Conwy Community Transport,LL31 9SG,
Department for Transport,Department for Transport,14/02/2013,BUS FDR Wales,Local,EIFIONS MINICOACH HIRE,2000023048,8640.14,EIFIONS MINICOACH HIRE,LL65 4RJ,
Department for Transport,Department for Transport,14/02/2013,BUS FDR Wales,Local,FIRST CYMRU BUSES LTD,2000023058,636286.32,FIRST CYMRU BUSES LTD,SA5 7BN,
Department for Transport,Department for Transport,14/02/2013,BUS FDR Wales,Local,FIRST CYMRU BUSES LTD,2000023058,7681,FIRST CYMRU BUSES LTD,SA5 7BN,
Department for Transport,Department for Transport,14/02/2013,BUS FDR Wales,Local,GLAMORGAN BUS COMPANY LTD,2000023081,6046.22,GLAMORGAN BUS COMPANY LTD,CF44 6DA,
Department for Transport,Department for Transport,14/02/2013,BUS FDR Wales,Local,GWYNFOR COACHES,2000023239,11592.75,Gwynfor Coaches,LL77 7NU,
Department for Transport,Department for Transport,14/02/2013,BUS FDR Wales,Local,HUGHES BROTHERS LTD,2000023102,27045.89,Hughes Bros (Llanrwst and Trefriw) T/A ALPHINE TVL,.,
Department for Transport,Department for Transport,14/02/2013,BUS FDR Wales,Local,HUMPHREYS COACHES (PONTYPRIDD) LTD,2000023236,27283.4,Humphreys Coaches (Pontypridd) Ltd,CF14 3AT,
Department for Transport,Department for Transport,14/02/2013,BUS FDR Wales,Local,JONES & SONS,2000023108,4784.04,O R JONES & SONS LTD,LL65 4NW,
Department for Transport,Department for Transport,14/02/2013,BUS FDR Wales,Local,LLOYD'S COACHES,2000023119,35108.76,LLOYDS COACHES LTD,SY20 8NW,
Department for Transport,Department for Transport,14/02/2013,BUS FDR Wales,Local,MENYN'S PRIVATE HIRE,2000023128,732.83,MENYNS PRIVATE HIRE,LL26 0EH,
Department for Transport,Department for Transport,14/02/2013,BUS FDR Wales,Local,NEFYN COACHES LTD,2000023158,16122.25,Nefyn Coaches Ltd,LL53 6EG,
Department for Transport,Department for Transport,14/02/2013,BUS FDR Wales,Local,OARES COACHES LTD,2000023145,6375.09,OARES COACHES LTD,CH8 8LD,
Department for Transport,Department for Transport,14/02/2013,BUS FDR Wales,Local,PADARN BUS,2000023148,82373.73,Padarn Bus Ltd,LL55 4EL,
Department for Transport,Department for Transport,14/02/2013,BUS FDR Wales,Local,T H JONES & SON,2000023193,3215.79,T H JONES & SON,LL53 5YT,
Department for Transport,Department for Transport,14/02/2013,BUS FDR Wales,Local,TANAT VALLEY COACHES,2000023195,28592.98,R E MORRIS & SONS LTD T/A TANAT VALLEY COACHES,SY10 0AD,
Department for Transport,Department for Transport,14/02/2013,BUS FDR Wales,Local,TOWN & COUNTRY BUS LTD,2000023245,18508.92,Peakes Coaches Ltd T/A Town & Country Bus,NP4 6YW,
Department for Transport,Department for Transport,14/02/2013,BUS FDR Wales,Local,TRAVELFINAL LTD,2000023201,3248.26,TRAVEL FINAL LTD,CF32 8AY,
Department for Transport,Department for Transport,14/02/2013,BUS FDR Wales,Local,VOEL COACHES LTD,2000023205,7342.32,VOEL COACHES,LL18 6BP,
Department for Transport,Department for Transport,14/02/2013,CurrGrt Las in AEF/A,Local,HALTON BOROUGH TRANSPORT LTD,2000023090,113950.75,Halton Borough Transport Ltd,WA8 7AF,
Department for Transport,Department for Transport,14/02/2013,CurrGrt Las in AEF/A,Local,IPSWICH BUSES LTD,2000023104,128241.79,Ipswich Buses Limited,IP1 2DL,
Department for Transport,Department for Transport,14/02/2013,CurrGrt Las in AEF/A,Local,NOTTINGHAM CITY TRANSPORT LTD,2000023142,539471.7,Nottingham City Transport Ltd,N61 1GG,
Department for Transport,Department for Transport,14/02/2013,CurrGrt Las in AEF/A,Local,NOTTINGHAM CITY TRANSPORT LTD,2000023142,11823.37,Nottingham City Transport Ltd,N61 1GG,
Department for Transport,Department for Transport,14/02/2013,CurrGrt Las in AEF/A,Local,PLYMOUTH CITYBUS LTD,2000023154,312586.78,Plymouth Citybus Ltd,PL3 4AA,
Department for Transport,Department for Transport,14/02/2013,CurrGrt Las in AEF/A,Local,READING TRANSPORT LTD,2000023161,302780.77,READING TRANSPORT LIMITED,RG1 7HH,
Department for Transport,Department for Transport,14/02/2013,CurrGrtOth to NDPBs,Group Finance,CTRL SECTION 1 FINANCE PLC,2000023305,5480.81,CTRL FEB TSS/SFS/CTRL SEC 1  FINANCE,NW1 1AY,
Department for Transport,Department for Transport,14/02/2013,EU Cap Grt NDPBs,Greener Transport & International,HIGHWAYS AGENCY (14272),2000023312,1321586.42,2009-5000 EasyWay II Interim payment,HP2 4XW,
Department for Transport,Department for Transport,14/02/2013,Financial Consultanc,Group Finance,RAILWAYS PENSION MANAGEMENT LT,2000023299,2008.8,#,DL3 6EH,
Department for Transport,Department for Transport,14/02/2013,Grt Aid to NDPBs,DASH,HS2,2000023303,4000000,HS2 Feb  Grant 2012/13,SW1E 5DU,
Department for Transport,Department for Transport,14/02/2013,Machinery Rental,Group HR,RICOH UK LTD,2000023287,641.54,#,NN4 7YB,
Department for Transport,Department for Transport,14/02/2013,Machinery Rental,Group HR,RICOH UK LTD,2000023287,812.07,#,NN4 7YB,
Department for Transport,Department for Transport,14/02/2013,Machinery Rental,Group HR,RICOH UK LTD,2000023287,826.89,#,NN4 7YB,
Department for Transport,Department for Transport,14/02/2013,Machinery Rental,Group HR,RICOH UK LTD,2000023287,1158.49,#,NN4 7YB,
Department for Transport,Department for Transport,14/02/2013,Office Fur & Equip,Maritime,,2000023310,68970.8,#,,
Department for Transport,Department for Transport,14/02/2013,Other Professional F,Greener Transport & International,RICARDO - AEA LIMITED,2000023309,18235,#,OX11 0PQ,
Department for Transport,Department for Transport,14/02/2013,Rates,Rail Accident Investigation Branch,RUSHMOOR BC,2000023296,15665.48,#,GU14 7JU,
Department for Transport,Department for Transport,14/02/2013,Recruitment Fees,Group HR,CAPITA RESOURCING LTD T/A,2000023281,6336,#,DL1 9HN,
Department for Transport,Department for Transport,14/02/2013,Recruitment Fees,Group HR,CAPITA RESOURCING LTD T/A,2000023281,6336,#,DL1 9HN,
Department for Transport,Department for Transport,14/02/2013,Research,Roads,ATKINS LTD (TRANSPORT PLANNING),2000023283,29947.5,#,WR5 1TX,
Department for Transport,Department for Transport,14/02/2013,Research,Local,ATKINS LTD (MANAGEMENT CONSULTANTS),2000023282,16443.86,#,WR5 1WS,
Department for Transport,Department for Transport,14/02/2013,Research,Analysis/Science,OVE ARUP & PARTNERS,2000023289,42294.03,#,NE1 3PL,
Department for Transport,Department for Transport,14/02/2013,Stationery (Non-stk),Permanent Secretary,OFFICE DEPOT UK LIMITED,2000023280,724.87,#,SP10 4BA,
Department for Transport,Department for Transport,14/02/2013,Stationery (Non-stk),Rail Commercial Contracts,OFFICE DEPOT UK LIMITED,2000023280,804.32,#,SP10 4BA,
Department for Transport,Department for Transport,14/02/2013,Storage & Distributi,Business Transformation,CAMBERTOWN LIMITED,2000023304,7368.99,#,S63 9BL,
Department for Transport,Department for Transport,14/02/2013,Subsidies Private Se,Local,3D COACHES,2000022970,2185.87,3D COACHES,CA28 8RR,
Department for Transport,Department for Transport,14/02/2013,Subsidies Private Se,Local,A 2 B TRAVEL,2000022971,14616.16,A2B TRAVEL UK LTD,CH43 3DU,
Department for Transport,Department for Transport,14/02/2013,Subsidies Private Se,Local,A LYLES & SON,2000023264,3926.91,A Lyles & Son,WF17 6LA,
Department for Transport,Department for Transport,14/02/2013,Subsidies Private Se,Local,A P L TRAVEL,2000022972,11096.03,APL TRAVEL LTD,SN16 9ES,
Department for Transport,Department for Transport,14/02/2013,Subsidies Private Se,Local,A S COACHES,2000022973,796.49,A S COACHES,HG3 5ET,
Department for Transport,Department for Transport,14/02/2013,Subsidies Private Se,Local,A W EASTON'S COACHES LTD,2000022974,3071.38,A W Eastons Coaches Ltd,NR10 5LR,
Department for Transport,Department for Transport,14/02/2013,Subsidies Private Se,Local,AA TRAVEL CUMBRIA LTD,2000022975,639.99,AA TRAVEL,CA28 8QJ,
Department for Transport,Department for Transport,14/02/2013,Subsidies Private Se,Local,ABBEY COACHES (MIDLANDS) LTD,2000023251,1362.48,Abbey Coaches (Midlands) Ltd,B21 9NY,
Department for Transport,Department for Transport,14/02/2013,Subsidies Private Se,Local,ABUS LTD,2000022976,16861.82,ABUS Ltd,BS4 3NL,
Department for Transport,Department for Transport,14/02/2013,Subsidies Private Se,Local,AINTREE COACHES (INTERNATIONAL) LTD,2000023274,7459.35,Aintree Coaches (International) Ltd,CH66 1NH,
Department for Transport,Department for Transport,14/02/2013,Subsidies Private Se,Local,AIRPARK SERVICES LTD,2000023226,7176.35,AIRPARKS SERVICES - BIRMINGHAM,B37 7HE,
Department for Transport,Department for Transport,14/02/2013,Subsidies Private Se,Local,AMBASSADOR TRAVEL,2000022977,15234.3,AMBASSADOR TRAVEL (ANGLIA) LTD,NR31 0NX,
Department for Transport,Department for Transport,14/02/2013,Subsidies Private Se,Local,ANDYBUS & COACH LTD,2000022978,17347.05,ANDYBUS & COACH LTD,SN15 4JF,
Department for Transport,Department for Transport,14/02/2013,Subsidies Private Se,Local,ANGLIAN BUS LTD,2000022979,187497.04,Anglian Bus Ltd,NR34 7TH,
Department for Transport,Department for Transport,14/02/2013,Subsidies Private Se,Local,ANTHONYS TRAVEL,2000022980,6298.22,ANTHONY'S TRAVEL,WA7 5BH,
Department for Transport,Department for Transport,14/02/2013,Subsidies Private Se,Local,ARCHWAY TRAVEL,2000022981,8294.1,ARCHWAY TRAVEL,FY6 8JU,
Department for Transport,Department for Transport,14/02/2013,Subsidies Private Se,Local,ARRIVA EAST HERTS & ESSEX LTD,2000022984,65076.52,Arriva East Herts and Essex,LU4 8DS,
Department for Transport,Department for Transport,14/02/2013,Subsidies Private Se,Local,ARRIVA KENT & SUSSEX,2000023262,252088.68,Arriva Kent & Sussex,LU4 8DS,
Department for Transport,Department for Transport,14/02/2013,Subsidies Private Se,Local,ARRIVA MEDWAY TOWNS LTD,2000022985,266005.97,ARRIVA MEDWAY TOWNS LTD,LU4 8DS,
Department for Transport,Department for Transport,14/02/2013,Subsidies Private Se,Local,ARRIVA MERSEYSIDE LTD,2000022986,1541923.7,ARRIVA MERSEYSIDE LIMITED,L9 5AE,
Department for Transport,Department for Transport,14/02/2013,Subsidies Private Se,Local,ARRIVA NORTH WEST LTD,2000022988,549056.58,ARRIVA NORTH WEST LTD,L9 5AE,
Department for Transport,Department for Transport,14/02/2013,Subsidies Private Se,Local,ARRIVA NORTHUMBRIA LTD,2000022983,818261.97,ARRIVA DURHAM COUNTY,SR3 3XP,
Department for Transport,Department for Transport,14/02/2013,Subsidies Private Se,Local,ARRIVA SOUTHEND COUNTIES LTD,2000022989,219637.85,ARRIVA SOUTHEND LIMITED,ME15 6TX,
Department for Transport,Department for Transport,14/02/2013,Subsidies Private Se,Local,ARRIVA SURREY & WEST SUSSEX,2000022990,142666.99,ARRIVA SURREY & WEST SUSSEX LTD,LU4 8DS,
Department for Transport,Department for Transport,14/02/2013,Subsidies Private Se,Local,ARRIVA THAMESIDE,2000023141,385674.72,ARRIVA THAMESIDE,LU4 8DS,
Department for Transport,Department for Transport,14/02/2013,Subsidies Private Se,Local,ARRIVA YORKSHIRE LTD,2000022992,461508.64,Arriva Yorkshire Ltd,WF1 5JX,
Department for Transport,Department for Transport,14/02/2013,Subsidies Private Se,Local,ARRIVA YORKSHIRE LTD,2000022992,366184.52,Arriva Yorkshire West Ltd,WF1 5JX,
Department for Transport,Department for Transport,14/02/2013,Subsidies Private Se,Local,ARRIVA YORKSHIRE LTD,2000022992,89663.1,Arriva Yorkshire North Ltd,WF1 5JX,
Department for Transport,Department for Transport,14/02/2013,Subsidies Private Se,Local,ASHCROFT TRAVEL LTD,2000022993,2613.56,ASHCROFT TRAVEL LTD.,WA8 8TN,
Department for Transport,Department for Transport,14/02/2013,Subsidies Private Se,Local,AVACOACH.COM LTD,2000023266,2076.79,Avacab Ltd,PR26 7QR,
Department for Transport,Department for Transport,14/02/2013,Subsidies Private Se,Local,B L TRAVEL,2000022994,13447.2,B L TRAVEL,WF9 5JB,
Department for Transport,Department for Transport,14/02/2013,Subsidies Private Se,Local,BANGA BUSES,2000023220,10953.49,BANGA BUSES,WV2 1DT,
Department for Transport,Department for Transport,14/02/2013,Subsidies Private Se,Local,BARNARDS COACHES LTD,2000023169,697.27,BARNARDS COACHES LTD,DN21 4BD,
Department for Transport,Department for Transport,14/02/2013,Subsidies Private Se,Local,BARTON BUSES,2000022995,231426.47,BARTON BUSES LTD,DE75 7BG,
Department for Transport,Department for Transport,14/02/2013,Subsidies Private Se,Local,BATH BUS COMPANY LTD,2000022996,10285.58,BATH BUS COMPANY LTD,BA1 1LF,
Department for Transport,Department for Transport,14/02/2013,Subsidies Private Se,Local,BAYLINE LTD,2000022997,186244.58,BAYLINE LTD,SK3 0DU,
Department for Transport,Department for Transport,14/02/2013,Subsidies Private Se,Local,BEACON GARAGE,2000022998,32599.74,HOLSWORTHY LTD,EX19 8PS,
Department for Transport,Department for Transport,14/02/2013,Subsidies Private Se,Local,BEESTONS HADLEIGH,2000022999,22348.71,BEESTONS (HADLEIGH) LTD,IP7 5DB,
Department for Transport,Department for Transport,14/02/2013,Subsidies Private Se,Local,BENNETTS TRAVEL (CRANBERRY)LTD,2000023000,17014.72,BENNETTS TRAVEL (CRANBERRY) LTD,ST21 6SQ,
Department for Transport,Department for Transport,14/02/2013,Subsidies Private Se,Local,BERRYS COACHES (TAUNTON) LTD,2000023001,10203.8,Berry's Coaches (Taunton) Ltd,TA1 5NA,
Department for Transport,Department for Transport,14/02/2013,Subsidies Private Se,Local,BEXHILL COMMUNITY BUS LTD,2000023002,608.26,BEXHILL COMMUNITY BUS LTD,TN40 1QF,
Department for Transport,Department for Transport,14/02/2013,Subsidies Private Se,Local,BIBBYS OF INGLETON,2000023003,527.56,BIBBY'S OF INGLETON LTD,LA6 3NU,
Department for Transport,Department for Transport,14/02/2013,Subsidies Private Se,Local,BLUEWORKS PRIVATE HIRE,2000023005,3456.99,BLUEWORKS PRIVATE HIRE,LA12 8PX,
Department for Transport,Department for Transport,14/02/2013,Subsidies Private Se,Local,BON CHAUNCE TRAVEL,2000023250,3716.15,Bon Chaunce Travel Ltd,PR3 6SS,
Department for Transport,Department for Transport,14/02/2013,Subsidies Private Se,Local,BRADSHAWS TRAVEL,2000023229,1729.02,Bradshaws Travel,FY6 0BS,
Department for Transport,Department for Transport,14/02/2013,Subsidies Private Se,Local,BRIGHTON&HOVE BUS&COACH CO LTD,2000023006,831465.22,BRIGHTON AND HOVE BUS AND COACH CO LTD,BN3 3LT,
Department for Transport,Department for Transport,14/02/2013,Subsidies Private Se,Local,BUGLERS COACHES LTD,2000023008,1041.32,Buglers,BS4 4NF,
Department for Transport,Department for Transport,14/02/2013,Subsidies Private Se,Local,BURNLEY & PENDLE TRAVEL LTD,2000023009,223147.01,Burnley & Pendle Travel Limited,BD21 2JX,
Department for Transport,Department for Transport,14/02/2013,Subsidies Private Se,Local,BUZZLINES,2000023011,1073.93,BUZZLINES,CT21 4LR,
Department for Transport,Department for Transport,14/02/2013,Subsidies Private Se,Local,CARMANS COACHES LTD,2000023244,1166.79,Carmans Coaches Ltd,DA12 5UA,
Department for Transport,Department for Transport,14/02/2013,Subsidies Private Se,Local,CARTERS OF LITCHAM,2000023013,537.68,Carters Coaches,PE32 2PB,
Department for Transport,Department for Transport,14/02/2013,Subsidies Private Se,Local,CASTLE COACHES (SKIPTON),2000023014,1239.42,CASTLE COACHES (SKIPTON),BD23 2QR,
Department for Transport,Department for Transport,14/02/2013,Subsidies Private Se,Local,CEDAR COACHES,2000023015,16555.58,Cedar Coaches,MK42 0LE,
Department for Transport,Department for Transport,14/02/2013,Subsidies Private Se,Local,CEDRIC COACHES INTERNATIONAL,2000023016,12288.59,CEDRIC COACHES LTD,CO7 9AH,
Department for Transport,Department for Transport,14/02/2013,Subsidies Private Se,Local,CEN GROUP T/A CENTRAL BUSES,2000023017,40450.87,CEN Group T/A Central Buses,B42 2TX,
Department for Transport,Department for Transport,14/02/2013,Subsidies Private Se,Local,CENTAUR OVERLAND TRAVEL LTD,2000023267,7569.12,Centaur Overland Travel Ltd,DA15 8DJ,
Department for Transport,Department for Transport,14/02/2013,Subsidies Private Se,Local,CENTRAL CONNECT,2000023216,171009.01,Central Connect Ltd (formerly Zak's Bus & Coach),B7 5JJ,
Department for Transport,Department for Transport,14/02/2013,Subsidies Private Se,Local,CENTRAL LOGISTICS LIMITED,2000023018,1170.24,CENTRAL LOGISTICS LTD.,WV14 6NP,
Department for Transport,Department for Transport,14/02/2013,Subsidies Private Se,Local,CENTREBUS EAST LTD,2000023124,92597.64,Centrebus East Ltd,LE4 9HR,
Department for Transport,Department for Transport,14/02/2013,Subsidies Private Se,Local,CENTREBUS EAST LTD,2000023124,233548.72,CENTREBUS LTD,LE4 9HR,
Department for Transport,Department for Transport,14/02/2013,Subsidies Private Se,Local,CHALKWELL COACH HIRE,2000023019,37659.6,Chalkwell Coach Hire,ME10 1BJ,
Department for Transport,Department for Transport,14/02/2013,Subsidies Private Se,Local,CHECKMATE TRANSPORT LTD,2000023020,2289.44,CHECKMATE TRANSPORT LTD,OL5 0EW,
Department for Transport,Department for Transport,14/02/2013,Subsidies Private Se,Local,CHELTENHAM & DIST TRACTION CO,2000023021,134380.64,CHELTENHAM & DISTRICT TRACTION CO LTD,SK3 0DU,
Department for Transport,Department for Transport,14/02/2013,Subsidies Private Se,Local,CHELTENHAM & GLOUCESTER OMNIBUS,2000023022,303391.96,Cheltenham & Gloucester Omnibus Co Ltd,SK3 0DU,
Department for Transport,Department for Transport,14/02/2013,Subsidies Private Se,Local,CITY OF CHICHESTER COACHES LTD,2000023277,61819.36,City of Chichester Coaches Ltd,RH12 4TB,
Department for Transport,Department for Transport,14/02/2013,Subsidies Private Se,Local,CLARKES MINIBUSES LTD,2000023023,780.86,CLARKES MINIBUSES LTD,TN24 8BU,
Department for Transport,Department for Transport,14/02/2013,Subsidies Private Se,Local,CLASSIC COACHES (CONTINENTAL) LTD,2000023024,25192.03,Classic Coaches (Continental) Ltd t/a Primrose,DH9 7RX,
Department for Transport,Department for Transport,14/02/2013,Subsidies Private Se,Local,COACH SERVICES LTD,2000023025,33328.37,Coach Services Ltd,IP24 1HZ,
Department for Transport,Department for Transport,14/02/2013,Subsidies Private Se,Local,COASTAL & COUNTRY COACHES,2000023026,4403.58,Coastal and Country Coaches Ltd,YO22 4PU,
Department for Transport,Department for Transport,14/02/2013,Subsidies Private Se,Local,COMMUNITY TRANSPORT BIRMINGHAM,2000023275,1665.74,Community Transport Birmingham,HX3 5AX,
Department for Transport,Department for Transport,14/02/2013,Subsidies Private Se,Local,COMPASS ROYSTON TRAVEL LTD,2000023028,12036.49,COMPASS ROYSTON TRAVEL LTD,TS18 3EG,
Department for Transport,Department for Transport,14/02/2013,Subsidies Private Se,Local,COMPASS TRAVEL (SUSSEX) LTD,2000023029,67999.14,COMPASS TRAVEL (SUSSEX) LTD,BN13 3RB,
Department for Transport,Department for Transport,14/02/2013,Subsidies Private Se,Local,COPELANDS TOURS LTD,2000023030,2294.73,Copeland's Tours (Stoke On Trent) Ltd,ST3 6HE,
Department for Transport,Department for Transport,14/02/2013,Subsidies Private Se,Local,COTSWOLD GREEN LTD,2000023223,20967.31,Cotswold Green,GL6 0BS,
Department for Transport,Department for Transport,14/02/2013,Subsidies Private Se,Local,COURTNEY COACHES LTD,2000023032,10261.9,COURTNEY COACHES (BIODIESEL),RG12 1QS,
Department for Transport,Department for Transport,14/02/2013,Subsidies Private Se,Local,COURTNEY COACHES LTD,2000023032,29183.24,COURTNEY COACHES LTD,RG12 1QS,
Department for Transport,Department for Transport,14/02/2013,Subsidies Private Se,Local,CROSSVILLE MOTOR SERVICES LIMITED,2000023260,6035.83,Crossville Motor Services Ltd,BS24 9AD,
Department for Transport,Department for Transport,14/02/2013,Subsidies Private Se,Local,CRUISERS LTD,2000023034,1837.37,Cruisers Ltd,RH1 4DP,
Department for Transport,Department for Transport,14/02/2013,Subsidies Private Se,Local,CUCKMERE COMMUNITY BUS,2000023035,2829.9,CUCKMERE COMMUNITY BUS,BN26 5RB,
Department for Transport,Department for Transport,14/02/2013,Subsidies Private Se,Local,CUMBRIA COACHES LTD,2000023036,2132.27,CUMBRIA COACHES LTD,CA1 3NQ,
Department for Transport,Department for Transport,14/02/2013,Subsidies Private Se,Local,CUMFYBUS LTD,2000023037,118472.05,CUMFYBUS LTD.,PR9 7PL,
Department for Transport,Department for Transport,14/02/2013,Subsidies Private Se,Local,D & H HARROD (COACHES) LTD,2000023038,2992.72,D & H Harrod (Coaches) Ltd,PE38 9LU,
Department for Transport,Department for Transport,14/02/2013,Subsidies Private Se,Local,DAMORY COACHES,2000023041,47846.38,DAMORY COACHES,BH15 2PR,
Department for Transport,Department for Transport,14/02/2013,Subsidies Private Se,Local,DEVON GENERAL LTD,2000023042,617449.56,Devon General Ltd,SK3 0DU,
Department for Transport,Department for Transport,14/02/2013,Subsidies Private Se,Local,DOLPHIN COACHES,2000023238,1267.27,Dolphin Coaches,BH21 1HB,
Department for Transport,Department for Transport,14/02/2013,Subsidies Private Se,Local,EAST MIDLAND MOTOR SERVICE,2000023045,339734.08,Stagecoach East Midlands,SK3 0DU,
Department for Transport,Department for Transport,14/02/2013,Subsidies Private Se,Local,EAST MIDLAND MOTOR SERVICE,2000023045,259146.66,Stagecoach Yorkshire,SK3 0DU,
Department for Transport,Department for Transport,14/02/2013,Subsidies Private Se,Local,EAST SURREY RURAL TRANSPORT,2000023218,3800.24,East Surrey Rural Transport Partnership,RH8 0BT,
Department for Transport,Department for Transport,14/02/2013,Subsidies Private Se,Local,EAST YORKS MOTOR SERVICES LTD,2000023046,503011.6,EAST YORKS MOTOR SERVICES LTD,HU3 2RS,
Department for Transport,Department for Transport,14/02/2013,Subsidies Private Se,Local,EDDIE BROWN TOURS LTD,2000023247,31024.22,Eddie Brown Tours Ltd,LS23 7EG,
Department for Transport,Department for Transport,14/02/2013,Subsidies Private Se,Local,,2000023050,1288,,
Department for Transport,Department for Transport,14/02/2013,Subsidies Private Se,Local,FAIRWAY RHODES TRAVEL,2000023232,2870.95,Fairway Rhodes Travel,HU2 0QE,
Department for Transport,Department for Transport,14/02/2013,Subsidies Private Se,Local,FELLRUNNER VILLAGE BUS LTD,2000023052,645.68,Fellrunner Village Bus Ltd,CA10 1JQ,
Department for Transport,Department for Transport,14/02/2013,Subsidies Private Se,Local,FINGLANDS COACHWAYS,2000023053,65294.35,Finglands Coachways Ltd,M14 5LJ,
Department for Transport,Department for Transport,14/02/2013,Subsidies Private Se,Local,FIRST BADGERLINE,2000023054,644881.15,First Bristol Buses Ltd t/a Badgerline,BS24 9AY,
Department for Transport,Department for Transport,14/02/2013,Subsidies Private Se,Local,FIRST BADGERLINE,2000023054,672474.72,FIRST BRISTOL BUSES LTD T/A CITY LINE,BS24 9AY,
Department for Transport,Department for Transport,14/02/2013,Subsidies Private Se,Local,FIRST BRADFORD LTD,2000023056,490760.14,FIRST WEST YORKSHIRE LTD,BD4 8SP,
Department for Transport,Department for Transport,14/02/2013,Subsidies Private Se,Local,FIRST COACHES,2000023073,40228.87,First Coaches,LE4 0DA,
Department for Transport,Department for Transport,14/02/2013,Subsidies Private Se,Local,FIRST DEVON & CORNWALL LTD,2000023059,495277.53,FIRST DEVON AND CORNWALL LTD,PL9 7JT,
Department for Transport,Department for Transport,14/02/2013,Subsidies Private Se,Local,FIRST DORSET,2000023063,184971.8,FIRST HAMPSHIRE & DORSET LTD,SO14 0JW,
Department for Transport,Department for Transport,14/02/2013,Subsidies Private Se,Local,FIRST EASTERN COUNTIES BUSES LTD,2000023060,687187.06,FIRST EASTERN COUNTIES BUSES LTD,LE4 0DA,
Department for Transport,Department for Transport,14/02/2013,Subsidies Private Se,Local,FIRST ESSEX BUSES,2000023061,834421.97,FIRST ESSEX BUSES LTD,LE4 0DA,
Department for Transport,Department for Transport,14/02/2013,Subsidies Private Se,Local,,2000023249,1430.95,David Ogden Coaches,,
Department for Transport,Department for Transport,14/02/2013,Subsidies Private Se,Local,FIRST HALIFAX,2000023062,256100.5,FIRST HALIFAX,HX1 2RF,
Department for Transport,Department for Transport,14/02/2013,Subsidies Private Se,Local,FIRST HAMPSHIRE & DORSET LTD,2000023065,195438.47,FIRST SOUTHAMPTON,SO14 0JW,
Department for Transport,Department for Transport,14/02/2013,Subsidies Private Se,Local,FIRST HAMPSHIRE & DORSET LTD,2000023064,301259.38,FIRST PROVINCIAL,SO14 0JW,
Department for Transport,Department for Transport,14/02/2013,Subsidies Private Se,Local,FIRST HUDDERSFIELD,2000023066,247558.12,FIRST HUDDERSFIELD,HD2 1AG,
Department for Transport,Department for Transport,14/02/2013,Subsidies Private Se,Local,FIRST LEEDS LTD,2000023067,1033365.17,FIRST LEEDS,LS3 1LH,
Department for Transport,Department for Transport,14/02/2013,Subsidies Private Se,Local,FIRST LONDON,2000023055,218417.91,FIRST BEELINE BUSES,W2 1TY,
Department for Transport,Department for Transport,14/02/2013,Subsidies Private Se,Local,FIRST MANCHESTER,2000023243,117521.26,First Manchester - Birkenhead,LS10 1PL,
Department for Transport,Department for Transport,14/02/2013,Subsidies Private Se,Local,FIRST MANCHESTER,2000023243,82239.07,First Manchester - Chester,LS10 1PL,
Department for Transport,Department for Transport,14/02/2013,Subsidies Private Se,Local,FIRST MANCHESTER (WIGAN),2000023068,369902.34,FIRST MANCHESTER (BURY),LS10 1PL,
Department for Transport,Department for Transport,14/02/2013,Subsidies Private Se,Local,FIRST MANCHESTER (WIGAN),2000023068,113963.27,First Manchester T/A First Pennine,LS10 1PL,
Department for Transport,Department for Transport,14/02/2013,Subsidies Private Se,Local,FIRST MANCHESTER (WIGAN),2000023068,456831.51,First Manchester Ltd (Oldham),LS10 1PL,
Department for Transport,Department for Transport,14/02/2013,Subsidies Private Se,Local,FIRST MANCHESTER (WIGAN),2000023068,364745.34,FIRST MANCHESTER LTD (BOLTON),LS10 1PL,
Department for Transport,Department for Transport,14/02/2013,Subsidies Private Se,Local,FIRST MANCHESTER (WIGAN),2000023068,315121.34,FIRST MANCHESTER (QUEENS ROAD),LS10 1PL,
Department for Transport,Department for Transport,14/02/2013,Subsidies Private Se,Local,FIRST PMT LTD,2000023070,417829.86,FIRST POTTERIES LIMITED,LE4 0DA,
Department for Transport,Department for Transport,14/02/2013,Subsidies Private Se,Local,FIRST SOMERSET & AVON LTD,2000023071,149262.38,FIRST SOMERSET & AVON,BS5 0DZ,
Department for Transport,Department for Transport,14/02/2013,Subsidies Private Se,Local,FIRST SOUTH YORKSHIRE LTD,2000023072,1479247.78,FIRST SOUTH YORKSHIRE LTD,LS10 1PL,
Department for Transport,Department for Transport,14/02/2013,Subsidies Private Se,Local,FIRST WYVERN,2000023069,270842.59,FIRST MIDLAND RED BUSES LTD,LE4 0DA,
Department for Transport,Department for Transport,14/02/2013,Subsidies Private Se,Local,FIRST YORK (RIDER YORK) LTD,2000023074,244240.52,FIRST YORK (Rider York) Limited,YO10 3WW,
Department for Transport,Department for Transport,14/02/2013,Subsidies Private Se,Local,FLEET BUZZ LTD,2000023031,33453.79,Fleet Buzz Ltd,PO19 8DG,
Department for Transport,Department for Transport,14/02/2013,Subsidies Private Se,Local,FLIGHTS COACH TRAVEL,2000023075,225102.91,FLIGHT HALLMARK T/A WESSEX CONNECT,B7 5JJ,
Department for Transport,Department for Transport,14/02/2013,Subsidies Private Se,Local,FORD COACHES,2000023076,4867.81,Fords Coaches Ltd,CM3 6BZ,
Department for Transport,Department for Transport,14/02/2013,Subsidies Private Se,Local,FREEDOM TRAVEL COACHES LTD,2000023222,3941.47,Freedom Travel Coaches,CB7 4BE,
Department for Transport,Department for Transport,14/02/2013,Subsidies Private Se,Local,FREESTONES COACHES LTD,2000023077,3555.55,FREESTONES COACHES LTD,NR20 4DL,
Department for Transport,Department for Transport,14/02/2013,Subsidies Private Se,Local,G & J HOLMES (COACHES) LTD,2000023078,15371.63,G & J HOLMES COACHES LTD,S45 9LY,
Department for Transport,Department for Transport,14/02/2013,Subsidies Private Se,Local,GALLOWAY EUROPEAN COACHLINES LTD,2000023079,23347.42,Galloway European Coachlines Ltd,IP14 5RR,
Department for Transport,Department for Transport,14/02/2013,Subsidies Private Se,Local,GILLINGHAM COACHES,2000023080,2344.36,GILLINGHAM COACHES,DH9 8JZ,
Department for Transport,Department for Transport,14/02/2013,Subsidies Private Se,Local,GO AHEAD NORTHERN,2000023082,1051017.26,Go North East,NE8 2UA,
Department for Transport,Department for Transport,14/02/2013,Subsidies Private Se,Local,GO AHEAD NORTHERN,2000023082,893437.59,GO NORTHERN,NE8 2UA,
Department for Transport,Department for Transport,14/02/2013,Subsidies Private Se,Local,GO RIDE COMMUNITY,2000023255,7790.33,Go Ride Community Interest Company,OX14 3UY,
Department for Transport,Department for Transport,14/02/2013,Subsidies Private Se,Local,GO WEST TRAVEL LTD,2000023083,154628.53,NORFOLK GREEN,PE30 4NG,
Department for Transport,Department for Transport,14/02/2013,Subsidies Private Se,Local,GRAYLINE COACHES,2000023084,4053.41,GRAYLINE COACHES,OX26 6HU,
Department for Transport,Department for Transport,14/02/2013,Subsidies Private Se,Local,GRIMSBY & CLEETHORPES TRANSPORT,2000023085,168941.67,Grimsby Cleethorpes Transport,SK3 0DU,
Department for Transport,Department for Transport,14/02/2013,Subsidies Private Se,Local,H & H MOTORS,2000023086,5747.92,H & H MOTORS,HR9 7AQ,
Department for Transport,Department for Transport,14/02/2013,Subsidies Private Se,Local,H C CHAMBERS & SON LTD,2000023087,52184.35,H C Chambers & Son Ltd,CO3 0UL,
Department for Transport,Department for Transport,14/02/2013,Subsidies Private Se,Local,H S NEAVE & SON LTD,2000023088,3244.53,H S NEAVE & SON LTD,NR29 5AA,
Department for Transport,Department for Transport,14/02/2013,Subsidies Private Se,Local,HALIFAX BUS CO LTD,2000023089,22554.9,HALIFAX BUS COMPANY LTD,HX6 2SB,
Department for Transport,Department for Transport,14/02/2013,Subsidies Private Se,Local,HARGREAVES COACHES,2000023227,1074.51,Hargreaves Coaches,BD23 5DE,
Department for Transport,Department for Transport,14/02/2013,Subsidies Private Se,Local,HARROGATE & DISTRICT TRAVEL LTD,2000023091,159716.1,Harrogate & District Travel Ltd,HG2 7NY,
Department for Transport,Department for Transport,14/02/2013,Subsidies Private Se,Local,HARROGATE COACH TRAVEL LTD,2000023092,41622.92,HARROGATE COACH TRAVEL,YO26 8BE,
Department for Transport,Department for Transport,14/02/2013,Subsidies Private Se,Local,HASTINGS & DISTRICT TRANSPORT LTD,2000023181,176011.16,HASTINGS & DISTRICT TRANSPORT LIMITED,CT1 2SY,
Department for Transport,Department for Transport,14/02/2013,Subsidies Private Se,Local,HEDINGHAM & DIST OMNIBUSES LTD,2000023094,36436.89,Hedingham Omnibuses Ltd,CO9 3LB,
Department for Transport,Department for Transport,14/02/2013,Subsidies Private Se,Local,HODSONS COACHES (CLITHEROE) LTD,2000023098,9051.3,HODSONS COACHES (CLITHEROE) LTD,BB7 1QU,
Department for Transport,Department for Transport,14/02/2013,Subsidies Private Se,Local,HOLLOWAYS COACHES LTD,2000023099,5589.51,HOLLOWAYS COACHES LTD,DN16 1TP,
Department for Transport,Department for Transport,14/02/2013,Subsidies Private Se,Local,HORNSBY TRAVEL SERVICES,2000023100,27066.52,HORNSBY TRAVEL SERVICES LIMITED,DN16 2NB,
Department for Transport,Department for Transport,14/02/2013,Subsidies Private Se,Local,HORSELESS CARRIAGE SERVICES,2000023101,7976.13,HORSELESS CARRIAGE SERVICES,BD23 5BS,
Department for Transport,Department for Transport,14/02/2013,Subsidies Private Se,Local,IANS MIDI COACHES,2000023103,883.63,IANS MIDI COACHES,CA5 7LA,
Department for Transport,Department for Transport,14/02/2013,Subsidies Private Se,Local,IMPERA BUS & COACH LTD,2000023246,19708.79,Impera Bus & Coach Ltd,CH46 4UA,
Department for Transport,Department for Transport,14/02/2013,Subsidies Private Se,Local,INVICTABUS LTD,2000023248,3495.39,Invictabus Limited,ME20 7SP,
Department for Transport,Department for Transport,14/02/2013,Subsidies Private Se,Local,IRVING OF DALSTON,2000023105,1181.07,IRVING OF DALSTON,CA5 7LB,
Department for Transport,Department for Transport,14/02/2013,Subsidies Private Se,Local,JOHN SMITH & SONS LIMITED,2000023107,4186.6,JOHN SMITH & SONS LTD,YO7 3HE,
Department for Transport,Department for Transport,14/02/2013,Subsidies Private Se,Local,KEIGHLEY & DISTRICT TRAVEL LTD,2000023110,163932.13,Keighley and District Travel Ltd,BD21 2JX,
Department for Transport,Department for Transport,14/02/2013,Subsidies Private Se,Local,KENT COACH TOURS LTD,2000023111,3119.88,Kent Coach Tours Ltd,TN23 6JW,
Department for Transport,Department for Transport,14/02/2013,Subsidies Private Se,Local,KINCHBUS LTD,2000023113,77836.48,KINCHBUS LTD,LE11 5QS,
Department for Transport,Department for Transport,14/02/2013,Subsidies Private Se,Local,KIRKBY LONSDALE COACH HIRE LTD,2000023114,6872.93,KIRKBY LONSDALE COACH HIRE LTD,LA5 9EU,
Department for Transport,Department for Transport,14/02/2013,Subsidies Private Se,Local,LANCASHIRE UNITED LTD (TRANSDEV),2000023115,210942.31,Lancashire United Limited(Transdev),BD21 2JX,
Department for Transport,Department for Transport,14/02/2013,Subsidies Private Se,Local,LANGSTON & TASKER,2000023116,3045.97,LANGSTON & TASKER,MK18 2PZ,
Department for Transport,Department for Transport,14/02/2013,Subsidies Private Se,Local,LIBRA TRAVEL LTD,2000023117,4016.87,LIBRA TRAVEL LTD,BA11 2RG,
Department for Transport,Department for Transport,14/02/2013,Subsidies Private Se,Local,LINBURG TOURING LTD,2000023118,9836.21,LINBURG TOURING LTD,S9 5JF,
Department for Transport,Department for Transport,14/02/2013,Subsidies Private Se,Local,LONGRIDGE COACHES,2000023123,4022.54,LONGRIDGE COACHES,PR3 3ZA,
Department for Transport,Department for Transport,14/02/2013,Subsidies Private Se,Local,M & M COACHES LIMITED,2000023125,11655.04,M & M COACHES LIMITED,BB5 0RW,
Department for Transport,Department for Transport,14/02/2013,Subsidies Private Se,Local,M K METRO LTD,2000022991,1199025.31,Arriva The Shires,LU4 8DS,
Department for Transport,Department for Transport,14/02/2013,Subsidies Private Se,Local,M K METRO LTD,2000022991,237826.23,M K METRO LTD,LU4 8DS,
Department for Transport,Department for Transport,14/02/2013,Subsidies Private Se,Local,MAGHULL COACHES,2000023126,7018.51,MAGHULL COACHES LTD,L20 8AE,
Department for Transport,Department for Transport,14/02/2013,Subsidies Private Se,Local,MANCHESTER COMMUNITY TRANSPORT LTD,2000023127,11869.8,Manchester Community Transport Ltd,M23 0BX,
Department for Transport,Department for Transport,14/02/2013,Subsidies Private Se,Local,MAY GURNEY,2000023200,4816.3,MAY GURNEY FLEET AND PASSENGER SERVICES LIMITED,LN6 3RS,
Department for Transport,Department for Transport,14/02/2013,Subsidies Private Se,Local,MH ELCOCK AND SON LTD,2000023130,1238.29,M H Elcock & Son Ltd,TF7 5HA,
Department for Transport,Department for Transport,14/02/2013,Subsidies Private Se,Local,MIDLAND CLASSIC LTD,2000023132,35009.1,MIDLAND CLASSIC LTD.,DE11 9RE,
Department for Transport,Department for Transport,14/02/2013,Subsidies Private Se,Local,MIDLAND GENERAL OMNIBUS CO LTD,2000023133,9684.46,MIDLAND GENERAL OMNIBUS CO. LTD.,DE75 7BG,
Department for Transport,Department for Transport,14/02/2013,Subsidies Private Se,Local,MIDLAND RED (NORTH) LTD,2000023134,750111.27,ARRIVA MIDLANDS NORTH LTD,LE4 8ZN,
Department for Transport,Department for Transport,14/02/2013,Subsidies Private Se,Local,MIDLAND RED (SOUTH) LTD,2000023135,422674.47,STAGECOACH MIDLAND RED (SOUTH) LTD,SK3 0DU,
Department for Transport,Department for Transport,14/02/2013,Subsidies Private Se,Local,MINIBUS EXECUTIVE TRAVEL,2000023263,1319.95,Minibus Executive Travel Limited,WD24 7GP,
Department for Transport,Department for Transport,14/02/2013,Subsidies Private Se,Local,MINSTERLEY MOTORS SERVICES LTD,2000023136,20719.08,MINSTERLEY MOTORS LTD,SY5 0LZ,
Department for Transport,Department for Transport,14/02/2013,Subsidies Private Se,Local,MOVING PEOPLE LTD,2000023219,8489.44,MOVING PEOPLE,BB2 7JA,
Department for Transport,Department for Transport,14/02/2013,Subsidies Private Se,Local,N N CRESSWELL,2000023139,1447.75,N N Cresswell Coach Hire,WR11 4RA,
Department for Transport,Department for Transport,14/02/2013,Subsidies Private Se,Local,NATIONAL EXPRESS LTD,2000023140,627012.51,NATIONAL EXPRESS LTD,B5 6DD,
Department for Transport,Department for Transport,14/02/2013,Subsidies Private Se,Local,NATIONAL EXPRESS LTD,2000023140,148111.72,NATIONAL EXPRESS LTD (CAMBRIDGE COACH SERVICES),B5 6DD,
Department for Transport,Department for Transport,14/02/2013,Subsidies Private Se,Local,NATIONAL EXPRESS LTD,2000023140,104009.67,NATIONAL EXPRESS LTD (AIRLINKS),B5 6DD,
Department for Transport,Department for Transport,14/02/2013,Subsidies Private Se,Local,NETWORK COLCHESTER LTD,2000023010,788182.55,TGMGroup Ltd T/A Network Colchester,CM20 1DU,
Department for Transport,Department for Transport,14/02/2013,Subsidies Private Se,Local,NEW ENTERPRISE COACHES,2000023261,8406.32,New Enterprise Coaches Ltd,LU4 8DS,
Department for Transport,Department for Transport,14/02/2013,Subsidies Private Se,Local,Newbury and District Ltd,2000023241,22764.15,Newbury and District Ltd,RG19 6HN,
Department for Transport,Department for Transport,14/02/2013,Subsidies Private Se,Local,NORTHUMBRIA MINI COACHES,2000023270,1396.56,Northumbria Mini Coaches,NE63 0AG,
Department for Transport,Department for Transport,14/02/2013,Subsidies Private Se,Local,NOTTS & DERBY TRACTION CO LTD,2000023143,31104.11,Notts & Derby Traction Co Ltd,DE75 7BG,
Department for Transport,Department for Transport,14/02/2013,Subsidies Private Se,Local,NU-VENTURE COACHES LTD,2000023144,70391.79,NU-VENTURE COACHES LTD,ME20 7JN,
Department for Transport,Department for Transport,14/02/2013,Subsidies Private Se,Local,OLYMPIA TRAVEL UK LTD,2000023146,5285.18,OLYMPIA TRAVEL UK LIMITED,WN2 3PH,
Department for Transport,Department for Transport,14/02/2013,Subsidies Private Se,Local,OXFORD BUS CO,2000023147,354649.96,City of Oxford Motor Sevices Ltd,OX4 6GA,
Department for Transport,Department for Transport,14/02/2013,Subsidies Private Se,Local,,2000023149,17160.65,CATTERALL'S COACH & TRAVEL SERVICES,CV33 0EA,
Department for Transport,Department for Transport,14/02/2013,Subsidies Private Se,Local,PEARSONS COACHES,2000023150,2368.51,PEARSONS COACHES,HU11 4RR,
Department for Transport,Department for Transport,14/02/2013,Subsidies Private Se,Local,PENNINE MOTOR SERVICES,2000023151,19327.36,PENNINE MOTOR SERVICES,BD23 1TE,
Department for Transport,Department for Transport,14/02/2013,Subsidies Private Se,Local,PERRYMANS BUSES,2000023152,42459.84,PERRYMANS BUSES LTD,TD15 1UN,
Department for Transport,Department for Transport,14/02/2013,Subsidies Private Se,Local,PLATINUM COACHES,2000023217,1755.07,PLATINUM COACHES,PR26 7QL,
Department for Transport,Department for Transport,14/02/2013,Subsidies Private Se,Local,PLUMLINE COACHES,2000023153,570.37,PLUMLINE COACHES,NE46 4DE,
Department for Transport,Department for Transport,14/02/2013,Subsidies Private Se,Local,PONTEFRACT MOTORWAYS,2000023190,2738.25,STRINGERS PONTEFRACT MOTORWAYS,WF8 1PN,
Department for Transport,Department for Transport,14/02/2013,Subsidies Private Se,Local,QUANTOCK MOTOR SERVICES LTD,2000023155,5737.64,QUANTOCK MOTOR SERVICES LTD,TA4 3BU,
Department for Transport,Department for Transport,14/02/2013,Subsidies Private Se,Local,R BULLOCK & CO TRANSPORT LTD,2000023156,11158.94,RALPH BULLOCK & CO (TRANSPORT) LTD,SK8 2AG,
Department for Transport,Department for Transport,14/02/2013,Subsidies Private Se,Local,R DRURY COACHES,2000023157,1130.62,R Drury Coaches,DN14 6LP,
Department for Transport,Department for Transport,14/02/2013,Subsidies Private Se,Local,RED EAGLE ,2000023228,3899.83,Red Eagle,HP22 5EZ,
Department for Transport,Department for Transport,14/02/2013,Subsidies Private Se,Local,REGAL BUSWAYS LTD,2000023162,66937.54,REGAL BUSWAYS LTD,SS3 9WB,
Department for Transport,Department for Transport,14/02/2013,Subsidies Private Se,Local,RELIANCE MOTOR SERVICES,2000023163,18613.06,Reliance Motor Services,YO61 1ES,
Department for Transport,Department for Transport,14/02/2013,Subsidies Private Se,Local,RENOWN TRANSPORT SERVICES LTD,2000023273,29237.52,Renown Transport Service Ltd,TN39 3LG,
Department for Transport,Department for Transport,14/02/2013,Subsidies Private Se,Local,RLB TRANSPORT & REPAIRS LIMITED,2000023252,12582.67,RLB Transport & Repairs Ltd,S70 2RP,
Department for Transport,Department for Transport,14/02/2013,Subsidies Private Se,Local,ROBERT BENSON COACH HIRE,2000023166,1631.97,ROBERT BENSON COACH HIRE,CA14 1ES,
Department for Transport,Department for Transport,14/02/2013,Subsidies Private Se,Local,ROSS TRAVEL,2000023167,10478.52,ROSS TRAVEL,WF7 5BL,
Department for Transport,Department for Transport,14/02/2013,Subsidies Private Se,Local,ROSSENDALE TRAVEL LTD,2000023272,11632.98,Rossendale Travel Ltd,BB6 7RP,
Department for Transport,Department for Transport,14/02/2013,Subsidies Private Se,Local,ROYS MINIBUSES LTD,2000023271,1847.65,Roy's Minibuses Ltd,NN9 5LG,
Department for Transport,Department for Transport,14/02/2013,Subsidies Private Se,Local,SELWYNS TRAVEL,2000023269,7330.81,Selwyns Travel Ltd,SK6 2QN,
Department for Transport,Department for Transport,14/02/2013,Subsidies Private Se,Local,SHAFTESBURY & DIST MOTOR SERVS LTD,2000023170,1549.63,SHAFTESBURY & DISTRICT MOTOR SERVICES LTD,SP7 0EB,
Department for Transport,Department for Transport,14/02/2013,Subsidies Private Se,Local,SHERWOOD TRAVEL,2000023234,1426.21,Sherwood Travel,DN40 1QR,
Department for Transport,Department for Transport,14/02/2013,Subsidies Private Se,Local,SHOREYS TRAVEL,2000023172,2656.92,SHOREY'S TRAVEL,MK45 2AE,
Department for Transport,Department for Transport,14/02/2013,Subsidies Private Se,Local,SIMONDS,2000023173,30354.98,Simonds of Botesdale Ltd,IP22 4GX,
Department for Transport,Department for Transport,14/02/2013,Subsidies Private Se,Local,SKILLS MOTOR COACHES LTD,2000023230,5389.84,Skills Motor Coaches Ltd,NG6 8LY,
Department for Transport,Department for Transport,14/02/2013,Subsidies Private Se,Local,SOLENT BLUE LINE,2000023174,156531.26,Go South Coast - Solent Blue Line,BH15 2PR,
Department for Transport,Department for Transport,14/02/2013,Subsidies Private Se,Local,SOUTHERN VECTIS,2000023175,222108.52,Southern Vectis Omnibus Co Ltd,PO30 1RD,
Department for Transport,Department for Transport,14/02/2013,Subsidies Private Se,Local,SOVEREIGN CARS & COACHES,2000023254,688.79,Sovereign Cars & Coaches,DT7 3RD,
Department for Transport,Department for Transport,14/02/2013,Subsidies Private Se,Local,STAGECOACH CAMBUS,2000023177,193239.16,STAGECOACH CAMBUS,SK3 0DU,
Department for Transport,Department for Transport,14/02/2013,Subsidies Private Se,Local,STAGECOACH CAMBUS,2000023177,149239.43,Stagecoach CAMBUS- Bio diesel,SK3 0DU,
Department for Transport,Department for Transport,14/02/2013,Subsidies Private Se,Local,STAGECOACH EAST,2000023204,441648.17,STAGECOACH EAST,SK3 0DU,
Department for Transport,Department for Transport,14/02/2013,Subsidies Private Se,Local,STAGECOACH EAST (BEDFORDSHIRE),2000023240,283696.32,Stagecoach East - Bedfordshire,CB4 0DN,
Department for Transport,Department for Transport,14/02/2013,Subsidies Private Se,Local,STAGECOACH EAST KENT,2000023178,716034.88,STAGECOACH IN EAST KENT,SK3 0DU,
Department for Transport,Department for Transport,14/02/2013,Subsidies Private Se,Local,STAGECOACH IN CUMBRIA,2000023179,664985.95,STAGECOACH IN CUMBRIA,SK3 0DU,
Department for Transport,Department for Transport,14/02/2013,Subsidies Private Se,Local,STAGECOACH IN EAST SUSSEX,2000023047,143226.11,Stagecoach in East Sussex,CT1 2SY,
Department for Transport,Department for Transport,14/02/2013,Subsidies Private Se,Local,STAGECOACH IN HANTS & SURREY,2000023180,184809.26,STAGECOACH - HANTS & SURREY,SK3 0DU,
Department for Transport,Department for Transport,14/02/2013,Subsidies Private Se,Local,STAGECOACH IN PORTMOUTH & S DOWNS,2000023182,448862.91,STAGECOACH IN PORTSMOUTH AND THE SOUTH DOWNS,SK3 0DU,
Department for Transport,Department for Transport,14/02/2013,Subsidies Private Se,Local,STAGECOACH MANCHESTER,2000023183,1483281.77,STAGECOACH MANCHESTER,SK3 0DU,
Department for Transport,Department for Transport,14/02/2013,Subsidies Private Se,Local,STAGECOACH MERSEYSIDE,2000023184,385311.49,STAGECOACH MERSEYSIDE,SK3 0DU,
Department for Transport,Department for Transport,14/02/2013,Subsidies Private Se,Local,STAGECOACH NORTH WEST LTD,2000023164,336065.28,STAGECOACH NORTH WEST LTD,L11 0BB,
Department for Transport,Department for Transport,14/02/2013,Subsidies Private Se,Local,STAGECOACH SOUTH EAST,2000023185,306556.14,STAGECOACH SOUTH,SK3 0DU,
Department for Transport,Department for Transport,14/02/2013,Subsidies Private Se,Local,STAGECOACH VISCOUNT,2000023186,149120.23,STAGECOACH VISCOUNT,SK3 0DU,
Department for Transport,Department for Transport,14/02/2013,Subsidies Private Se,Local,STAR TRAVEL HOLIDAYS LTD,2000023224,2907.69,STAR TRAVEL,WF5 8NF,
Department for Transport,Department for Transport,14/02/2013,Subsidies Private Se,Local,STAR TRAVEL SERVICES,2000023188,4287.97,Star Travel Services,HP21 7RR,
Department for Transport,Department for Transport,14/02/2013,Subsidies Private Se,Local,STEPHENSONS OF EASINGWOLD LTD,2000023189,74728.9,STEPHENSONS OF EASINGWOLD LTD,YO61 1SR,
Department for Transport,Department for Transport,14/02/2013,Subsidies Private Se,Local,STEVENSONS OF UTTOXETER LTD,2000022987,562838.93,ARRIVA MIDLANDS LTD,LE4 8PH,
Department for Transport,Department for Transport,14/02/2013,Subsidies Private Se,Local,STEVENSONS OF UTTOXETER LTD,2000022987,160029.38,STEVENSONS OF UTTOXETER LTD,LE4 8PH,
Department for Transport,Department for Transport,14/02/2013,Subsidies Private Se,Local,SUSSEX COACHES,2000023259,5380.88,Sussex Coaches,RH13 8PB,
Department for Transport,Department for Transport,14/02/2013,Subsidies Private Se,Local,SWINDON & DISTRICT,2000023192,206632.16,SWINDON & DISTRICT,SK3 0DU,
Department for Transport,Department for Transport,14/02/2013,Subsidies Private Se,Local,TATES TRAVEL LTD,2000023196,67322.1,TATES TRAVEL LTD,S75 1HT,
Department for Transport,Department for Transport,14/02/2013,Subsidies Private Se,Local,TELFORD & WREKIN DC,2000023197,1154.8,TELFORD & WREKIN COUNCIL T/A INTERGRATED TRANSPORT,TF3 4LF,
Department for Transport,Department for Transport,14/02/2013,Subsidies Private Se,Local,TGM STANSTED,2000023049,36494.44,TGM Stansted,CM20 1DU,
Department for Transport,Department for Transport,14/02/2013,Subsidies Private Se,Local,THE BIG BUS COMPANY,2000023004,4088.02,THE BIG BUS COMPANY LTD,SW1W 0BS,
Department for Transport,Department for Transport,14/02/2013,Subsidies Private Se,Local,THE DIAMOND BUS COMPANY LTD,2000023043,289432.01,THE DIAMOND BUS COMPANY LTD,B7 5JJ,
Department for Transport,Department for Transport,14/02/2013,Subsidies Private Se,Local,TIGER EUROPEAN (UK) LTD,2000023256,7399.94,Tiger European (UK) Ltd,NG4 2JT,
Department for Transport,Department for Transport,14/02/2013,Subsidies Private Se,Local,TOM TAPPIN LTD,2000023198,2948.38,Guide Friday City Sightseeing Oxford,OX1 1HS,
Department for Transport,Department for Transport,14/02/2013,Subsidies Private Se,Local,TOURIST COACHES,2000023199,7353.44,Go South Coast - Tourist Coaches,BH15 2PR,
Department for Transport,Department for Transport,14/02/2013,Subsidies Private Se,Local,TRENT BUSES,2000023202,482678.52,Trent Buses,DE75 7BG,
Department for Transport,Department for Transport,14/02/2013,Subsidies Private Se,Local,UK PRIVATE VEHICLE HIRE,2000023225,5527.67,UK Private Vehicle Hire Ltd,BL6 5UE,
Department for Transport,Department for Transport,14/02/2013,Subsidies Private Se,Local,VIP CONTRACTS LTD,2000023253,15766.63,VIP Contracts Ltd,B18 5HS,
Department for Transport,Department for Transport,14/02/2013,Subsidies Private Se,Local,W H FOWLER & SONS COACHES LTD,2000023206,8603.48,W H Fowler & Sons (Coaches) Ltd,PE12 0SD,
Department for Transport,Department for Transport,14/02/2013,Subsidies Private Se,Local,WALSALL COMMUNITY TRANSPORT,2000023242,5632.16,Walsall Community Transport,WS3 3DH,
Department for Transport,Department for Transport,14/02/2013,Subsidies Private Se,Local,WEST MIDLANDS TRAVEL LTD,2000023208,4345655.82,West Midlands Travel Ltd,B9 4BZ,
Department for Transport,Department for Transport,14/02/2013,Subsidies Private Se,Local,WHIPPET COACHES LTD,2000023209,95406.63,Whippet Coaches Ltd,CB24 4UG,
Department for Transport,Department for Transport,14/02/2013,Subsidies Private Se,Local,WHITE BUS SERVICES,2000023210,7717.57,White Bus Services,SL4 4TF,
Department for Transport,Department for Transport,14/02/2013,Subsidies Private Se,Local,WHITE ROSE BUS COMPANY LTD,2000023233,83991.9,White Rose Bus Company Ltd,LE4 9HR,
Department for Transport,Department for Transport,14/02/2013,Subsidies Private Se,Local,WHITES COACHES,2000023211,8317.67,WHITES COACHES LTD,OX10 7NG,
Department for Transport,Department for Transport,14/02/2013,Subsidies Private Se,Local,WHITTAKER'S LTD,2000023231,2141.15,Whittaker's Ltd,PR26 7QL,
Department for Transport,Department for Transport,14/02/2013,Subsidies Private Se,Local,WHITTLE COACH & BUS LTD,2000023212,27722.44,WHITTLE COACH & BUS LTD,DY11 7QL,
Department for Transport,Department for Transport,14/02/2013,Subsidies Private Se,Local,WILTS & DORSET BUS CO,2000023213,550181.76,WILTS & DORSET BUS CO,BH15 2PR,
Department for Transport,Department for Transport,14/02/2013,Subsidies Private Se,Local,YORKSHIRE COASTLINER LTD,2000023214,154034.46,Yorkshire Coastliner Ltd,HG2 7NY,
Department for Transport,Department for Transport,14/02/2013,Subsidies Private Se,Local,YORKSHIRE TRACTION CO LTD,2000023215,453501.35,STAGECOACH YORKSHIRE,SK3 0DU,
Department for Transport,Department for Transport,14/02/2013,Subsidies Private Se,Local,C T PLUS CIC,2000023012,172645.71,C T PLUS CIC,E8 4RH,
Department for Transport,Department for Transport,14/02/2013,Subsidies Private Se,Local,DOCKLANDS MINIBUSES LTD,2000023044,228765.53,DOCKLANDS BUSES LTD,SW19 1DN,
Department for Transport,Department for Transport,14/02/2013,Subsidies Private Se,Local,FIRST LONDON,2000023057,2617124.98,First London,W2 1TY,
Department for Transport,Department for Transport,14/02/2013,Subsidies Private Se,Local,LONDON CENTRAL BUS CO LTD,2000023121,1739930.55,LONDON CENTRAL BUS COMPANY LTD,SW19 1DN,
Department for Transport,Department for Transport,14/02/2013,Subsidies Private Se,Local,LONDON GENERAL TRANSPORT SERVICES L,2000023122,276786.15,BLUE TRIANGLE BUSES LTD,SW19 1DN,
Department for Transport,Department for Transport,14/02/2013,Subsidies Private Se,Local,LONDON GENERAL TRANSPORT SERVICES L,2000023122,2483476.51,LONDON GENERAL TRANSPORT SERVICES LTD,SW19 1DN,
Department for Transport,Department for Transport,14/02/2013,Subsidies Private Se,Roads,MSRS Freight Grant,2000023294,744656.66,MSRS Freight Grant,,
Department for Transport,Department for Transport,14/02/2013,Subsidies Private Se,Roads,MSRS Freight Grant,2000023306,6590.3,MSRS Freight Grant,,
Department for Transport,Department for Transport,14/02/2013,Subsidies Private Se,Roads,MSRS Freight Grant,2000023306,4547.72,MSRS Freight Grant,,
Department for Transport,Department for Transport,14/02/2013,Support Services,DASH,HIGHWAYS AGENCY,2000023313,1589.11,#,B1 1RN,
Department for Transport,Department for Transport,14/02/2013,Support Services,Group Finance,DD ACCRAILWAY PENS TRUSTEE,2000023298,961.09,#,DL3 6XR,
Department for Transport,Department for Transport,14/02/2013,Support Services,Group Finance,DD ACCRAILWAY PENS TRUSTEE,2000023298,3405.27,#,DL3 6XR,
Department for Transport,Department for Transport,14/02/2013,Support Services,Group Finance,DD ACCRAILWAY PENS TRUSTEE,2000023298,3062.89,#,DL3 6XR,
Department for Transport,Department for Transport,14/02/2013,Support Services,Group Finance,RAILWAYS PENSION MANAGEMENT LT,2000023299,164908.71,#,DL3 6EH,
Department for Transport,Department for Transport,14/02/2013,Telephone charges,Rail Accident Investigation Branch,VERIZON BUSINESS,2000023292,290.76,#,RG2 6DA,
Department for Transport,Department for Transport,14/02/2013,Telephone Line Rent,Rail Accident Investigation Branch,VERIZON BUSINESS,2000023292,267.84,#,RG2 6DA,
Department for Transport,Department for Transport,14/02/2013,Traffic Survey & Cou,Roads,SERCO LIMITED,2000023291,11177,#,RG27 9UY,
Department for Transport,Department for Transport,14/02/2013,Training,Group Finance,ELIESHA TRAINING,2000023278,7417.91,#,NE4 7YB,
Department for Transport,Department for Transport,14/02/2013,Travel Expenses UK,Rail Accident Investigation Branch,A1 RUSHMOOR RADIO TAXIS LTD,2000023308,731.4,#,GU11 1SJ,
Department for Transport,Department for Transport,15/02/2013,Agency Staff Costs,Group HR,HAYS PERSONNEL SERVICE LTD,2000023328,3323.28,#,KT3 4JQ,
Department for Transport,Department for Transport,15/02/2013,Agency Staff Costs,Group Finance,ALLEN LANE FINANCIAL RECRUITMENT,2000023331,4036.38,#,BN11 2BW,
Department for Transport,Department for Transport,15/02/2013,Agency Staff Costs,Refran Prog Off,LA INTERNATIONAL COMPUTER,2000023339,11165.62,#,ST1 5UB,
Department for Transport,Department for Transport,15/02/2013,Agency Staff Costs,Group Finance,PARITY RESOURCES LTD,2000023346,7560,#,SW19 3RU,
Department for Transport,Department for Transport,15/02/2013,Car Hire and Leasing,Permanent Secretary,GOVERNMENT CAR & DESPATCH AGENCY,2000023353,7008.66,#,SW8 5AX,
Department for Transport,Department for Transport,15/02/2013,Car Hire and Leasing,Permanent Secretary,GOVERNMENT CAR & DESPATCH AGENCY,2000023353,7008.66,#,SW8 5AX,
Department for Transport,Department for Transport,15/02/2013,Electricity,Air Accident Investigation Branch,FLOGAS UK LIMITED,2000023352,5720.16,#,LE7 1PF,
Department for Transport,Department for Transport,15/02/2013,Estate Legal Advisor,Local,ROYAL MAIL,2000023341,787.72,#,PE4 5PG,
Department for Transport,Department for Transport,15/02/2013,Hotel&Accom Costs,Air Accident Investigation Branch,REDFERN TRAVEL LTD,2000023348,4520.46,REDFERN TRAVEL - NOV 12 - AAIB,BD1 3AZ,
Department for Transport,Department for Transport,15/02/2013,Hotel&Accom Costs,Roads,,2000023357,876.3,*Trip from 20.01.13 To  25.01.13 to   Tokyo,,
Department for Transport,Department for Transport,15/02/2013,Legal Consultancy,Group HR,DFT ONE TIME VENDOR,2000023395,12000,Withers LLP,SW1P 4DR,
Department for Transport,Department for Transport,15/02/2013,Legal Consultancy,Refran Prog Off,,2000023349,460,#,,
Department for Transport,Department for Transport,15/02/2013,Legal Consultancy,Refran Prog Off,,2000023350,2706,#,,
Department for Transport,Department for Transport,15/02/2013,Machinery Rental,General Counsel's Office,DANWOOD GROUP LTD,2000023334,445.4,#,LN6 3DG,
Department for Transport,Department for Transport,15/02/2013,Net Pay,Roads,DFT ONE TIME VENDOR,2000023394,2367.62,,
Department for Transport,Department for Transport,15/02/2013,Net Pay,General Counsel's Office,DFT ONE TIME VENDOR,2000023393,3754.2,JACKWOODING,SW1P 4DR,
Department for Transport,Department for Transport,15/02/2013,Occup Health Scheme,Group HR,HEALTH MANAGEMENT LTD,2000023337,2277,#,BN8 5NN,
Department for Transport,Department for Transport,15/02/2013,Other Travel Costs,Roads,,2000023357,85.44,*Trip from 20.01.13 To  25.01.13 to   Tokyo,,
Department for Transport,Department for Transport,15/02/2013,Property Maintenance,Air Accident Investigation Branch,TEAM Q MAINTENANCE LIMITED,2000023332,1410,#,SG13 7AX,
Department for Transport,Department for Transport,15/02/2013,Rail Travel,Air Accident Investigation Branch,REDFERN TRAVEL LTD,2000023348,1248.14,REDFERN TRAVEL - NOV 12 - AAIB,BD1 3AZ,
Department for Transport,Department for Transport,15/02/2013,Subsidies Private Se,Roads,MSRS Freight Grant,2000023351,817.47,MSRS Freight Grant,,
Department for Transport,Department for Transport,15/02/2013,Subsidies Private Se,Roads,MSRS Freight Grant,2000023344,10120.8,MSRS Freight Grant,,
Department for Transport,Department for Transport,15/02/2013,Subsidies Private Se,Roads,MSRS Freight Grant,2000023345,187918,MSRS Freight Grant,,
Department for Transport,Department for Transport,15/02/2013,Subsistence Costs,Roads,,2000023357,40,*Trip from 20.01.13 To  25.01.13 to   Tokyo,,
Department for Transport,Department for Transport,15/02/2013,Travel Booking Costs,Air Accident Investigation Branch,REDFERN TRAVEL LTD,2000023348,10231.73,REDFERN TRAVEL - NOV 12 - AAIB,BD1 3AZ,
Department for Transport,Department for Transport,15/02/2013,Travel Expenses UK,Group Finance,RAIL STAFF TRAVEL LTD,2000023347,2712.43,#,WC1N 1BY,
Department for Transport,Department for Transport,18/02/2013,Agency Staff Costs,Local,SPRING TECHNOLOGY LTD  ALSO T/A,2000023462,896.7,#,B37 7YE,
Department for Transport,Department for Transport,18/02/2013,Cap Grt Pri Sec-Cos.,DASH,EVERSHEDS LLP,2000023464,1200000,#,CF10 5BT,
Department for Transport,Department for Transport,18/02/2013,Cars Fuel,Air Accident Investigation Branch,ALLSTAR BUSINESS SOLUTIONS LIMITED,2000023450,853.52,#,SN5 6PS,
Department for Transport,Department for Transport,18/02/2013,Computer equipment,Air Accident Investigation Branch,Probrand Ltd,2000023449,1368.78,PROBRAND NON ETHOS 4 SONICPOINT RADIO,B1 3BP,
Department for Transport,Department for Transport,18/02/2013,CurrGrt Las in AEF/A,Rail,TFL GROUP TREASURY,2000023459,2054018.06,TFL February Grant 2013,SW1H 0TL,
Department for Transport,Department for Transport,18/02/2013,Grt Aid to NDPBs,Rail,RAIL PASSENGER COUNCIL,2000023403,565000,PC Feb Grant 2013,M1 1LQ,
Department for Transport,Department for Transport,18/02/2013,IT Consultancy,Rail,AMOR BUSINESS TECHNOLOGY,2000023467,3600,#,PA4 9LH,
Department for Transport,Department for Transport,18/02/2013,IT Equip Cap Cost,Commercial and Technical Services Research,SPECIALIST COMPUTER CENTRES PLC,2000023461,1309.2,Laptop Memory DIMMs,B11 2LE,
Department for Transport,Department for Transport,18/02/2013,IT Equip Cap Cost,Commercial and Technical Services Research,SPECIALIST COMPUTER CENTRES PLC,2000023461,5754.84,#,B11 2LE,
Department for Transport,Department for Transport,18/02/2013,Legal Consultancy,General Counsel's Office,,2000023465,1560,#,,
Department for Transport,Department for Transport,18/02/2013,Legal Consultancy,General Counsel's Office,,2000023466,2243.98,#,,
Department for Transport,Department for Transport,18/02/2013,Management Consultan,Rail and Road Projects,VIRGIN RAIL PROJECTS LTD,100027967,85532.4,#,B5 4HA,
Department for Transport,Department for Transport,18/02/2013,Management Consultan,Rail and Road Projects,VIRGIN RAIL PROJECTS LTD,100027967,-85532.4,#,B5 4HA,
Department for Transport,Department for Transport,18/02/2013,Medical Advisory Ser,Group HR,HEALTH MANAGEMENT LTD,2000023453,595,#,BN8 5NN,
Department for Transport,Department for Transport,18/02/2013,Prog&ProjMgmt Consul,DASH,RAIL SETTLEMENT PLAN,2000023456,69478.8,#,WC1N 1BY,
Department for Transport,Department for Transport,18/02/2013,Research,Transport Security Strategy,DEFENCE SCIENCE & TECHNOLOGY,2000023452,20000,#,PO14 9HL,
Department for Transport,Department for Transport,18/02/2013,Research,Local,TRANSPORT RESEARCH LABORATORY,2000023457,4340,#,RG40 3GA,
Department for Transport,Department for Transport,18/02/2013,Training,Air Accident Investigation Branch,GOODWOOD ROAD RACING CO LTD,2000023447,479.62,#,PO18 0PH,
Department for Transport,Department for Transport,18/02/2013,Training,Business Transformation,THE EMMANUEL CENTRE,2000023460,1480,#,SW1P 3DW,
Department for Transport,Department for Transport,18/02/2013,Transport  Consult,Refran Prog Off,TRANSPORT RESEARCH LABORATORY,2000023457,8331.94,#,RG40 3GA,
Department for Transport,Department for Transport,19/02/2013,Agency Staff Costs,Rail Accident Investigation Branch,SPRING TECHNOLOGY LTD  ALSO T/A,2000023548,762.48,#,B37 7YE,
Department for Transport,Department for Transport,19/02/2013,Agency Staff Costs,Rail Commercial Contracts,MORGAN HUNT UK LTD,2000023542,2433.6,#,EC4M 7EG,
Department for Transport,Department for Transport,19/02/2013,Agency Staff Costs,Managing Director Motoring Services,NETWORKERS INTERNATIONAL (UK) PLC,2000023547,1575.84,#,BR1 1HP,
Department for Transport,Department for Transport,19/02/2013,Agency Staff Costs,Refran Prog Off,LA INTERNATIONAL COMPUTER,2000023541,10351.07,#,ST1 5UB,
Department for Transport,Department for Transport,19/02/2013,Agency Staff Costs,Refran Prog Off,MICHAEL PAGE INTERNATIONAL,2000023545,660,#,SL1 3SA,
Department for Transport,Department for Transport,19/02/2013,CurrGrt Las in AEF/A,London and Olympics,GREATER LONDON AUTHORITY,2000023561,108807000,GLA Grant Payment - No 24,SE1 2UT,
Department for Transport,Department for Transport,19/02/2013,DVO Payments,Managing Director Motoring Services,DRIVER & VEHICLE LICENSING AGENCY,2000023563,1571950.54,#,SA6 7JL,
Department for Transport,Department for Transport,19/02/2013,Financial Consultanc,Business Transformation,PRGX UK LIMITED,2000023552,8176.8,#,LU1 3LU,
Department for Transport,Department for Transport,19/02/2013,Financial Consultanc,Maritime,KPMG,2000023540,18604.8,#,WD17 1DE,
Department for Transport,Department for Transport,19/02/2013,Hotel&Accom Costs,Aviation,,2000023499,2188.75,*Trip from 02.02.13 To  16.02.13 to   Montreal,,
Department for Transport,Department for Transport,19/02/2013,Hotel&Accom Costs,Transport Security,,2000023514,472.41,*Trip from 04.02.13 To  07.02.13 to   Seoul,,
Department for Transport,Department for Transport,19/02/2013,IT Equip Cap Cost,Commercial and Technical Services Research,DELL CORPORATION LTD,2000023535,63.94,External USB Speakers,RG12 1LF,
Department for Transport,Department for Transport,19/02/2013,IT Equip Cap Cost,Commercial and Technical Services Research,DELL CORPORATION LTD,2000023535,2111.76,Port Replicators,RG12 1LF,
Department for Transport,Department for Transport,19/02/2013,IT Ser Running Costs,Rail Accident Investigation Branch,EPIC PERFORMANCE IMPROVEMENT LTD,2000023536,696,#,BN1 1NH,
Department for Transport,Department for Transport,19/02/2013,IT Ser Running Costs,Transport Security - Security Compliance Division ,CACI INFORMATION SOLUTIONS LTD,2000023532,1080,#,W14 8TS,
Department for Transport,Department for Transport,19/02/2013,IT Ser Running Costs,Transport Security - Security Compliance Division ,CACI INFORMATION SOLUTIONS LTD,2000023532,16729.76,#,W14 8TS,
Department for Transport,Department for Transport,19/02/2013,Legal Consultancy,Managing Director Motoring Services,FIELD FISHER WATERHOUSE LLP,2000023546,15119.65,#,EC3N 2AA,
Department for Transport,Department for Transport,19/02/2013,Legal Consultancy,Maritime,FIELD FISHER WATERHOUSE LLP,2000023546,28357.72,#,EC3N 2AA,
Department for Transport,Department for Transport,19/02/2013,Other Advertising,Local,PENNA COMMUNICATIONS,2000023551,8305.6,#,EC4M 7RD,
Department for Transport,Department for Transport,19/02/2013,Other Professional F,Managing Director Motoring Services,GOVERNMENT ACTUARY'S DEPARTMENT,2000023562,10179.9,#,EC4A 1AB,
Department for Transport,Department for Transport,19/02/2013,Other Travel Costs,Transport Security,,2000023514,17.5,*Trip from 04.02.13 To  07.02.13 to   Seoul,,
Department for Transport,Department for Transport,19/02/2013,Rail Travel,Aviation,,2000023499,20,*Trip from 02.02.13 To  16.02.13 to   Montreal,,
Department for Transport,Department for Transport,19/02/2013,Rail Travel,Transport Security,,2000023514,34,*Trip from 04.02.13 To  07.02.13 to   Seoul,,
Department for Transport,Department for Transport,19/02/2013,Research,Managing Director Motoring Services,PRICEWATERHOUSECOOPERS LLP,2000023543,22571,#,E14 9SQ,
Department for Transport,Department for Transport,19/02/2013,Research,Managing Director Motoring Services,PRICEWATERHOUSECOOPERS LLP,2000023543,11885,#,E14 9SQ,
Department for Transport,Department for Transport,19/02/2013,Research,Managing Director Motoring Services,PRICEWATERHOUSECOOPERS LLP,2000023543,18741,#,E14 9SQ,
Department for Transport,Department for Transport,19/02/2013,Stationery (Non-stk),Permanent Secretary,OFFICE DEPOT UK LIMITED,2000023529,122.28,1042832 - PK12 PEN BK PILOT FOUNT,SP10 4BA,
Department for Transport,Department for Transport,19/02/2013,Stationery (Non-stk),Permanent Secretary,OFFICE DEPOT UK LIMITED,2000023529,244.56,1043733 - PILOT  FOUNTAIN PEN V4L BLUE B,SP10 4BA,
Department for Transport,Department for Transport,19/02/2013,Stationery (Non-stk),Permanent Secretary,OFFICE DEPOT UK LIMITED,2000023529,17.89,2078337     - PK250 OD BRN POCKET C4,SP10 4BA,
Department for Transport,Department for Transport,19/02/2013,Stationery (Non-stk),Permanent Secretary,OFFICE DEPOT UK LIMITED,2000023529,19.75,2079133 - OD BROWN PKT WIN C4 229X324MM,SP10 4BA,
Department for Transport,Department for Transport,19/02/2013,Stationery (Non-stk),Permanent Secretary,OFFICE DEPOT UK LIMITED,2000023529,6.84,4105062 - SCISSOR WITH BLACK HANDLES,SP10 4BA,
Department for Transport,Department for Transport,19/02/2013,Stationery (Non-stk),Permanent Secretary,OFFICE DEPOT UK LIMITED,2000023529,31.44,520451 - MARKER PERM SUPERFINE,SP10 4BA,
Department for Transport,Department for Transport,19/02/2013,Stationery (Non-stk),Permanent Secretary,OFFICE DEPOT UK LIMITED,2000023529,14.62,538663 - BIC CRISTAL FINE BLACK BOX 20,SP10 4BA,
Department for Transport,Department for Transport,19/02/2013,Stationery (Non-stk),Permanent Secretary,OFFICE DEPOT UK LIMITED,2000023529,12.64,538664 - BX20 PENS BALLPNT FINE BLUE BIC,SP10 4BA,
Department for Transport,Department for Transport,19/02/2013,Stationery (Non-stk),Permanent Secretary,OFFICE DEPOT UK LIMITED,2000023529,47.16,565290 - MARKER PERMANENT FINE NMS50,SP10 4BA,
Department for Transport,Department for Transport,19/02/2013,Stationery (Non-stk),Permanent Secretary,OFFICE DEPOT UK LIMITED,2000023529,18.22,5723361 - 8DIGET DESK CALC LARGE SCREEN,SP10 4BA,
Department for Transport,Department for Transport,19/02/2013,Stationery (Non-stk),Permanent Secretary,OFFICE DEPOT UK LIMITED,2000023529,46.8,978098 - PK12 ROLLERBALL BLACK PENTEL,SP10 4BA,
Department for Transport,Department for Transport,19/02/2013,Stationery (Non-stk),Permanent Secretary,OFFICE DEPOT UK LIMITED,2000023529,46.8,978099 - BX12 ROLLERBALL RED PENTEL,SP10 4BA,
Department for Transport,Department for Transport,19/02/2013,Stationery (Non-stk),Permanent Secretary,OFFICE DEPOT UK LIMITED,2000023529,2.27,979361 - MAP PINS 13MM ASSORTED COLOURS,SP10 4BA,
Department for Transport,Department for Transport,19/02/2013,Subscriptions to Pro,Analysis/Science,,2000023525,689.5,*Trip from 01.01.13 To  01.01.13 to   Annual Membe,,
Department for Transport,Department for Transport,19/02/2013,Subsidies Private Se,Local,HEYFORDIAN TRAVEL LTD,2000023560,64516.01,HEYFORDIAN TRAVEL LTD,OX26 4PP,
Department for Transport,Department for Transport,19/02/2013,Subsidies Private Se,Maritime,ROSPA ENTERPRISES LTD,2000023295,28600.34,RoSPA -Water Safety Grant,B15 1RP,
Department for Transport,Department for Transport,19/02/2013,Subsistence Costs,Aviation,,2000023499,60,*Trip from 02.02.13 To  16.02.13 to   Montreal,,
Department for Transport,Department for Transport,19/02/2013,Subsistence Costs,Transport Security,,2000023514,237.61,*Trip from 04.02.13 To  07.02.13 to   Seoul,,
Department for Transport,Department for Transport,19/02/2013,Support Services,Permanent Secretary,FCO FOREIGN & COMMONWEALTH OFFICE,2000023564,1137.87,#,MK10 1PX,
Department for Transport,Department for Transport,19/02/2013,Taxis,Aviation,,2000023499,59.08,*Trip from 02.02.13 To  16.02.13 to   Montreal,,
Department for Transport,Department for Transport,19/02/2013,Traffic Survey & Cou,Roads,JACOBS UK LTD,2000023538,3125,#,G2 7HX,
Department for Transport,Department for Transport,19/02/2013,Traffic Survey & Cou,Roads,JACOBS UK LTD,2000023538,5254,#,G2 7HX,
Department for Transport,Department for Transport,19/02/2013,Traffic Survey & Cou,Roads,JACOBS UK LTD,2000023538,3343,#,G2 7HX,
Department for Transport,Department for Transport,19/02/2013,Training,Air Accident Investigation Branch,ELITE HELICOPTERS,2000023555,688.75,#,PO18 OPH,
Department for Transport,Department for Transport,19/02/2013,Training,Air Accident Investigation Branch,HELI AIR LIMITED,2000023557,440,#,CV35 9EU,
Department for Transport,Department for Transport,19/02/2013,Training,DASH,GOVNET COMMUNICATIONS,2000023537,495,#,M1 6PP,
Department for Transport,Department for Transport,19/02/2013,Training,Marine Accident Investigation Branch,ARCO LTD,2000023530,1200,#,HU1 2SJ,
Department for Transport,Department for Transport,19/02/2013,Travel Exp Overseas,Aviation,,2000023556,6.76,"Travel,Subsistance & Incidental Costs",,
Department for Transport,Department for Transport,20/02/2013,Agency Staff Costs,Group Internal Audit,REED SPECIALIST RECRUITMENT LTD,2000023635,2341.2,#,SW20 0BA,
Department for Transport,Department for Transport,20/02/2013,Agency Staff Costs,Permanent Secretary,NETWORKERS INTERNATIONAL (UK) PLC,2000023651,1104.9,#,BR1 1HP,
Department for Transport,Department for Transport,20/02/2013,Agency Staff Costs,Group Finance,MICHAEL PAGE INTERNATIONAL,2000023648,1284.02,#,SL1 3SA,
Department for Transport,Department for Transport,20/02/2013,Agency Staff Costs,Group Finance,NETWORKERS INTERNATIONAL (UK) PLC,2000023651,3408.78,#,BR1 1HP,
Department for Transport,Department for Transport,20/02/2013,Agency Staff Costs,DASH,CAPITA RESOURCING LTD,2000023649,2497.94,#,DL1 9HN,
Department for Transport,Department for Transport,20/02/2013,Agency Staff Costs,DASH,CAPITA RESOURCING LTD,2000023649,832.64,#,DL1 9HN,
Department for Transport,Department for Transport,20/02/2013,Agency Staff Costs,DASH,CAPITA RESOURCING LTD,2000023649,2497.93,#,DL1 9HN,
Department for Transport,Department for Transport,20/02/2013,Agency Staff Costs,DASH,CAPITA RESOURCING LTD,2000023649,-5828.52,#,DL1 9HN,
Department for Transport,Department for Transport,20/02/2013,Agency Staff Costs,Refran Prog Off,CAPITA RESOURCING LTD,2000023649,836.28,#,DL1 9HN,
Department for Transport,Department for Transport,20/02/2013,Agency Staff Costs,Group Finance,MICHAEL PAGE INTERNATIONAL,2000023648,2365.7,#,SL1 3SA,
Department for Transport,Department for Transport,20/02/2013,Agency Staff Costs,Refran Prog Off,MICHAEL PAGE INTERNATIONAL,2000023648,2811.84,#,SL1 3SA,
Department for Transport,Department for Transport,20/02/2013,Agency Staff Costs,Refran Prog Off,MICHAEL PAGE INTERNATIONAL,2000023648,3510,#,SL1 3SA,
Department for Transport,Department for Transport,20/02/2013,Agency Staff Costs,Refran Prog Off,NETWORKERS INTERNATIONAL (UK) PLC,2000023651,883.92,#,BR1 1HP,
Department for Transport,Department for Transport,20/02/2013,Cap Grt Loc Auth,Greener Transport & International,TRANSPORT FOR LONDON,2000023647,234668.73,TfL Q3 FY 1213 #234k,SE10 1AJ,
Department for Transport,Department for Transport,20/02/2013,Cap Grt Pri Sec-Cos.,Greener Transport & International,CHEVROLET UK,2000023667,15000,PiCG Chevrolet Jan 2013 #15k,LU1 3YT,
Department for Transport,Department for Transport,20/02/2013,Cap Grt Pri Sec-Cos.,Greener Transport & International,CITROEN AUTOMOBILES UK LTD,2000023660,70000,PiCG Citroen Jan 2013 #70k,CV3 1ND,
Department for Transport,Department for Transport,20/02/2013,Cap Grt Pri Sec-Cos.,Greener Transport & International,NISSAN MOTOR GB LTD,2000023656,150000,PiCG Nissan Jan 2013 #150k,WD3 9YS,
Department for Transport,Department for Transport,20/02/2013,Cap Grt Pri Sec-Cos.,Greener Transport & International,PEUGEOT MOTOR COMPANY,2000023662,205027.49,PiCG Peugeot Jan 2013 #205k,CV3 1ND,
Department for Transport,Department for Transport,20/02/2013,Cap Grt Pri Sec-Cos.,Greener Transport & International,RENAULT,2000023664,78645.4,PiCG Renault Jan 2013 #78.5k,WD3 9YS,
Department for Transport,Department for Transport,20/02/2013,Cap Grt Pri Sec-Cos.,Greener Transport & International,TOYOTA (GB) PLC,2000023669,95000,PiCG Toyota Jan 2013 #95k,KT18 5XS,
Department for Transport,Department for Transport,20/02/2013,Cap Grt Pri Sec-Cos.,Greener Transport & International,VAUXHALL MOTORS,2000023665,120000,PiCG Vauxhall Jan 2013 #120k,LU1 3YT,
Department for Transport,Department for Transport,20/02/2013,Contract Cleaning,Air Accident Investigation Branch,INTERSERVE,2000023661,2191.95,#,BS32 4NH,
Department for Transport,Department for Transport,20/02/2013,CurrGrt Las in AEF/A,Transport Direct and Travel information,BARNSLEY MBC,2000023639,131579,LEPS (Pipeline Project),S70 2AQ,
Department for Transport,Department for Transport,20/02/2013,CurrGrt Las in AEF/A,Transport Direct and Travel information,BATH & NE SOMERSET DC,2000023595,131579,LEPS (Pipeline Project),BA1 5AW,
Department for Transport,Department for Transport,20/02/2013,CurrGrt Las in AEF/A,Transport Direct and Travel information,BIRMINGHAM CITY COUNCIL,2000023640,131579,LEPS (Pipeline Project),B1 1BB,
Department for Transport,Department for Transport,20/02/2013,CurrGrt Las in AEF/A,Transport Direct and Travel information,BUCKINGHAMSHIRE CC (REVENUE),2000023596,131579,LEPS (Pipeline Project),HP20 1UD,
Department for Transport,Department for Transport,20/02/2013,CurrGrt Las in AEF/A,Transport Direct and Travel information,CAMBRIDGESHIRE COUNTY COUNCIL,2000023597,131579,LEPS (Pipeline Project),CB3 0AP,
Department for Transport,Department for Transport,20/02/2013,CurrGrt Las in AEF/A,Transport Direct and Travel information,CHESHIRE EAST BOROUGH COUNCIL,2000023653,131579,LEPS (Pipeline Project),CW11 1HZ,
Department for Transport,Department for Transport,20/02/2013,CurrGrt Las in AEF/A,Transport Direct and Travel information,CORNWALL COUNTY COUNCIL,2000023620,131579,LEPS (Pipeline Project),TR1 38D,
Department for Transport,Department for Transport,20/02/2013,CurrGrt Las in AEF/A,Transport Direct and Travel information,COVENTRY CITY COUNCIL,2000023641,131579,LEPS (Pipeline Project),CV1 2QL,
Department for Transport,Department for Transport,20/02/2013,CurrGrt Las in AEF/A,Transport Direct and Travel information,CUMBRIA COUNTY COUNCIL,2000023598,131579,LEPS (Pipeline Project),CA3 8NA,
Department for Transport,Department for Transport,20/02/2013,CurrGrt Las in AEF/A,Transport Direct and Travel information,DERBY CITY COUNCIL,2000023599,131579,LEPS (Pipeline Project),DE1 2YL,
Department for Transport,Department for Transport,20/02/2013,CurrGrt Las in AEF/A,Transport Direct and Travel information,DEVON COUNTY COUNCIL,2000023600,131579,LEPS (Pipeline Project),EX2 4QJ,
Department for Transport,Department for Transport,20/02/2013,CurrGrt Las in AEF/A,Transport Direct and Travel information,DORSET COUNTY COUNCIL,2000023601,131579,LEPS (Pipeline Project),DT1 1XJ,
Department for Transport,Department for Transport,20/02/2013,CurrGrt Las in AEF/A,Transport Direct and Travel information,ESSEX COUNTY COUNCIL,2000023602,131579,LEPS (Pipeline Project),CM1 1LX,
Department for Transport,Department for Transport,20/02/2013,CurrGrt Las in AEF/A,Transport Direct and Travel information,GLOUCESTERSHIRE COUNTY COUNCIL,2000023594,131579,LEPS (Pipeline Project),GL1 2TJ,
Department for Transport,Department for Transport,20/02/2013,CurrGrt Las in AEF/A,Transport Direct and Travel information,GREATER MANCHESTER,2000023655,131579,LEPS (Pipeline Project),M60 2JR,
Department for Transport,Department for Transport,20/02/2013,CurrGrt Las in AEF/A,Transport Direct and Travel information,HAMPSHIRE COUNTY COUNCIL,2000023603,131579,LEPS (Pipeline Project),SO23 8UB,
Department for Transport,Department for Transport,20/02/2013,CurrGrt Las in AEF/A,Transport Direct and Travel information,HERTFORDSHIRE CC,2000023604,131579,LEPS (Pipeline Project),SG13 8TN,
Department for Transport,Department for Transport,20/02/2013,CurrGrt Las in AEF/A,Transport Direct and Travel information,KINGSTON UPON HULL CITY COUNCIL,2000023642,131579,LEPS (Pipeline Project),HU1 2AB,
Department for Transport,Department for Transport,20/02/2013,CurrGrt Las in AEF/A,Transport Direct and Travel information,KNOWSLEY MBC,2000023605,131579,LEPS (Pipeline Project),L32 1TX,
Department for Transport,Department for Transport,20/02/2013,CurrGrt Las in AEF/A,Transport Direct and Travel information,LANCASHIRE COUNTY COUNCIL,2000023606,131579,LEPS (Pipeline Project),PR1 0LD,
Department for Transport,Department for Transport,20/02/2013,CurrGrt Las in AEF/A,Transport Direct and Travel information,LEEDS CITY COUNCIL,2000023643,131579,LEPS (Pipeline Project),LS2 8JR,
Department for Transport,Department for Transport,20/02/2013,CurrGrt Las in AEF/A,Transport Direct and Travel information,LEICESTER CITY COUNCIL,2000023607,131579,LEPS (Pipeline Project),LE1 6ZG,
Department for Transport,Department for Transport,20/02/2013,CurrGrt Las in AEF/A,Transport Direct and Travel information,LINCOLNSHIRE COUNTY COUNCIL,2000023608,131579,LEPS (Pipeline Project),LN1 1YT,
Department for Transport,Department for Transport,20/02/2013,CurrGrt Las in AEF/A,Transport Direct and Travel information,LUTON BOROUGH COUNCIL,2000023609,131579,LEPS (Pipeline Project),LU1 2BQ,
Department for Transport,Department for Transport,20/02/2013,CurrGrt Las in AEF/A,Transport Direct and Travel information,NORTH YORKSHIRE CC,2000023644,131579,LEPS (Pipeline Project),DL7 8AL,
Department for Transport,Department for Transport,20/02/2013,CurrGrt Las in AEF/A,Transport Direct and Travel information,NORTHAMPTONSHIRE CC,2000023610,131579,LEPS (Pipeline Project),NN4 7DB,
Department for Transport,Department for Transport,20/02/2013,CurrGrt Las in AEF/A,Transport Direct and Travel information,OXFORDSHIRE CC,2000023611,131579,LEPS (Pipeline Project),OX1 1TH,
Department for Transport,Department for Transport,20/02/2013,CurrGrt Las in AEF/A,Transport Direct and Travel information,PORTSMOUTH CITY COUNCIL,2000023618,131579,LEPS (Pipeline Project),PO1 2BG,
Department for Transport,Department for Transport,20/02/2013,CurrGrt Las in AEF/A,Transport Direct and Travel information,SHROPSHIRE COUNTY COUNCIL,2000023645,131579,LEPS (Pipeline Project),SY2 6ND,
Department for Transport,Department for Transport,20/02/2013,CurrGrt Las in AEF/A,Transport Direct and Travel information,STOCKTON ON TEES BC,2000023612,131579,LEPS (Pipeline Project),TS23 2YS,
Department for Transport,Department for Transport,20/02/2013,CurrGrt Las in AEF/A,Transport Direct and Travel information,STOKE ON TRENT CITY COUNCIL,2000023646,131579,LEPS (Pipeline Project),ST4 1RF,
Department for Transport,Department for Transport,20/02/2013,CurrGrt Las in AEF/A,Transport Direct and Travel information,SUFFOLK COUNTY COUNCIL,2000023621,131579,LEPS (Pipeline Project),IP1 2DH,
Department for Transport,Department for Transport,20/02/2013,CurrGrt Las in AEF/A,Transport Direct and Travel information,SUNDERLAND CITY COUNCIL,2000023613,131579,LEPS (Pipeline Project),SR2 7DN,
Department for Transport,Department for Transport,20/02/2013,CurrGrt Las in AEF/A,Transport Direct and Travel information,WALSALL MBC,2000023614,131579,LEPS (Pipeline Project),WS1 1TW,
Department for Transport,Department for Transport,20/02/2013,CurrGrt Las in AEF/A,Transport Direct and Travel information,WEST SUSSEX CC,2000023615,131579,LEPS (Pipeline Project),PO19 1RG,
Department for Transport,Department for Transport,20/02/2013,CurrGrt Las in AEF/A,Transport Direct and Travel information,WILTSHIRE COUNTY COUNCIL,2000023616,131579,LEPS (Pipeline Project),BA14 8JJ,
Department for Transport,Department for Transport,20/02/2013,CurrGrt Las in AEF/A,Transport Direct and Travel information,WINDSOR & MAIDENHEAD,2000023617,131579,LEPS (Pipeline Project),SL6 1RF,
Department for Transport,Department for Transport,20/02/2013,CurrGrt Las in AEF/A,Transport Direct and Travel information,WORCESTERSHIRE COUNTY COUNCIL,2000023619,131579,LEPS (Pipeline Project),WR5 2NP,
Department for Transport,Department for Transport,20/02/2013,CurrGrt Las in AEF/A,Local,CHESHIRE WEST &,2000023654,35229,DfT HMEP Q3 grant payment Cheshire West 2012-13,CH1 9PS,
Department for Transport,Department for Transport,20/02/2013,Data Supply - TD,Transport Direct and Travel information,RAIL SETTLEMENT PLAN,2000023633,2400,#,WC1N 1BY,
Department for Transport,Department for Transport,20/02/2013,Data Supply - TD,Greener Transport & International,INFORMA UK LTD,2000023629,22200,#,W1T 3JH,
Department for Transport,Department for Transport,20/02/2013,IT Equip Cap Cost,Commercial and Technical Services Research,SPECIALIST COMPUTER CENTRES PLC,2000023652,1296.18,Lenovo ThinkPad Standalone Notebook,B11 2LE,
Department for Transport,Department for Transport,20/02/2013,IT Equip Cap Cost,Commercial and Technical Services Research,SPECIALIST COMPUTER CENTRES PLC,2000023652,4400.76,#,B11 2LE,
Department for Transport,Department for Transport,20/02/2013,IT Equip Cap Cost,Commercial and Technical Services Research,SPECIALIST COMPUTER CENTRES PLC,2000023652,19460.02,#,B11 2LE,
Department for Transport,Department for Transport,20/02/2013,IT Ser Running Costs,Business Transformation,CENTERPRISE INTERNATIONAL LIMITED,2000023657,1239.83,#,RG24 8GQ,
Department for Transport,Department for Transport,20/02/2013,Legal Consultancy,Refran Prog Off,,2000023659,1364,#,,
Department for Transport,Department for Transport,20/02/2013,Machinery Maintenanc,Rail Accident Investigation Branch,LOGICALIS UK LIMITED,2000023668,819.65,#,SL1 4PF,
Department for Transport,Department for Transport,20/02/2013,Management Consultan,Business Transformation,QUINCEY MASON PRACTICES LTD,2000023632,2185.44,#,NN6 9DS,
Department for Transport,Department for Transport,20/02/2013,Media & Press,Business Transformation,CABINET OFFICE,2000023622,49500,#,CF14 3UW,
Department for Transport,Department for Transport,20/02/2013,Mobile Phone charges,Group Finance,VODAFONE LTD,2000023638,3069.26,Vodafone 136 Mobiles,RG14 5FF,
Department for Transport,Department for Transport,20/02/2013,Mobile Phone charges,Centrally held prog,VODAFONE LTD,2000023638,11419.69,Vodafone -605 Mobiles - ISE -February 2013,RG14 5FF,
Department for Transport,Department for Transport,20/02/2013,Mobile Phone charges,Group Finance,VODAFONE LTD,2000023638,7171.99,Vodafone 403 Mobiles,RG14 5FF,
Department for Transport,Department for Transport,20/02/2013,Mobile Phone charges,Group Finance,VODAFONE LTD,2000023638,5644.05,Vodafone - 313 mobiles - acc 604232464 - Feb 2013,RG14 5FF,
Department for Transport,Department for Transport,20/02/2013,Non Stock Machine Co,Rail,SUPPLIES TEAM,2000023625,124.58,491-1281 OKI MC860 LASER TONER 9.5K BLAC,S9 1XU,
Department for Transport,Department for Transport,20/02/2013,Non Stock Machine Co,Rail,SUPPLIES TEAM,2000023625,263.35,491-1292 OKI MC860 LASER TONER 10K CYAN,S9 1XU,
Department for Transport,Department for Transport,20/02/2013,Non Stock Machine Co,Rail,SUPPLIES TEAM,2000023625,263.35,491-1376 OKI MC860 LASER TONER 10K magen,S9 1XU,
Department for Transport,Department for Transport,20/02/2013,Non Stock Machine Co,Rail,SUPPLIES TEAM,2000023625,263.35,491-1385 OKI MC860 LASER TONER 10K YELLO,S9 1XU,
Department for Transport,Department for Transport,20/02/2013,Non Stock Machine Co,Rail,SUPPLIES TEAM,2000023625,82.8,581-2162 OKI C801/821/810/830/MC860 YELL,S9 1XU,
Department for Transport,Department for Transport,20/02/2013,Non Stock Machine Co,Rail,SUPPLIES TEAM,2000023625,82.8,581-2641 OKI C801/821/810/830/MC860 MAGE,S9 1XU,
Department for Transport,Department for Transport,20/02/2013,Non Stock Machine Co,Rail,SUPPLIES TEAM,2000023625,82.8,581-2746 OKI C801/821/810/830/MC860 CYAN,S9 1XU,
Department for Transport,Department for Transport,20/02/2013,Non Stock Machine Co,Rail,SUPPLIES TEAM,2000023625,76.8,581-2758 OKI C801/821/810/830/MC860 BLAC,S9 1XU,
Department for Transport,Department for Transport,20/02/2013,Prog&ProjMgmt Consul,Rail,ATKINS LTD (TRANSPORT PLANNING),2000023627,4581.26,#,WR5 1TX,
Department for Transport,Department for Transport,20/02/2013,Property Maintenance,Air Accident Investigation Branch,INTERSERVE,2000023661,9313.81,#,BS32 4NH,
Department for Transport,Department for Transport,20/02/2013,Publications for Res,Aviation,CREATIVE CHOICE CIC,2000023663,1648.4,#,SW1H 0DJ,
Department for Transport,Department for Transport,20/02/2013,Publicity,Business Transformation,CABINET OFFICE,2000023622,63600,#,CF14 3UW,
Department for Transport,Department for Transport,20/02/2013,Publicity,Roads,CABINET OFFICE,2000023622,24000,#,CF14 3UW,
Department for Transport,Department for Transport,20/02/2013,Publicity,DASH,CREATIVE CHOICE CIC,2000023663,2364.67,#,SW1H 0DJ,
Department for Transport,Department for Transport,20/02/2013,Research,Rail,PARSONS BRINCKERHOFF LTD,2000023631,9075.6,#,NE4 7YQ,
Department for Transport,Department for Transport,20/02/2013,Training,Air Accident Investigation Branch,TAA UK LTD,2000023670,716.78,#,UB9 5DF,
Department for Transport,Department for Transport,20/02/2013,Transport  Consult,Rail and Road Projects,FIRST GREATER WESTERN,2000023650,21894.9,#,SN1 1HL,
Department for Transport,Department for Transport,20/02/2013,Transport  Consult,Greener Transport & International,ATKINS LTD (TRANSPORT PLANNING),2000023627,9927.6,#,WR5 1TX,
Department for Transport,Department for Transport,21/02/2013,Agency Staff Costs,Business Transformation,CABINET OFFICE,2000023695,14112,#,CF14 3UW,
Department for Transport,Department for Transport,21/02/2013,Agency Staff Costs,Group Finance,MICHAEL PAGE INTERNATIONAL,2000023687,3210,#,SL1 3SA,
Department for Transport,Department for Transport,21/02/2013,Agency Staff Costs,Rail Commercial Contracts,MICHAEL PAGE INTERNATIONAL,2000023687,3540.24,#,SL1 3SA,
Department for Transport,Department for Transport,21/02/2013,Agency Staff Costs,Group Finance,MICHAEL PAGE INTERNATIONAL,2000023687,2958,#,SL1 3SA,
Department for Transport,Department for Transport,21/02/2013,Agency Staff Costs,DASH,BADENOCH & CLARK,2000023683,1755.66,#,EC4V 4BG,
Department for Transport,Department for Transport,21/02/2013,Agency Staff Costs,DASH,BADENOCH & CLARK,2000023683,1755.66,#,EC4V 4BG,
Department for Transport,Department for Transport,21/02/2013,Agency Staff Costs,Group Finance,MICHAEL PAGE INTERNATIONAL,2000023687,4608,#,SL1 3SA,
Department for Transport,Department for Transport,21/02/2013,Agency Staff Costs,Refran Prog Off,MICHAEL PAGE INTERNATIONAL,2000023687,561,#,SL1 3SA,
Department for Transport,Department for Transport,21/02/2013,Building Service Cha,Business Transformation,AMEY COMMUNITY LTD,2000023694,225845.5,#,OX4 4DQ,
Department for Transport,Department for Transport,21/02/2013,Building Service Cha,Business Transformation,AMEY COMMUNITY LTD,2000023694,74628.92,#,OX4 4DQ,
Department for Transport,Department for Transport,21/02/2013,BUS FDR Wales,Local,AP TRAVEL,8100008806,-6763.01,#,CF71 7LJ,
Department for Transport,Department for Transport,21/02/2013,BUS FDR Wales,Local,AP TRAVEL,8100008806,6763.01,#,CF71 7LJ,
Department for Transport,Department for Transport,21/02/2013,Computer equipment,Air Accident Investigation Branch,SOFTWARE BOX LTD,2000023679,14709.78,SOFTWARE BOX NON ETHOS 5 DELL LAPTOPS,YO61 1ET,
Department for Transport,Department for Transport,21/02/2013,IT Ser Running Costs,Air Accident Investigation Branch,LA INTERNATIONAL COMPUTER,2000023685,1545,#,ST1 5UB,
Department for Transport,Department for Transport,21/02/2013,IT Ser Running Costs,General Counsel's Office,ACTICA CONSULTING LIMITED,2000023690,6120,#,GU2 7YF,
Department for Transport,Department for Transport,21/02/2013,IT Ser Running Costs,Business Transformation,SOFTWARE BOX LTD,2000023686,5486.4,#,YO61 1ET,
Department for Transport,Department for Transport,21/02/2013,IT Ser Running Costs,Marine Accident Investigation Branch,LA INTERNATIONAL COMPUTER,2000023685,1545,#,ST1 5UB,
Department for Transport,Department for Transport,21/02/2013,IT Ser Running Costs,Rail Accident Investigation Branch,LA INTERNATIONAL COMPUTER,2000023685,3090,#,ST1 5UB,
Department for Transport,Department for Transport,21/02/2013,Legal Consultancy,Rail and Road Projects,,2000023692,1188,#,,
Department for Transport,Department for Transport,21/02/2013,Medical Advisory Ser,Group HR,HEALTH MANAGEMENT LTD,2000023684,2842.5,#,BN8 5NN,
Department for Transport,Department for Transport,21/02/2013,Other Professional F,Group HR,COMPUTERSHARE VOUCHER SERVICES,2000023681,623.75,#,WS13 8SX,
Department for Transport,Department for Transport,21/02/2013,Research,Rail and Road Projects,OXERA CONSULTING LTD,2000023688,26985,#,OX1 1JD,
Department for Transport,Department for Transport,21/02/2013,Services prov by OGD,Rail Commercial Contracts,DIRECTLY OPERATED RAILWAYS LTD,2000023691,300368.7,#,SW1P 4DR,
Department for Transport,Department for Transport,21/02/2013,Services prov by OGD,Rail Commercial Contracts,DIRECTLY OPERATED RAILWAYS LTD,2000023691,-300368.7,#,SW1P 4DR,
Department for Transport,Department for Transport,21/02/2013,Services prov by OGD,Rail Commercial Contracts,DIRECTLY OPERATED RAILWAYS LTD,2000023691,301237.43,#,SW1P 4DR,
Department for Transport,Department for Transport,21/02/2013,Small Software,Business Transformation,PROCSERVE SHARED SERVICES LTD,2000023693,16800,#,SW1W 9SR,
Department for Transport,Department for Transport,22/02/2013,Agency Staff Costs,Group HR,HAYS PERSONNEL SERVICE LTD,2000023786,4154.1,#,KT3 4JQ,
Department for Transport,Department for Transport,22/02/2013,Agency Staff Costs,Group Finance,ALLEN LANE FINANCIAL RECRUITMENT,2000023790,2719.38,#,BN11 2BW,
Department for Transport,Department for Transport,22/02/2013,Agency Staff Costs,Group Finance,ALLEN LANE FINANCIAL RECRUITMENT,2000023790,2175.5,#,BN11 2BW,
Department for Transport,Department for Transport,22/02/2013,Agency Staff Costs,Group Finance,ALLEN LANE FINANCIAL RECRUITMENT,2000023790,543.88,#,BN11 2BW,
Department for Transport,Department for Transport,22/02/2013,Agency Staff Costs,Rail Commercial Contracts,LEND LEASE CONSULTING (EMEA) LTD,2000023808,17010,#,NW1 3BF,
Department for Transport,Department for Transport,22/02/2013,Audit Fees (cash),Group Internal Audit,PRICEWATERHOUSECOOPERS LLP,2000023805,159105.07,#,E14 9SQ,
Department for Transport,Department for Transport,22/02/2013,Audit Fees (cash),Group Internal Audit,PRICEWATERHOUSECOOPERS LLP,2000023805,11370,#,E14 9SQ,
Department for Transport,Department for Transport,22/02/2013,Cap Grt Loc Auth,Greener Transport & International,CENEX,2000023819,249699.84,Midlands Q3 FY 1213 249699.84,LE11 3TU,
Department for Transport,Department for Transport,22/02/2013,CapGrtPriSec-P&NPISH,Greener Transport & International,CENEX,2000023819,20075,LCVPP invoice Feb 2013 less credit note #270,LE11 3TU,
Department for Transport,Department for Transport,22/02/2013,Cars Fuel,Managing Director Motoring Services,,2000023777,158.01,*Trip from 01.08.12 To  22.08.12 to   London/Swans,,
Department for Transport,Department for Transport,22/02/2013,Cars Fuel,Managing Director Motoring Services,,2000023777,125.01,*Trip from 04.09.12 To  28.09.12 to   London / Swa,,
Department for Transport,Department for Transport,22/02/2013,Cars Fuel,Managing Director Motoring Services,,2000023777,162.43,*Trip from 02.10.12 To  17.10.12 to   London / Swa,,
Department for Transport,Department for Transport,22/02/2013,Cars Fuel,Managing Director Motoring Services,,2000023777,343.03,*Trip from 06.11.12 To  29.11.12 to   London / Swa,,
Department for Transport,Department for Transport,22/02/2013,Cars Fuel,Managing Director Motoring Services,,2000023777,202,*Trip from 03.12.12 To  19.12.12 to   London / Swa,,
Department for Transport,Department for Transport,22/02/2013,Childcare Voucher Co,Group HR,COMPUTERSHARE VOUCHER SERVICES,2000023788,25989.5,#,WS13 8SX,
Department for Transport,Department for Transport,22/02/2013,CurrGrtOth to NDPBs,Aviation,Infratil Kent Airport Ltd,2000023824,33957.79,Manston initial claim Feb 2013,CT12 5BL,
Department for Transport,Department for Transport,22/02/2013,CurrGrtOth to NDPBs,Aviation,MARSHALL OF CAMBRIDGE AEROSPACE LTD,2000023823,60843.57,Cambridge AR15 feasibility study,CB5 8RX,
Department for Transport,Department for Transport,22/02/2013,Grant Payments,Rail Commercial Contracts,GREATER MANCHESTER PTA,2000023814,4778807.48,1312 Wk3 PTE SUBSIDY INCL. INDEXATION 2012-13_Pd13,M1 3BG,
Department for Transport,Department for Transport,22/02/2013,Grant Payments,Rail Commercial Contracts,MERSEYTRAVEL,2000023811,1035800.64,1312 Wk3 PTE SUBSIDY INCL. INDEXATION 2012-13_Pd 1,L3 2AN,
Department for Transport,Department for Transport,22/02/2013,Grant Payments,Rail Commercial Contracts,NEXUS (TYNE & WEAR),2000023812,282491.08,1312 Wk3 PTE SUBSIDY & INDEXATION 2012-13_Pd1312 -,NE1 4AX,
Department for Transport,Department for Transport,22/02/2013,Grant Payments,Rail Commercial Contracts,SOUTH YORKSHIRE PTE,2000023813,1812651.11,1312 Wk3 PTE SUBSIDY & INDEXATION 2012-13_Pd 1312,S2 5YT,
Department for Transport,Department for Transport,22/02/2013,Grant Payments,Rail Commercial Contracts,WEST YORKSHIRE PTA,2000023815,4355070.86,1312 Wk3 PTE SUBSIDY & INDEXATION 2012-13_Pd1312 -,LS1 2DE,
Department for Transport,Department for Transport,22/02/2013,Hotel&Accom Costs,Managing Director Motoring Services,,2000023777,719.5,*Trip from 01.08.12 To  22.08.12 to   London/Swans,,
Department for Transport,Department for Transport,22/02/2013,Hotel&Accom Costs,Managing Director Motoring Services,,2000023777,767,*Trip from 04.09.12 To  28.09.12 to   London / Swa,,
Department for Transport,Department for Transport,22/02/2013,Hotel&Accom Costs,Managing Director Motoring Services,,2000023777,422,*Trip from 02.10.12 To  17.10.12 to   London / Swa,,
Department for Transport,Department for Transport,22/02/2013,Hotel&Accom Costs,Managing Director Motoring Services,,2000023777,806.2,*Trip from 06.11.12 To  29.11.12 to   London / Swa,,
Department for Transport,Department for Transport,22/02/2013,Hotel&Accom Costs,Managing Director Motoring Services,,2000023777,479.3,*Trip from 03.12.12 To  19.12.12 to   London / Swa,,
Department for Transport,Department for Transport,22/02/2013,L&B Excl Dwellings,Maritime,FAITHFUL & GOULD LTD,2000023825,29516.4,#,CF24 0AD,
Department for Transport,Department for Transport,22/02/2013,Legal Consultancy,Rail,BURGES SALMON,2000023796,11800,#,BS1 4AH,
Department for Transport,Department for Transport,22/02/2013,Legal Consultancy,Refran Prog Off,NORTON ROSE LLP,2000023816,29722.17,#,SE1 2AQ,
Department for Transport,Department for Transport,22/02/2013,Machinery Rental,DASH,DANWOOD GROUP LTD,2000023799,1620.59,#,LN6 3DG,
Department for Transport,Department for Transport,22/02/2013,Machinery Rental,London and Olympics,CANON (UK) LTD,2000023797,-447.52,#,RH2 8BF,
Department for Transport,Department for Transport,22/02/2013,Machinery Rental,London and Olympics,CANON (UK) LTD,2000023797,557,#,RH2 8BF,
Department for Transport,Department for Transport,22/02/2013,Machinery Rental,Finance,CANON (UK) LTD,2000023797,-135.38,#,RH2 8BF,
Department for Transport,Department for Transport,22/02/2013,Machinery Rental,General Counsel's Office,DANWOOD GROUP LTD,2000023799,540.03,#,LN6 3DG,
Department for Transport,Department for Transport,22/02/2013,Machinery Rental,General Counsel's Office,DANWOOD GROUP LTD,2000023799,540.03,#,LN6 3DG,
Department for Transport,Department for Transport,22/02/2013,Other Professional F,Commercial & Technical Services,BLOOMBERG LP,2000023828,4488.07,#,EC2A 1PQ,
Department for Transport,Department for Transport,22/02/2013,Other Pte Costs,Rail Commercial Contracts,GREATER MANCHESTER PTA,2000023814,46.03,1312 Wk3 LLOYDS DATABASE CONNECTION_P1312 - Transp,M1 3BG,
Department for Transport,Department for Transport,22/02/2013,Other Pte Costs,Rail Commercial Contracts,MERSEYTRAVEL,2000023811,46.03,1312 Wk3 LLOYDS DATABASE CONNECTION_P1312 - Mersey,L3 2AN,
Department for Transport,Department for Transport,22/02/2013,Other Pte Costs,Rail Commercial Contracts,NEXUS (TYNE & WEAR),2000023812,46.03,1312 Wk3 LLOYDS DATABASE CONNECTION_P1312 - Nexus,NE1 4AX,
Department for Transport,Department for Transport,22/02/2013,Other Pte Costs,Rail Commercial Contracts,SOUTH YORKSHIRE PTE,2000023813,46.03,1312 Wk3 LLOYDS DATABASE CONNECTION_P1312 - South,S2 5YT,
Department for Transport,Department for Transport,22/02/2013,Other Pte Costs,Rail Commercial Contracts,WEST YORKSHIRE PTA,2000023815,46.03,1312 Wk3 LLOYDS DATABASE CONNECTION_P1312 - West Y,LS1 2DE,
Department for Transport,Department for Transport,22/02/2013,Other Travel Costs,Managing Director Motoring Services,,2000023777,155.5,*Trip from 01.08.12 To  22.08.12 to   London/Swans,,
Department for Transport,Department for Transport,22/02/2013,Other Travel Costs,Managing Director Motoring Services,,2000023777,135.99,*Trip from 04.09.12 To  28.09.12 to   London / Swa,,
Department for Transport,Department for Transport,22/02/2013,Other Travel Costs,Managing Director Motoring Services,,2000023777,73,*Trip from 06.11.12 To  29.11.12 to   London / Swa,,
Department for Transport,Department for Transport,22/02/2013,Other Travel Costs,Managing Director Motoring Services,,2000023777,6,*Trip from 03.12.12 To  19.12.12 to   London / Swa,,
Department for Transport,Department for Transport,22/02/2013,Property Consultancy,Maritime,FAITHFUL & GOULD LTD,2000023825,8011,#,CF24 0AD,
Department for Transport,Department for Transport,22/02/2013,Property Maintenance,Air Accident Investigation Branch,TEAM Q MAINTENANCE LIMITED,2000023792,520,#,SG13 7AX,
Department for Transport,Department for Transport,22/02/2013,Pte Cost Of Servs Ch,Rail Commercial Contracts,GREATER MANCHESTER PTA,2000023814,107697.18,1312 Wk3 ADMIN GRANT & INDEXATION_P1312 - Transpor,M1 3BG,
Department for Transport,Department for Transport,22/02/2013,Pte Cost Of Servs Ch,Rail Commercial Contracts,NEXUS (TYNE & WEAR),2000023812,18366.22,1312 Wk3 ADMIN GRANT & INDEXATION_P1312 - Nexus,NE1 4AX,
Department for Transport,Department for Transport,22/02/2013,Pte Cost Of Servs Ch,Rail Commercial Contracts,SOUTH YORKSHIRE PTE,2000023813,88561.7,1312 Wk3 ADMIN GRANT & INDEXATION_P1312 - South Yo,S2 5YT,
Department for Transport,Department for Transport,22/02/2013,Pte Cost Of Servs Ch,Rail Commercial Contracts,WEST YORKSHIRE PTA,2000023815,64522.15,1312 Wk3 ADMIN GRANT & INDEXATION_P1312 - West Yor,LS1 2DE,
Department for Transport,Department for Transport,22/02/2013,Rail Travel,Managing Director Motoring Services,,2000023777,34,*Trip from 01.08.12 To  22.08.12 to   London/Swans,,
Department for Transport,Department for Transport,22/02/2013,Rail Travel,Managing Director Motoring Services,,2000023777,17.9,*Trip from 04.09.12 To  28.09.12 to   London / Swa,,
Department for Transport,Department for Transport,22/02/2013,Rail Travel,Managing Director Motoring Services,,2000023777,13.5,*Trip from 02.10.12 To  17.10.12 to   London / Swa,,
Department for Transport,Department for Transport,22/02/2013,Rail Travel,Managing Director Motoring Services,,2000023777,75.2,*Trip from 06.11.12 To  29.11.12 to   London / Swa,,
Department for Transport,Department for Transport,22/02/2013,Rail Travel,Managing Director Motoring Services,,2000023777,37.5,*Trip from 03.12.12 To  19.12.12 to   London / Swa,,
Department for Transport,Department for Transport,22/02/2013,Small Software,Rail,ATKINS LTD (TRANSPORT PLANNING),2000023791,3150,#,WR5 1TX,
Department for Transport,Department for Transport,22/02/2013,Subsistence Costs,Managing Director Motoring Services,,2000023777,88.1,*Trip from 01.08.12 To  22.08.12 to   London/Swans,,
Department for Transport,Department for Transport,22/02/2013,Subsistence Costs,Managing Director Motoring Services,,2000023777,98,*Trip from 04.09.12 To  28.09.12 to   London / Swa,,
Department for Transport,Department for Transport,22/02/2013,Subsistence Costs,Managing Director Motoring Services,,2000023777,40.17,*Trip from 02.10.12 To  17.10.12 to   London / Swa,,
Department for Transport,Department for Transport,22/02/2013,Subsistence Costs,Managing Director Motoring Services,,2000023777,97.95,*Trip from 06.11.12 To  29.11.12 to   London / Swa,,
Department for Transport,Department for Transport,22/02/2013,Subsistence Costs,Managing Director Motoring Services,,2000023777,90.3,*Trip from 03.12.12 To  19.12.12 to   London / Swa,,
Department for Transport,Department for Transport,22/02/2013,Support Services,Group HR,DRIVER & VEHICLE LICENSING AGENCY,2000023827,3840.01,#,SA6 7JL,
Department for Transport,Department for Transport,22/02/2013,Support Services,Group HR,DRIVER & VEHICLE LICENSING AGENCY,2000023827,41827.04,#,SA6 7JL,
Department for Transport,Department for Transport,22/02/2013,Support Services,Group Finance,RAILWAYS PENSION MANAGEMENT LT,2000023809,1070000,#,DL3 6EH,
Department for Transport,Department for Transport,22/02/2013,Taxis,Managing Director Motoring Services,,2000023777,47,*Trip from 01.08.12 To  22.08.12 to   London/Swans,,
Department for Transport,Department for Transport,22/02/2013,Taxis,Managing Director Motoring Services,,2000023777,97,*Trip from 04.09.12 To  28.09.12 to   London / Swa,,
Department for Transport,Department for Transport,22/02/2013,Taxis,Managing Director Motoring Services,,2000023777,84,*Trip from 02.10.12 To  17.10.12 to   London / Swa,,
Department for Transport,Department for Transport,22/02/2013,Taxis,Managing Director Motoring Services,,2000023777,96.05,*Trip from 06.11.12 To  29.11.12 to   London / Swa,,
Department for Transport,Department for Transport,22/02/2013,Taxis,Managing Director Motoring Services,,2000023777,66,*Trip from 03.12.12 To  19.12.12 to   London / Swa,,
Department for Transport,Department for Transport,22/02/2013,Training,Air Accident Investigation Branch,HELI AIR LIMITED,2000023821,880,#,CV35 9EU,
Department for Transport,Department for Transport,22/02/2013,Training,Air Accident Investigation Branch,HELI AIR LIMITED,2000023821,836,#,CV35 9EU,
Department for Transport,Department for Transport,22/02/2013,Training,Air Accident Investigation Branch,HELI AIR LIMITED,2000023821,1276,#,CV35 9EU,
Department for Transport,Department for Transport,22/02/2013,Training,Rail,THRESHOLDS,2000023810,1800,Crossing Treshold 25,BS7 9QP,
Department for Transport,Department for Transport,22/02/2013,Training,Aviation Security ,THRESHOLDS LTD,2000023806,1500,#,BS7 9QP,
Department for Transport,Department for Transport,22/02/2013,Training,Analysis/Science,NATIONAL CENTRE FOR SOCIAL RESEARCH,2000023802,6873,#,EC1V 0AX,
Department for Transport,Department for Transport,22/02/2013,Transport  Consult,Refran Prog Off,PARSONS BRINCKERHOFF LTD,2000023804,22119,#,NE4 7YQ,
Department for Transport,Department for Transport,25/02/2013,Agency Staff Costs,Local,SPRING TECHNOLOGY LTD  ALSO T/A,2000023900,765.9,#,B37 7YE,
Department for Transport,Department for Transport,25/02/2013,Agency Staff Costs,Rail Commercial Contracts,LEND LEASE CONSULTING (EMEA) LTD,2000023896,10272,#,NW1 3BF,
Department for Transport,Department for Transport,25/02/2013,Agency Staff Costs,Managing Director Motoring Services,NETWORKERS INTERNATIONAL (UK) PLC,2000023899,2363.76,#,BR1 1HP,
Department for Transport,Department for Transport,25/02/2013,Agency Staff Costs,Refran Prog Off,FIRST CLASS PARTNERSHIPS LTD,2000023898,6840,#,YO10 3EB,
Department for Transport,Department for Transport,25/02/2013,Cycle to Work Scheme,Group HR,CYCLESCHEME LTD,2000023886,750,Cyclescheme 2012/13,BA1 1WX,
Department for Transport,Department for Transport,25/02/2013,Hotel&Accom Costs,Air Accident Investigation Branch,,2000023838,613.3,"*Trip from 20.01.13 To  26.01.13 to   Montreal, Qu",,
Department for Transport,Department for Transport,25/02/2013,IT Ser Running Costs,Transport Security - Security Compliance Division ,CACI INFORMATION SOLUTIONS LTD,2000023884,7560,#,W14 8TS,
Department for Transport,Department for Transport,25/02/2013,Machinery Rental,Group HR,DFT ONE TIME VENDOR,2000023880,441.76,Payment to Ricoh - Invoice 86192633,SW1P 4DR,
Department for Transport,Department for Transport,25/02/2013,Non Stock Machine Co,Commercial & Technical Services,SUPPLIES TEAM,2000023882,1689.4,#,S9 1XU,
Department for Transport,Department for Transport,25/02/2013,Other Advertising,Local,PENNA COMMUNICATIONS,2000023901,8757.74,#,EC4M 7RD,
Department for Transport,Department for Transport,25/02/2013,Other Travel Costs,Air Accident Investigation Branch,,2000023838,12.06,"*Trip from 20.01.13 To  26.01.13 to   Montreal, Qu",,
Department for Transport,Department for Transport,25/02/2013,Other Travel Costs,Aviation,,2000023877,20.7,*Trip from 26.01.13 To  02.03.13 to   Montreal,,
Department for Transport,Department for Transport,25/02/2013,Research,Rail,PARSONS BRINCKERHOFF LTD,2000023889,12720.49,#,NE4 7YQ,
Department for Transport,Department for Transport,25/02/2013,Small Software,Marine Accident Investigation Branch,SOUTHAMPTON UNIVERSITY,2000023890,6000,#,SO17 1BJ,
Department for Transport,Department for Transport,25/02/2013,Small Software,Marine Accident Investigation Branch,TRUSTMARQUE SOLUTIONS LTD,2000023892,3907.68,#,YO32 9WN,
Department for Transport,Department for Transport,25/02/2013,Subsidies Private Se,Local,BENNETTS COACHES LTD,2000023895,21927.1,BENNETTS COACHES LTD,GL4 4LP,
Department for Transport,Department for Transport,25/02/2013,Subsistence Costs,Air Accident Investigation Branch,,2000023838,534.39,"*Trip from 20.01.13 To  26.01.13 to   Montreal, Qu",,
Department for Transport,Department for Transport,25/02/2013,Subsistence Costs,Aviation,,2000023877,495.06,*Trip from 26.01.13 To  02.03.13 to   Montreal,,
Department for Transport,Department for Transport,25/02/2013,Support Services,Aviation,CIVIL AVIATION AUTHORITY,2000023885,75952.57,#,RH10 0YR,
Department for Transport,Department for Transport,25/02/2013,Support Services,Group Finance,DD ACCRAILWAY PENS TRUSTEE,2000023897,1095.6,#,DL3 6XR,
Department for Transport,Department for Transport,25/02/2013,Taxis,Air Accident Investigation Branch,,2000023838,60.93,"*Trip from 20.01.13 To  26.01.13 to   Montreal, Qu",,
Department for Transport,Department for Transport,25/02/2013,Taxis,Aviation,,2000023877,51.12,*Trip from 26.01.13 To  02.03.13 to   Montreal,,
Department for Transport,Department for Transport,25/02/2013,Telephone charges,Business Transformation,VERIZON BUSINESS,2000023893,8884.27,Verizon - Internet Charges -Feb 2013,RG2 6DA,
Department for Transport,Department for Transport,25/02/2013,Telephone charges,Business Transformation,VERIZON BUSINESS,2000023893,12817.18,VERIZON - AUDIO CONFERENCING,RG2 6DA,
Department for Transport,Department for Transport,25/02/2013,Traffic Survey & Cou,Roads,TDC SYSTEMS LIMITED,2000023891,2178,#,BS24 9BP,
Department for Transport,Department for Transport,25/02/2013,Traffic Survey & Cou,Roads,TDC SYSTEMS LIMITED,2000023891,2312.5,#,BS24 9BP,
Department for Transport,Department for Transport,25/02/2013,Traffic Survey & Cou,Roads,TDC SYSTEMS LIMITED,2000023891,486,#,BS24 9BP,
Department for Transport,Department for Transport,25/02/2013,Traffic Survey & Cou,Roads,TDC SYSTEMS LIMITED,2000023891,2173,#,BS24 9BP,
Department for Transport,Department for Transport,25/02/2013,Training,Analysis/Science,OPERATIONAL RESEARCH SOCIETY,2000023888,3420,#,B1 2RX,
Department for Transport,Department for Transport,25/02/2013,Transport  Consult,Rail Commercial Contracts,PARSONS BRINCKERHOFF LTD,2000023889,4665.88,#,NE4 7YQ,
Department for Transport,Department for Transport,26/02/2013,Agency Staff Costs,Refran Prog Off,CAPITA RESOURCING LTD,2000024156,4181.4,#,DL1 9HN,
Department for Transport,Department for Transport,26/02/2013,Agency Staff Costs,Group Finance,EXPERIS LTD,2000024143,13057.74,#,EC1R 3DR,
Department for Transport,Department for Transport,26/02/2013,Agency Staff Costs,Refran Prog Off,MICHAEL PAGE INTERNATIONAL,2000024154,2091.31,#,SL1 3SA,
Department for Transport,Department for Transport,26/02/2013,Agency Staff Costs,Group Finance,PARITY RESOURCES LTD,2000024155,15120,#,SW19 3RU,
Department for Transport,Department for Transport,26/02/2013,Agency Staff Costs,Group Finance,PARITY RESOURCES LTD,2000024155,-24840,#,SW19 3RU,
Department for Transport,Department for Transport,26/02/2013,Agency Staff Costs,Group Finance,PARITY RESOURCES LTD,2000024155,24840,#,SW19 3RU,
Department for Transport,Department for Transport,26/02/2013,Agency Staff Costs,Refran Prog Off,SPRING TECHNOLOGY LTD  ALSO T/A,2000024158,3168.54,#,B37 7YE,
Department for Transport,Department for Transport,26/02/2013,BUS FDR Wales,Local,GWYNFOR COACHES,2000024120,850.41,Gwynfor Coaches,LL77 7NU,
Department for Transport,Department for Transport,26/02/2013,BUS FDR Wales,Local,JOHN'S COACHES,2000024007,4721.03,John's Coaches (Gwynedd),LL41 3NN,
Department for Transport,Department for Transport,26/02/2013,BUS FDR Wales,Local,LLEW JONES INTERNATIONAL,2000024025,6764.22,LLEW JONES INTERNATIONAL,LL26 0EH,
Department for Transport,Department for Transport,26/02/2013,BUS FDR Wales,Local,PADARN BUS,2000024051,84484.14,Padarn Bus Ltd,LL55 4EL,
Department for Transport,Department for Transport,26/02/2013,BUS FDR Wales,Local,PEMBROKESHIRE VOLUNTARY TRANSPORT,2000024099,754.06,PEMBROKESHIRE VOLUNTARY TRANSPORT,SA62 6HR,
Department for Transport,Department for Transport,26/02/2013,BUS FDR Wales,Local,PRESELI RURAL TRANSPORT ASSOCIATION,2000024100,963.11,Preseli Rural Transport Association,SA35 0DP,
Department for Transport,Department for Transport,26/02/2013,BUS FDR Wales,Local,TOWNLYNX LTD,2000024079,5203.62,TOWNLYNX LTD,CH8 8BE,
Department for Transport,Department for Transport,26/02/2013,Cap Grt Loc Auth,Rail and Road Projects,NEXUS,2000024153,1128000,Nexus Nov 12 Capital Grant,NE1 4AX,
Department for Transport,Department for Transport,26/02/2013,Car Hire and Leasing,Permanent Secretary,GOVERNMENT CAR & DESPATCH AGENCY,2000024130,502.5,#,SW8 5AX,
Department for Transport,Department for Transport,26/02/2013,Contract Cleaning,Rail Accident Investigation Branch,OFFICE CARE LTD,2000024163,1279.75,#,DE24 8AN,
Department for Transport,Department for Transport,26/02/2013,CurrGrt Las in AEF/A,Local,BOURNEMOUTH BC,2000023938,6025.14,BOURNEMOUTH BOROUGH COUNCIL,BH2 6DY,
Department for Transport,Department for Transport,26/02/2013,CurrGrt Las in AEF/A,Local,BURY MBC,2000023943,9222.87,Bury MBC,BL9 0DN,
Department for Transport,Department for Transport,26/02/2013,CurrGrt Las in AEF/A,Local,CALDERDALE MBC,2000023945,20131.7,CALDERDALE METROPOLITAN BOROUGH COUNCIL,HX1 4PL,
Department for Transport,Department for Transport,26/02/2013,CurrGrt Las in AEF/A,Local,CITY OF SALFORD COM & SOC SERV,2000024070,10592.35,CITY OF SALFORD COMMUNITY & SOCIAL SERVICES DIREC.,M50 1SW,
Department for Transport,Department for Transport,26/02/2013,CurrGrt Las in AEF/A,Local,CITY OF STOKE ON TRENT,2000024095,5324.22,Stoke-on-Trent City Council,ST4 4UJ,
Department for Transport,Department for Transport,26/02/2013,CurrGrt Las in AEF/A,Local,ESSEX COUNTY COUNCIL,2000023969,65130.3,ESSEX COUNTY COUNCIL - FLEET OPERATIONS,CM1 1JZ,
Department for Transport,Department for Transport,26/02/2013,CurrGrt Las in AEF/A,Local,HARTLEPOOL BOROUGH COUNCIL,2000024105,1410.71,Hartlepool Borough Council,TS24 7BT,
Department for Transport,Department for Transport,26/02/2013,CurrGrt Las in AEF/A,Local,LEEDS CITY COUNCIL,2000024017,83948.55,LEEDS CITY COUNCIL,LS2 8JR,
Department for Transport,Department for Transport,26/02/2013,CurrGrt Las in AEF/A,Local,LEICESTERSHIRE COUNTY COUNCIL,2000024019,48729.46,Leicester C C,LE3 8RF,
Department for Transport,Department for Transport,26/02/2013,CurrGrt Las in AEF/A,Local,LONDON BOROUGH OF,2000024101,5935.38,LONDON BOROUGH OF BARKING AND DAGENHAM,RM10 7HE,
Department for Transport,Department for Transport,26/02/2013,CurrGrt Las in AEF/A,Local,LONDON BOROUGH OF BARNET,2000024123,18064.16,London Borough of Barnet,N11 1NP,
Department for Transport,Department for Transport,26/02/2013,CurrGrt Las in AEF/A,Local,LONDON BOROUGH OF BEXLEY,2000024096,9601.66,London Borough of Bexley,DA1 5QJ,
Department for Transport,Department for Transport,26/02/2013,CurrGrt Las in AEF/A,Local,LONDON BOROUGH OF ENFIELD,2000024125,9334.35,London Borough of Enfield,EN1 3XD,
Department for Transport,Department for Transport,26/02/2013,CurrGrt Las in AEF/A,Local,LONDON BOROUGH OF NEWHAM,2000024115,21552.74,London Borough of Newham,E6 4BX,
Department for Transport,Department for Transport,26/02/2013,CurrGrt Las in AEF/A,Local,OPERATIONAL TRANSPORT,2000024045,29401.95,OPERATIONAL TRANSPORT (LEICESTER CITY COUNCIL),LE1 6ZG,
Department for Transport,Department for Transport,26/02/2013,CurrGrt Las in AEF/A,Local,OXFORDSHIRE CC,2000024074,30817.16,OXFORDSHIRE COUNTY COUNCIL INTEG TRANSPORT UNIT,OX9 2JN,
Department for Transport,Department for Transport,26/02/2013,CurrGrt Las in AEF/A,Local,PLYMOUTH CITYBUS LTD,2000024060,2662.4,Plymouth Citybus Ltd,PL3 4AA,
Department for Transport,Department for Transport,26/02/2013,CurrGrt Las in AEF/A,Local,SHROPSHIRE COUNTY COUNCIL,2000024072,19024.95,SHROPSHIRE COUNTY COUNCIL,SY3 9DS,
Department for Transport,Department for Transport,26/02/2013,CurrGrt Las in AEF/A,Local,WEST SUSSEX C C,2000024090,28722.26,WEST SUSSEX COUNTY COUNCIL,PO19 1RG,
Department for Transport,Department for Transport,26/02/2013,CurrGrt Las in AEF/A,Rail and Road Projects,NEXUS,2000024153,2055450,Nexus Jan 13 resource Grant,NE1 4AX,
Department for Transport,Department for Transport,26/02/2013,CurrGrtOth to NDPBs,Rail,MERSEY TRAVEL,2000024157,5857991.29,Mersey Travel February Grant 2013,L3   2AN,
Department for Transport,Department for Transport,26/02/2013,Data Supply - TD,Transport Direct and Travel information,LANDMARK INFORMATION GROUP LTD,2000024146,10593.6,#,EX2 7HY,
Department for Transport,Department for Transport,26/02/2013,Data Supply - TD,Transport Direct and Travel information,LANDMARK INFORMATION GROUP LTD,2000024146,15490.8,#,EX2 7HY,
Department for Transport,Department for Transport,26/02/2013,Hospitality,Business Transformation,AMEY COMMUNITY LIMITED,2000024137,3193.22,Amey - Hospitality Charges - Jan 13,OX4 4DQ,
Department for Transport,Department for Transport,26/02/2013,Hospitality,Business Transformation,AMEY COMMUNITY LIMITED,2000024137,3384.38,Amey - Hospitality Charges - Dec 12,OX4 4DQ,
Department for Transport,Department for Transport,26/02/2013,Hotel&Accom Costs,Transport Security,,2000023996,533.69,*Trip from 05.02.13 To  07.02.13 to   Paris,,
Department for Transport,Department for Transport,26/02/2013,Infrastructure Maint,Transport Direct & Travel Information,SEAPINE SOFTWARE INC,2000024132,599,#,45040,
Department for Transport,Department for Transport,26/02/2013,IT Ser Running Costs,Air Accident Investigation Branch,LA INTERNATIONAL COMPUTER,2000024145,772.5,#,ST1 5UB,
Department for Transport,Department for Transport,26/02/2013,IT Ser Running Costs,Marine Accident Investigation Branch,LA INTERNATIONAL COMPUTER,2000024145,772.5,#,ST1 5UB,
Department for Transport,Department for Transport,26/02/2013,IT Ser Running Costs,Rail Accident Investigation Branch,LA INTERNATIONAL COMPUTER,2000024145,1545,#,ST1 5UB,
Department for Transport,Department for Transport,26/02/2013,IT Ser Running Costs,Greener Transport & International,ATKINS LTD (TRANSPORT PLANNING),2000024139,3657,#,WR5 1TX,
Department for Transport,Department for Transport,26/02/2013,Legal Consultancy,Rail Commercial Contracts,TREASURY SOLICITOR,2000024129,1160.6,#,WC2B 4TS,
Department for Transport,Department for Transport,26/02/2013,Legal Consultancy,DASH,WINCKWORTH SHERWOOD,2000024151,136353.6,#,SE1 9BB,
Department for Transport,Department for Transport,26/02/2013,Net Pay,Human Resources,,2000024008,1811.76,1490857 25.2.13,,
Department for Transport,Department for Transport,26/02/2013,Non Stock Machine Co,Transport Security - Security Compliance Division ,SUPPLIES TEAM,2000024135,875.43,#,S9 1XU,
Department for Transport,Department for Transport,26/02/2013,Other Advertising,Local,PENNA COMMUNICATIONS,2000024159,695.04,#,EC4M 7RD,
Department for Transport,Department for Transport,26/02/2013,Other Professional F,Managing Director Motoring Services,GOVERNMENT ACTUARY'S DEPARTMENT,2000024131,1113.7,#,EC4A 1AB,
Department for Transport,Department for Transport,26/02/2013,Other Travel Costs,Transport Security,,2000023996,11.57,*Trip from 05.02.13 To  07.02.13 to   Paris,,
Department for Transport,Department for Transport,26/02/2013,Publicity,Roads,LEO BURNETT LTD,2000024147,62225,#,W14 8HQ,
Department for Transport,Department for Transport,26/02/2013,Publicity,DASH,CREATIVE CHOICE CIC,2000024165,1944.8,#,SW1H 0DJ,
Department for Transport,Department for Transport,26/02/2013,Publicity,DASH,CREATIVE CHOICE CIC,2000024165,1092,#,SW1H 0DJ,
Department for Transport,Department for Transport,26/02/2013,Publicity,DASH,CREATIVE CHOICE CIC,2000024165,1014,#,SW1H 0DJ,
Department for Transport,Department for Transport,26/02/2013,Rates,Air Accident Investigation Branch,VODAFONE LTD,2000024152,1589.88,#,RG14 5FF,
Department for Transport,Department for Transport,26/02/2013,Research,Aviation,CIVIL AVIATION AUTHORITY,2000024140,67045,#,RH10 0YR,
Department for Transport,Department for Transport,26/02/2013,Services prov by OGD,Transport Security Strategy,DEFENCE BUSINESS SERVICES,2000024164,608.69,#,YO10 4AS,
Department for Transport,Department for Transport,26/02/2013,Small Software,Transport Direct and Travel information,TRAPEZE GROUP (UK) LTD,2000024149,15721.2,#,BA14 6PH,
Department for Transport,Department for Transport,26/02/2013,Small Software,Roads,CREATIVE CHOICE CIC,2000024165,18720,#,SW1H 0DJ,
Department for Transport,Department for Transport,26/02/2013,Subsidies Private Se,Local,ALS COACHES,2000023928,9686.48,AL'S COACHES LTD,L48 4HB,
Department for Transport,Department for Transport,26/02/2013,Subsidies Private Se,Local,ARRIVA DERBY LTD,2000023930,19530.99,ARRIVA DERBY LTD,LE4 8ZN,
Department for Transport,Department for Transport,26/02/2013,Subsidies Private Se,Local,ARRIVA EAST HERTS & ESSEX LTD,2000023931,20123.29,Arriva East Herts and Essex,LU4 8DS,
Department for Transport,Department for Transport,26/02/2013,Subsidies Private Se,Local,BENNETTS COACHES LTD,2000023934,10867.59,BENNETTS COACHES LTD,GL4 4LP,
Department for Transport,Department for Transport,26/02/2013,Subsidies Private Se,Local,BENNETTS TRAVEL (CRANBERRY)LTD,2000023935,12732.83,BENNETTS TRAVEL (CRANBERRY) LTD,ST21 6SQ,
Department for Transport,Department for Transport,26/02/2013,Subsidies Private Se,Local,BUGLERS COACHES LTD,2000023941,985.55,Buglers,BS4 4NF,
Department for Transport,Department for Transport,26/02/2013,Subsidies Private Se,Local,CLASSIC BUS NORTH WEST LTD,2000024128,14057.2,Classic Bus North West Ltd,FY4 4QU,
Department for Transport,Department for Transport,26/02/2013,Subsidies Private Se,Local,COMPASS ROYSTON TRAVEL LTD,2000023953,5171.11,COMPASS ROYSTON TRAVEL LTD,TS18 3EG,
Department for Transport,Department for Transport,26/02/2013,Subsidies Private Se,Local,COOK'S COACHES,2000023954,3631.4,COOKS COACHES,TA21 0LR,
Department for Transport,Department for Transport,26/02/2013,Subsidies Private Se,Local,D & G COACH & BUS LTD,2000023947,1385.3,Liyell Ltd T/A Midland,ST4 8QE,
Department for Transport,Department for Transport,26/02/2013,Subsidies Private Se,Local,D & J DICKINSON,2000023959,1396.47,D & J Dickinson,PE22 9DY,
Department for Transport,Department for Transport,26/02/2013,Subsidies Private Se,Local,DART PLEASURE CRAFT LTD,2000023960,10909.31,DART PLEASURE CRAFT LTD,TQ6 9AJ,
Department for Transport,Department for Transport,26/02/2013,Subsidies Private Se,Local,DOBSON'S COACHES,2000023962,1149.95,DOBSON'S BUSES LTD,CW9 6DA,
Department for Transport,Department for Transport,26/02/2013,Subsidies Private Se,Local,EAST BEDS COMMUNITY BUS LTD,2000023963,1863.69,EAST BEDS COMMUNTY BUS (THE IVEL SPRINTER),SG18 8RT,
Department for Transport,Department for Transport,26/02/2013,Subsidies Private Se,Local,EAST RIDING OF YORKSHIRE,2000024112,9171.5,East Riding of Yorkshire Council,HU17 0LF,
Department for Transport,Department for Transport,26/02/2013,Subsidies Private Se,Local,EASTONWAYS,2000023965,8327.43,EASTONWAYS LTD,CT12 6HJ,
Department for Transport,Department for Transport,26/02/2013,Subsidies Private Se,Local,F HUNT (COACH HIRE) LTD,2000023970,10203.98,F Hunt Coach Hire Ltd,LN13 9JB,
Department for Transport,Department for Transport,26/02/2013,Subsidies Private Se,Local,FIRST LEICESTER BUSES LTD,2000023972,53987.66,First Leicester,LE4 0DA,
Department for Transport,Department for Transport,26/02/2013,Subsidies Private Se,Local,FIRST NORTHAMPTON LTD,2000023973,6140.68,First Northampton,LE4 0DA,
Department for Transport,Department for Transport,26/02/2013,Subsidies Private Se,Local,FIRST RAIL SUPPORT,2000023974,710644.3,First Rail Support Ltd,BB12 7TG,
Department for Transport,Department for Transport,26/02/2013,Subsidies Private Se,Local,FORD COACHES,2000023975,3174.32,Fords Coaches Ltd,CM3 6BZ,
Department for Transport,Department for Transport,26/02/2013,Subsidies Private Se,Local,G & J HOLMES (COACHES) LTD,2000023977,5412.87,G & J HOLMES COACHES LTD,S45 9LY,
Department for Transport,Department for Transport,26/02/2013,Subsidies Private Se,Local,GATWICK FLYER LTD,2000024098,26210.23,Gatwick Flyer Ltd,RM7 0HL,
Department for Transport,Department for Transport,26/02/2013,Subsidies Private Se,Local,GELDARDS COACHES LTD,2000023978,15309.58,GELDARDS COACHES LTD,LS12 5JB,
Department for Transport,Department for Transport,26/02/2013,Subsidies Private Se,Local,GRAYSCROFT BUS SERVICE LTD,2000023981,3054.98,GRAYSCROFT BUS SERVICE LTD,LN12 2AF,
Department for Transport,Department for Transport,26/02/2013,Subsidies Private Se,Local,GREEN TRIANGLE BUSES LTD,2000023982,17978.1,GREEN TRIANGLE BUSES LTD,M46 9BP,
Department for Transport,Department for Transport,26/02/2013,Subsidies Private Se,Local,H C CHAMBERS & SON LTD,2000023985,643.21,H C Chambers & Son Ltd,CO3 0UL,
Department for Transport,Department for Transport,26/02/2013,Subsidies Private Se,Local,H HULLEY & SONS LTD,2000023991,1022.27,H HULLEY & SONS LTD T/A HULLEYS OF BASLOW,DE45 1RP,
Department for Transport,Department for Transport,26/02/2013,Subsidies Private Se,Local,HANNELL OF HALTON,2000023987,1511.42,HANNEL OF HALTON T/A MERSEYPRIDE TRAVEL,L24 1YH,
Department for Transport,Department for Transport,26/02/2013,Subsidies Private Se,Local,J S PERRY & SON,2000024002,3328.31,J S PERRY & SON,YO17 6YE,
Department for Transport,Department for Transport,26/02/2013,Subsidies Private Se,Local,JACKIES COACHES,2000024005,4050.53,JACKIES COACHES,GL2 7NG,
Department for Transport,Department for Transport,26/02/2013,Subsidies Private Se,Local,K & B TRAVEL LTD,2000024009,527.08,K & B TRAVEL LTD,CA11 7AY,
Department for Transport,Department for Transport,26/02/2013,Subsidies Private Se,Local,M & D MINI COACHES LTD,2000024027,3055.48,M & D Mini Coach Hire,YO21 1UD,
Department for Transport,Department for Transport,26/02/2013,Subsidies Private Se,Local,M K METRO LTD,2000023932,321805.96,Arriva The Shires,LU4 8DS,
Department for Transport,Department for Transport,26/02/2013,Subsidies Private Se,Local,,2000024121,636.37,,
Department for Transport,Department for Transport,26/02/2013,Subsidies Private Se,Local,NETWORK COLCHESTER LTD,2000023942,42470.1,TGMGroup Ltd T/A Network Colchester,CM20 1DU,
Department for Transport,Department for Transport,26/02/2013,Subsidies Private Se,Local,OLYMPIA TRAVEL UK LTD,2000024041,11288.27,OLYMPIA TRAVEL UK LIMITED,WN2 3PH,
Department for Transport,Department for Transport,26/02/2013,Subsidies Private Se,Local,OURHIRE,2000024049,4459.26,OURHIRE,NR133E,
Department for Transport,Department for Transport,26/02/2013,Subsidies Private Se,Local,PC COACHES OF LINCOLN LTD,2000024055,9566.43,P C COACHES OF LINCOLN LTD,LN3 4NL,
Department for Transport,Department for Transport,26/02/2013,Subsidies Private Se,Local,PREMIER BUS & COACH HIRE,2000024062,2568.81,PREMIER BUS & COACH LTD,NE24 4RN,
Department for Transport,Department for Transport,26/02/2013,Subsidies Private Se,Local,PROCTERS COACHES,2000024063,21846.83,PROCTERS OF BEDALE,DL7 9UJ,
Department for Transport,Department for Transport,26/02/2013,Subsidies Private Se,Local,PULHAM & SON (COACHES) LTD,2000024064,10252.97,PULHAM & SONS LTD,GL542EN,
Department for Transport,Department for Transport,26/02/2013,Subsidies Private Se,Local,RAMBLER COACHES LTD,2000024066,11987.76,RAMBLER COACHES LTD,TN37 7PZ,
Department for Transport,Department for Transport,26/02/2013,Subsidies Private Se,Local,REDLINE TRAVEL,2000024067,6759.1,REDLINE TRAVEL LTD,PR4 5QJ,
Department for Transport,Department for Transport,26/02/2013,Subsidies Private Se,Local,STAGECOACH IN EAST SUSSEX,2000023964,20637.26,Stagecoach in East Sussex,CT1 2SY,
Department for Transport,Department for Transport,26/02/2013,Subsidies Private Se,Local,STEPHENSONS OF EASINGWOLD LTD,2000024075,8123.97,STEPHENSONS OF EASINGWOLD LTD,YO61 1SR,
Department for Transport,Department for Transport,26/02/2013,Subsidies Private Se,Local,T.C. MINI COACHES LTD,2000024110,26189.67,T.C Mini Coaches Ltd,LN11 0RY,
Department for Transport,Department for Transport,26/02/2013,Subsidies Private Se,Local,WYVERN COMMUNITY TRANSPORT,2000024093,982.04,Wyvern Community Transport,SS7 1TF,
Department for Transport,Department for Transport,26/02/2013,Subsidies Private Se,Local,ACCESSIBLE PASSENGER TRANSPORT SERV,2000023910,24600.18,ACCESSIBLE PASSENGER TRANSPORT SERVICES LTD.,M12 4XZ,
Department for Transport,Department for Transport,26/02/2013,Subsidies Private Se,Local,AGE CONCERN BARNET,2000023912,714.76,AGE CONCERN BARNET (PETROL),NW4 4JT,
Department for Transport,Department for Transport,26/02/2013,Subsidies Private Se,Local,AGE CONCERN CALDERDALE,2000023913,4020.79,AGE CONCERN CALDERDALE,HX1 2TS,
Department for Transport,Department for Transport,26/02/2013,Subsidies Private Se,Local,AGE CONCERN HEREFORD & LOCALITIES,2000023917,1644.73,AGE CONCERN HEREFORD & LOCALITIES,HR4 9AR,
Department for Transport,Department for Transport,26/02/2013,Subsidies Private Se,Local,AGE CONCERN LIVERPOOL,2000023920,4841.94,AGE CONCERN LIVERPOOL,L1 6BW,
Department for Transport,Department for Transport,26/02/2013,Subsidies Private Se,Local,AGE CONCERN NORTHAMPTONSHIRE,2000023922,10236.86,AGE CONCERN NORTHAMPTON & COUNTY,NN1 5DQ,
Department for Transport,Department for Transport,26/02/2013,Subsidies Private Se,Local,AGE CONCERN SUNDERLAND,2000024102,1401.78,Age Concern Sunderland,SR2 7AQ,
Department for Transport,Department for Transport,26/02/2013,Subsidies Private Se,Local,AGE UK HORSHAM DISTRICT,2000023999,1039.88,AGE UK HORSHAM DISTRICT,RH12 1GZ,
Department for Transport,Department for Transport,26/02/2013,Subsidies Private Se,Local,AGE UK NORTH WEST KENT,2000023915,549.3,AGE UK NORTH WEST KENT - GRAVESEND,DA12 1HJ,
Department for Transport,Department for Transport,26/02/2013,Subsidies Private Se,Local,AGE UK SEVENOAKS & TONBRIDGE,2000023924,1468.77,Age UK Sevenoaks and Tonbridge,TN13 3UB,
Department for Transport,Department for Transport,26/02/2013,Subsidies Private Se,Local,AGE UK WEST CUMBRIA,2000023923,1491.4,AGE UK WEST CUMBRIA,CA28 7LR,
Department for Transport,Department for Transport,26/02/2013,Subsidies Private Se,Local,BIRTENSHAW HALL SCHOOL,2000023936,1902.32,BIRTENSHAW HALL SCHOOL,BL7 9AB,
Department for Transport,Department for Transport,26/02/2013,Subsidies Private Se,Local,BOLTON COMMUNITY TRANSPORT & FS,2000023937,1470.27,BOLTON COMMUNITY TRANSPORT AND FURNITURE SERVICES,BL3 6DG,
Department for Transport,Department for Transport,26/02/2013,Subsidies Private Se,Local,BRISTOL COMMUNITY TRANSPORT,2000023940,16716.04,BRISTOL COMMUNITY TRANSPORT,BS5 0HQ,
Department for Transport,Department for Transport,26/02/2013,Subsidies Private Se,Local,C T PLUS CIC,2000023944,13326.36,CT Plus Ltd (DIESEL),E8 4RH,
Department for Transport,Department for Transport,26/02/2013,Subsidies Private Se,Local,C T PLUS CIC,2000023944,13457.65,HACKNEY COMMUNITY TRANSPORT,E8 4RH,
Department for Transport,Department for Transport,26/02/2013,Subsidies Private Se,Local,CENTRE 81,2000023946,3495.89,CENTRE 81,NR30 1QR,
Department for Transport,Department for Transport,26/02/2013,Subsidies Private Se,Local,COMMUNITY TRANSPORT,2000023950,3770.64,CT Newcastle,NE6 1JR,
Department for Transport,Department for Transport,26/02/2013,Subsidies Private Se,Local,COMPASS COMMUNITY TRANSPORT,2000023952,9209.16,COMPASS COMMUNITY TRANSPORT,SR2 9TP,
Department for Transport,Department for Transport,26/02/2013,Subsidies Private Se,Local,COTSWOLD COUNCIL,2000024106,2350.61,Cotswold Council for Voluntary Service,GL7 6PY,
Department for Transport,Department for Transport,26/02/2013,Subsidies Private Se,Local,CRAWLEY COMMUNITY TRANSPORT LTD,2000023957,3261.03,CRAWLEY COMMUNITY TRANSPORT LTD,RH10 6GA,
Department for Transport,Department for Transport,26/02/2013,Subsidies Private Se,Local,CROYDON ACCESSIBLE TRANSPORT,2000023958,3826.05,CROYDON ACCESSIBLE TRANSPORT,CR0 2XX,
Department for Transport,Department for Transport,26/02/2013,Subsidies Private Se,Local,DASH,2000024021,624.49,DASH,GU17 9BW,
Department for Transport,Department for Transport,26/02/2013,Subsidies Private Se,Local,DAYBREAK CENTRES,2000024039,4728.49,Daybreak Centres,NE46 4SA,
Department for Transport,Department for Transport,26/02/2013,Subsidies Private Se,Local,DENGIE PROJECT TRUST,2000023961,1026.85,THE DENGIE PROJECT TRUST,CM0 7BD,
Department for Transport,Department for Transport,26/02/2013,Subsidies Private Se,Local,EREWASH COMMUNITY TRANSPORT,2000023967,10933.06,EREWASH COMMUNITY TRANSPORT LTD,DE7 4AZ,
Department for Transport,Department for Transport,26/02/2013,Subsidies Private Se,Local,ESSEX BOYS & GIRLS CLUBS,2000023968,1529.19,ESSEX BOYS & GIRLS CLUBS,CM1 1RQ,
Department for Transport,Department for Transport,26/02/2013,Subsidies Private Se,Local,HARROW COMMUNITY TRANSPORT,2000024111,1251.4,Harrow Community Transport,HA1 4HZ,
Department for Transport,Department for Transport,26/02/2013,Subsidies Private Se,Local,HARTCLIFFE & WITHYWOOD COMMUNITY,2000024109,1461.87,HARTCLIFFE & WITHWOOD COMMUNITY PARTNERSHIP,BS13 0BE,
Department for Transport,Department for Transport,26/02/2013,Subsidies Private Se,Local,HAYLE DAY CARE CENTRE TRUST,2000023989,717.35,HAYLE DAY CARE CENTRE TRUST,TR27 4DE,
Department for Transport,Department for Transport,26/02/2013,Subsidies Private Se,Local,HOLBECK ELDERLY AID,2000023995,657.75,HOLBECK ELDERLY AID,TN37 7GA,
Department for Transport,Department for Transport,26/02/2013,Subsidies Private Se,Local,KEIGHLEY COMMUNITY TRANSPORT,2000024011,2715.1,KEIGHLEY COMMUNITY TRANSPORT,BD21 1PT,
Department for Transport,Department for Transport,26/02/2013,Subsidies Private Se,Local,LACE HOUSING ASSOCIATION,2000024118,4061.84,Lace Housing Association,LN2 4UZ,
Department for Transport,Department for Transport,26/02/2013,Subsidies Private Se,Local,LAMBETH & SOUTHWARK COM TRANSPORT,2000024015,13114.74,Lambeth and Southwark Community Transport,SW9 8ND,
Department for Transport,Department for Transport,26/02/2013,Subsidies Private Se,Local,LICHFIELD DC,2000024023,589.18,LICHFIELD DISTRICT COMMUNITY TRANSPORT SCHEME,WS13 6YY,
Department for Transport,Department for Transport,26/02/2013,Subsidies Private Se,Local,LIVERPOOL COMMUNITY TRANSPORT LTD,2000024119,19035.85,Liverpool Community Transport Ltd,L5 9SG,
Department for Transport,Department for Transport,26/02/2013,Subsidies Private Se,Local,MACCLESFIELD COMMUNITY TRANSPORT,2000023951,892.63,COMMUNITY TRANSPORT - MACCLESFIELD BOROUGH,SK11 6AY,
Department for Transport,Department for Transport,26/02/2013,Subsidies Private Se,Local,MANCHESTER COMMUNITY TRANSPORT LTD,2000024029,17468.49,MANCHESTER COMMUNITY TRANSPORT LTD (WYTHENSHAWE),M23 0BX,
Department for Transport,Department for Transport,26/02/2013,Subsidies Private Se,Local,NORTH HOLDERNESS COM TRANSPORT,2000024037,4218.33,NORTH HOLDERNESS COMMUNITY TRANSPORT LTD,HU18 1JB,
Department for Transport,Department for Transport,26/02/2013,Subsidies Private Se,Local,OPEN COUNTRY,2000024043,592.49,OPEN COUNTRY,HG1 5LT,
Department for Transport,Department for Transport,26/02/2013,Subsidies Private Se,Local,OSBORNE SCHOOL,2000024047,1415.81,OSBORNE SCHOOL,SO23 7GA,
Department for Transport,Department for Transport,26/02/2013,Subsidies Private Se,Local,ROTHERHAM COMMUNITY TRANSPORT,2000024068,20545.34,ROTHERHAM COMMUNITY TRANSPORT,S65 1RF,
Department for Transport,Department for Transport,26/02/2013,Subsidies Private Se,Local,RYE & DISTRICT COMMUNITY TRANSPORT,2000024069,863.77,RYE AND DISTRICT COMMUNITY TRANSPORT,TN31 7TE,
Department for Transport,Department for Transport,26/02/2013,Subsidies Private Se,Local,SHEFFIELD ROYAL SOCIETY,2000024127,1153.17,The Sheffield Royal Society for the Blind,S1 4DT,
Department for Transport,Department for Transport,26/02/2013,Subsidies Private Se,Local,SLOUGH COMM TRANS & SHOPMOBILITY,2000024073,11808.55,SLOUGH COMMUNITY TRANSPORT AND SHOPMOBILITY,SL1 1RA,
Department for Transport,Department for Transport,26/02/2013,Subsidies Private Se,Local,SUDBURY & DISTRICT,2000024076,612.61,SUDBURY TOWN AREA RURAL TRANSPORT,CO10 2FT,
Department for Transport,Department for Transport,26/02/2013,Subsidies Private Se,Local,TISBURY & DISTRICT COM MINIBUS LTD,2000024077,757.41,TISBURY AND DISTRICT COMMUNITY MINIBUS,SP3 6DG,
Department for Transport,Department for Transport,26/02/2013,Subsidies Private Se,Local,TORRIDGE TRANSPORT GROUP,2000024078,1031.95,TORRIDGE TRANSPORT GROUP,EX39 2QE,
Department for Transport,Department for Transport,26/02/2013,Subsidies Private Se,Local,TOWER HAMLETS COMMUNITY TRANSPORT,2000024114,11428.37,Tower Hamlets Community Transport,E14 7HP,
Department for Transport,Department for Transport,26/02/2013,Subsidies Private Se,Local,TRANSPORT NORTH EAST,2000024080,3503.43,TRANSPORT NORTH EAST,NE8 4AA,
Department for Transport,Department for Transport,26/02/2013,Subsidies Private Se,Local,TRELOAR TRUST,2000024081,1955.1,TRELOAR TRUST (Diesel),GU34 4JX,
Department for Transport,Department for Transport,26/02/2013,Subsidies Private Se,Local,TUNBRIDGE WELLS AGE CONCERN,2000024083,1141.29,TUNBRIDGE WELLS AGE CONCERN,TN1 2QS,
Department for Transport,Department for Transport,26/02/2013,Subsidies Private Se,Local,VISTA,2000024085,1580.86,VISTA SOCIETY FOR THE BLIND,LE5 5FU,
Department for Transport,Department for Transport,26/02/2013,Subsidies Private Se,Local,WALLINGFORD COACH FOR DISABLED,2000024086,1524.71,THE WALLINGFORD COACH FOR THE DISABLED,OX10 9LB,
Department for Transport,Department for Transport,26/02/2013,Subsidies Private Se,Local,WALSALL COMMUNITY TRANSPORT,2000024087,6921.99,WALSALL COMMUNITY TRANSPORT,WS3 3DH,
Department for Transport,Department for Transport,26/02/2013,Subsidies Private Se,Local,WALTHAM FOREST COMMUNITY TRANSPORT,2000024088,5852.15,WALTHAM FOREST COMMUNITY TRANSPORT,E17 8BS,
Department for Transport,Department for Transport,26/02/2013,Subsidies Private Se,Local,WEST NORFOLK COMMUNITY TRANSPORT,2000024089,17086.79,WEST NORFOLK COMMUNITY TRANSPORT,PE30 2LB,
Department for Transport,Department for Transport,26/02/2013,Subsidies Private Se,Local,WYRE FOREST DIAL A RIDE LTD,2000024092,1256.58,WYRE FOREST DIAL A RIDE LTD,DY10 1AQ,
Department for Transport,Department for Transport,26/02/2013,Subsidies Private Se,Local,WYVERN COMMUNITY TRANSPORT,2000024093,2557.21,WYVERN COMMUNITY TRANSPORT,SS7 1TF,
Department for Transport,Department for Transport,26/02/2013,Subsistence Costs,Transport Security,,2000023996,20,*Trip from 05.02.13 To  07.02.13 to   Paris,,
Department for Transport,Department for Transport,26/02/2013,Support Services,Aviation,CIVIL AVIATION AUTHORITY,2000024140,31250,#,RH10 0YR,
Department for Transport,Department for Transport,26/02/2013,Training,Air Accident Investigation Branch,HELI AIR LIMITED,2000024166,1232,#,CV35 9EU,
Department for Transport,Department for Transport,26/02/2013,Transport  Consult,Rail and Road Projects,NETWORK RAIL,2000024167,129877.93,#,M60 7RT,
Department for Transport,Department for Transport,26/02/2013,Transport  Consult,Greener Transport & International,UNIVERSITY OF LEEDS CONSULTING LTD,2000024150,1425,#,LS2 9JT,
Department for Transport,Department for Transport,27/02/2013,Agency Staff Costs,Rail Commercial Contracts,MORGAN HUNT UK LTD,2000024207,3650.4,#,EC4M 7EG,
Department for Transport,Department for Transport,27/02/2013,Agency Staff Costs,DASH,BADENOCH & CLARK,2000024204,1755.66,#,EC4V 4BG,
Department for Transport,Department for Transport,27/02/2013,Basic Franchise Pay,Rail Commercial Contracts,CROSS COUNTRY TRAINS LTD,2000024233,-3578306.26,1312 Wk3 Basic Franchise Payment - p1312 - Arriva,B5 4HA,
